Workbook

Sheet Rearrange (hidden)
A5: Rearranged Data
A6: Segment | B6: =REPLACE(LEFT(A1,SEARCH("Type:",A1)-4),1,LOOKUP(9.99999999999999E+307,FIND(" ",LEFT(A1,SEARCH("Segment:",A1)+9),ROW(INDIRECT("1:"&LEN(A1))))),"") -> 
A7: Logs | B7: =REPLACE(LEFT(A1,LEN(A1)-1),1,LOOKUP(9.99999999999999E+307,FIND(" ",LEFT(A1,SEARCH("Logs:",A1)+5),ROW(INDIRECT("1:"&LEN(A1))))),"") -> 
A8: Location Summary | B8: =CONCATENATE("(Logs: ",B7,") ",B6) -> 
A9: Lanes | B9: =REPLACE(LEFT(A1,SEARCH("Cap:",A1)-6),1,LOOKUP(9.99999999999999E+307,FIND(" ",LEFT(A1,SEARCH("Lanes:",A1)+7),ROW(INDIRECT("1:"&LEN(A1))))),"") -> 
A10: Date | B10: =REPLACE(LEFT(A1,SEARCH("Lanes:",A1)-4),1,LOOKUP(9.99999999999999E+307,FIND(" ",LEFT(A1,SEARCH("Date:",A1)+6),ROW(INDIRECT("1:"&LEN(A1))))),"") -> 
A11: Weekday | B11: =TEXT(B10,"DDDD") -> 
A12: 12 | B12: =C2 -> 0
A13: 1 | B13: =D2 -> 0
A14: 2 | B14: =E2 -> 0
A15: 3 | B15: =F2 -> 0
A16: 4 | B16: =G2 -> 0
A17: 5 | B17: =H2 -> 0
A18: 6 | B18: =I2 -> 0
A19: 7 | B19: =J2 -> 0
A20: 8 | B20: =K2 -> 0
A21: 9 | B21: =L2 -> 0
A22: 10 | B22: =M2 -> 0
A23: 11 | B23: =N2 -> 0
A24: 12 | B24: =C3 -> 0
A25: 1 | B25: =D3 -> 0
A26: 2 | B26: =E3 -> 0
A27: 3 | B27: =F3 -> 0
A28: 4 | B28: =G3 -> 0
A29: 5 | B29: =H3 -> 0
A30: 6 | B30: =I3 -> 0
A31: 7 | B31: =J3 -> 0
A32: 8 | B32: =K3 -> 0
A33: 9 | B33: =L3 -> 0
A34: 10 | B34: =M3 -> 0
A35: 11 | B35: =N3 -> 0
A38: Mainline | B38: =REPLACE(LEFT(A37,SEARCH("Begin",A37)-3),1,LOOKUP(9.99999999999999E+307,FIND(" ",LEFT(A37,SEARCH("-",A37)+1),ROW(INDIRECT("1:"&LEN(A37))))),"") -> 

Sheet VolumeLookup (hidden)
A1: Lookup | B1: =Rearrange!B38 -> 
A2: Segment
A3: Logs
A4: Location Summary
A5: Lanes
A6: Date
A7: Weekday
A8: 00:00:00
A9: 01:00:00
A10: 02:00:00
A11: 03:00:00
A12: 04:00:00
A13: 05:00:00
A14: 06:00:00
A15: 07:00:00
A16: 08:00:00
A17: 09:00:00
A18: 10:00:00
A19: 11:00:00
A20: 12:00:00
A21: 13:00:00
A22: 14:00:00
A23: 15:00:00
A24: 16:00:00
A25: 17:00:00
A26: 18:00:00
A27: 19:00:00
A28: 20:00:00
A29: 21:00:00
A30: 22:00:00
A31: 23:00:00

Sheet Unique Values (hidden)
A1: Location | B1: Location | C1: Date | D1: Date

Sheet Reference Sheet (hidden)
A1: DISTRICTS: | C1: COUNTY: | D1: COUNTY: | E1: ROUTE: | G1: ROUTE: | I1: I | J1: US | K1: MO | L1: RT | N1: STATE SYSTEM CLASS | P1: ROADWAY TYPE | S1: Work Location | V1: Travel Lane Width (ft) | X1: Climbing Grade (%)* | Z1: Speed Limit | AA1: Binary | AB1: Construction Seasons
A2: Northwest | C2: Adair County | D2: Adair | E2: I-29 (MO).svgI-29 | G2: I-29 | I2: 29 | J2: 24 | K2: 1 | L2: 29 | N2: INTERSTATE | P2: FREEWAY | R2: No Work Zone (Use for Calibrating Existing Conditions) | S2: Barrier located greater than 2 feet from travel lane | T2: 9 | V2: <10 | W2: 3 | X2: < 2 | Y2: 0 | Z2: 30 | AA2: Yes | AB2: more than one
A3: Northeast | C3: Andrew County | D3: Andrew | E3: I-35 (MO).svgI-35 | G3: I-35 | I3: 35 | J3: 36 | K3: 2 | L3: 35 | N3: PRIMARY | P3: EXPRESSWAY | R3: Workers & equipment less than 4 feet from travel lane | S3: Barrier located less than 2 feet from travel lane | T3: 6 | V3: > 11.5 | W3: 1 | X3: >2-3 | Y3: 1 | Z3: 35 | AA3: No | AB3: one or somewhat less than one
A4: Kansas City | C4: Atchison County | D4: Atchison | E4: I-44 (MO).svgI-44 | G4: I-44 | I4: 44 | J4: 40 | K4: 3 | L4: 44 | N4: SUPPLEMENTARY | P4: MULTI-LANE | R4: Workers & equipment greater than 4-feet from travel lane | S4: Crossover on Divided Highway | T4: 15 | V4: 10 - 11.5 | W4: 2 | X4: >3-4 | Y4: 4 | Z4: 40 | AA4: N/A | AB4: much less than one
A5: Central | C5: Audrain County | D5: Audrain | E5: I-49 (MO).svgI-49 | G5: I-49 | I5: 49 | J5: 50 | K5: 5 | L5: 49 | N5: NOT ON SYSTEM | P5: 5 LANE SECTION | R5: Barrier located less than 2 feet from travel lane | S5: No Work Zone (Use for Calibrating Existing Conditions) | T5: 538 | X5: >4-5 | Y5: 7 | Z5: 45
A6: Saint Louis | C6: Barry County | D6: Barry | E6: I-55 (MO).svgI-55 | G6: I-55 | I6: 55 | J6: 54 | K6: 6 | L6: 55 | N6: UNKNOWN | P6: 3 LANE SECTION | R6: Barrier located greater than 2 feet from travel lane | S6: Ramp (used as bypass) | T6: 12 | X6: >5-6 | Y6: 10 | Z6: 50
A7: Southwest | C7: Barton County | D7: Barton | E7: I-57 (MO).svgI-57 | G7: I-57 | I7: 57 | J7: 56 | K7: 7 | L7: 57 | N7: N/A | P7: SUPER 2-LANE | R7: Ramp (used as bypass) | S7: Workers & equipment greater than 4-feet from travel lane | T7: 3 | X7: >6 | Y7: 13 | Z7: 55
A8: Southeast | C8: Bates County | D8: Bates | E8: I-64 (MO).svgI-64 | G8: I-64 | I8: 64 | J8: 60 | K8: 8 | L8: 64 | P8: TWO-LANE | R8: Crossover on Divided Highway | S8: Workers & equipment less than 4 feet from travel lane | T8: 0 | Z8: 60
A9: UNKNOWN | C9: Benton County | D9: Benton | E9: I-70 (MO).svgI-70 | G9: I-70 | I9: 70 | J9: 62 | K9: 9 | L9: 70 | P9: ONE-WAY | Z9: 65
A10: N/A | C10: Bollinger County | D10: Bollinger | E10: I-72 (MO).svgI-72 | G10: I-72 | I10: 72 | J10: 66 | K10: 10 | L10: 72 | P10: SHARED FOUR LANE | Z10: 70
C11: Boone County | D11: Boone | E11: I-155 (MO).svgI-155 | G11: I-155 | I11: 155 | J11: 136 | K11: 11 | L11: 155 | P11: RAMP | Z11: 75
C12: Buchanan County | D12: Buchanan | E12: I-170 (MO).svgI-170 | G12: I-170 | I12: 170 | J12: 160 | K12: 12 | L12: 170 | P12: UNKNOWN
C13: Butler County | D13: Butler | E13: I-229 (MO).svgI-229 | G13: I-229 | I13: 229 | J13: 166 | K13: 13 | L13: 229 | P13: N/A
C14: Caldwell County | D14: Caldwell | E14: I-255 (MO).svgI-255 | G14: I-255 | I14: 255 | J14: 400 | K14: 14 | L14: 255
C15: Callaway County | D15: Callaway | E15: I-270 (MO).svgI-270 | G15: I-270 | I15: 270 | J15: 412 | K15: 15 | L15: 270
C16: Camden County | D16: Camden | E16: I-435 (MO).svgI-435 | G16: I-435 | I16: 435 | J16: 460 | K16: 16 | L16: 435
C17: Cape Girardeau County | D17: Cape Girardeau | E17: I-470 (MO).svgI-470 | G17: I-470 | I17: 470 | J17: 59 | K17: 17 | L17: 470
C18: Carroll County | D18: Carroll | E18: I-635 (MO).svgI-635 | G18: I-635 | I18: 635 | J18: 61 | K18: 18 | L18: 635
C19: Carter County | D19: Carter | E19: I-670 (MO).svgI-670 | G19: I-670 | I19: 670 | J19: 63 | K19: 19 | L19: 670
C20: Cass County | D20: Cass | E20: US 24.svgUS 24 | G20: US 24 | J20: 65 | K20: 20 | L20: 24
C21: Cedar County | D21: Cedar | E21: US 36.svgUS 36 | G21: US 36 | J21: 67 | K21: 21 | L21: 36
C22: Chariton County | D22: Chariton | E22: US 40.svgUS 40 | G22: US 40 | J22: 69 | K22: 22 | L22: 40
C23: Christian County | D23: Christian | E23: US 50.svgUS 50 | G23: US 50 | J23: 71 | K23: 23 | L23: 50
C24: Clark County | D24: Clark | E24: US 54.svgUS 54 | G24: US 54 | J24: 159 | K24: 25 | L24: 54
C25: Clay County | D25: Clay | E25: US 56.svgUS 56 | G25: US 56 | J25: 169 | K25: 27 | L25: 56
C26: Clinton County | D26: Clinton | E26: US 60.svgUS 60 | G26: US 60 | J26: 275 | K26: 28 | L26: 60
C27: Cole County | D27: Cole | E27: US 62.svgUS 62 | G27: US 62 | K27: 30 | L27: 62
C28: Cooper County | D28: Cooper | E28: US 66.svgUS 66 | G28: US 66 | K28: 31 | L28: 66
C29: Crawford County | D29: Crawford | E29: US 136.svgUS 136 | G29: US 136 | K29: 32 | L29: 136
C30: Dade County | D30: Dade | E30: US 160.svgUS 160 | G30: US 160 | K30: 33 | L30: 160
C31: Dallas County | D31: Dallas | E31: US 166.svgUS 166 | G31: US 166 | K31: 34 | L31: 166
C32: Daviess County | D32: Daviess | E32: US 400.svgUS 400 | G32: US 400 | K32: 37 | L32: 400
C33: DeKalb County | D33: DeKalb | E33: US 412.svgUS 412 | G33: US 412 | K33: 38 | L33: 412
C34: Dent County | D34: Dent | E34: US 460.svgUS 460 | G34: US 460 | K34: 39 | L34: 460
C35: Douglas County | D35: Douglas | E35: US 59.svgUS 59 | G35: US 59 | K35: 41 | L35: 59
C36: Dunklin County | D36: Dunklin | E36: US 61.svgUS 61 | G36: US 61 | K36: 42 | L36: 61
C37: Franklin County | D37: Franklin | E37: US 63.svgUS 63 | G37: US 63 | K37: 43 | L37: 63
C38: Gasconade County | D38: Gasconade | E38: US 65.svgUS 65 | G38: US 65 | K38: 45 | L38: 65
C39: Gentry County | D39: Gentry | E39: US 67.svgUS 67 | G39: US 67 | K39: 46 | L39: 67
C40: Greene County | D40: Greene | E40: US 69.svgUS 69 | G40: US 69 | K40: 47 | L40: 69
C41: Grundy County | D41: Grundy | E41: US 71.svgUS 71 | G41: US 71 | K41: 48 | L41: 71
C42: Harrison County | D42: Harrison | E42: US 159.svgUS 159 | G42: US 159 | K42: 49 | L42: 159
C43: Henry County | D43: Henry | E43: US 169.svgUS 169 | G43: US 169 | K43: 51 | L43: 169
C44: Hickory County | D44: Hickory | E44: US 275.svgUS 275 | G44: US 275 | K44: 52 | L44: 275
C45: Holt County | D45: Holt | E45: 1 | F45: MO | G45: MO 1 | K45: 53 | L45: 1
C46: Howard County | D46: Howard | E46: 2 | F46: MO | G46: MO 2 | K46: 58 | L46: 2
C47: Howell County | D47: Howell | E47: 3 | F47: MO | G47: MO 3 | K47: 59 | L47: 3
C48: Iron County | D48: Iron | E48: 5 | F48: MO | G48: MO 5 | K48: 64 | L48: 5
C49: Jackson County | D49: Jackson | E49: 6 | F49: MO | G49: MO 6 | K49: 66 | L49: 6
C50: Jasper County | D50: Jasper | E50: 7 | F50: MO | G50: MO 7 | K50: 68 | L50: 7
C51: Jefferson County | D51: Jefferson | E51: 8 | F51: MO | G51: MO 8 | K51: 72 | L51: 8
C52: Johnson County | D52: Johnson | E52: 9 | F52: MO | G52: MO 9 | K52: 73 | L52: 9
C53: Knox County | D53: Knox | E53: 10 | F53: MO | G53: MO 10 | K53: 74 | L53: 10
C54: Laclede County | D54: Laclede | E54: 11 | F54: MO | G54: MO 11 | K54: 75 | L54: 11
C55: Lafayette County | D55: Lafayette | E55: 12 | F55: MO | G55: MO 12 | K55: 76 | L55: 12
C56: Lawrence County | D56: Lawrence | E56: 13 | F56: MO | G56: MO 13 | K56: 77 | L56: 13
C57: Lewis County | D57: Lewis | E57: 14 | F57: MO | G57: MO 14 | K57: 78 | L57: 14
C58: Lincoln County | D58: Lincoln | E58: 15 | F58: MO | G58: MO 15 | K58: 79 | L58: 15
C59: Linn County | D59: Linn | E59: 16 | F59: MO | G59: MO 16 | K59: 80 | L59: 16
C60: Livingston County | D60: Livingston | E60: 17 | F60: MO | G60: MO 17 | K60: 81 | L60: 17
C61: Macon County | D61: Macon | E61: 18 | F61: MO | G61: MO 18 | K61: 82 | L61: 18
C62: Madison County | D62: Madison | E62: 19 | F62: MO | G62: MO 19 | K62: 83 | L62: 19
C63: Maries County | D63: Maries | E63: 20 | F63: MO | G63: MO 20 | K63: 84 | L63: 20
C64: Marion County | D64: Marion | E64: 21 | F64: MO | G64: MO 21 | K64: 85 | L64: 21
C65: McDonald County | D65: McDonald | E65: 22 | F65: MO | G65: MO 22 | K65: 86 | L65: 22
C66: Mercer County | D66: Mercer | E66: 23 | F66: MO | G66: MO 23 | K66: 87 | L66: 23
C67: Miller County | D67: Miller | E67: 25 | F67: MO | G67: MO 25 | K67: 89 | L67: 25
C68: Mississippi County | D68: Mississippi | E68: 27 | F68: MO | G68: MO 27 | K68: 90 | L68: 27
C69: Moniteau County | D69: Moniteau | E69: 28 | F69: MO | G69: MO 28 | K69: 91 | L69: 28
C70: Monroe County | D70: Monroe | E70: 30 | F70: MO | G70: MO 30 | K70: 92 | L70: 30
C71: Montgomery County | D71: Montgomery | E71: 31 | F71: MO | G71: MO 31 | K71: 94 | L71: 31
C72: Morgan County | D72: Morgan | E72: 32 | F72: MO | G72: MO 32 | K72: 95 | L72: 32
C73: New Madrid County | D73: New Madrid | E73: 33 | F73: MO | G73: MO 33 | K73: 96 | L73: 33
C74: Newton County | D74: Newton | E74: 34 | F74: MO | G74: MO 34 | K74: 97 | L74: 34
C75: Nodaway County | D75: Nodaway | E75: 37 | F75: MO | G75: MO 37 | K75: 98 | L75: 37
C76: Oregon County | D76: Oregon | E76: 38 | F76: MO | G76: MO 38 | K76: 99 | L76: 38
C77: Osage County | D77: Osage | E77: 39 | F77: MO | G77: MO 39 | K77: 100 | L77: 39
C78: Ozark County | D78: Ozark | E78: 41 | F78: MO | G78: MO 41 | K78: 101 | L78: 41
C79: Pemiscot County | D79: Pemiscot | E79: 42 | F79: MO | G79: MO 42 | K79: 102 | L79: 42
C80: Perry County | D80: Perry | E80: 43 | F80: MO | G80: MO 43 | K80: 103 | L80: 43
C81: Pettis County | D81: Pettis | E81: 45 | F81: MO | G81: MO 45 | K81: 104 | L81: 45
C82: Phelps County | D82: Phelps | E82: 46 | F82: MO | G82: MO 46 | K82: 105 | L82: 46
C83: Pike County | D83: Pike | E83: 47 | F83: MO | G83: MO 47 | K83: 106 | L83: 47
C84: Platte County | D84: Platte | E84: 48 | F84: MO | G84: MO 48 | K84: 107 | L84: 48
C85: Polk County | D85: Polk | E85: 49 | F85: MO | G85: MO 49 | K85: 108 | L85: 49
C86: Pulaski County | D86: Pulaski | E86: 51 | F86: MO | G86: MO 51 | K86: 109 | L86: 51
C87: Putnam County | D87: Putnam | E87: 52 | F87: MO | G87: MO 52 | K87: 110 | L87: 52
C88: Ralls County | D88: Ralls | E88: 53 | F88: MO | G88: MO 53 | K88: 111 | L88: 53
C89: Randolph County | D89: Randolph | E89: 58 | F89: MO | G89: MO 58 | K89: 112 | L89: 58
C90: Ray County | D90: Ray | E90: 59 | F90: MO | G90: MO 59 | K90: 113 | L90: 59
C91: Reynolds County | D91: Reynolds | E91: 64 | F91: MO | G91: MO 64 | K91: 114 | L91: 64
C92: Ripley County | D92: Ripley | E92: 66 | F92: MO | G92: MO 66 | K92: 115 | L92: 66
C93: Saint Charles County | D93: Saint Charles | E93: 68 | F93: MO | G93: MO 68 | K93: 116 | L93: 68
C94: Saint Clair County | D94: Saint Clair | E94: 72 | F94: MO | G94: MO 72 | K94: 117 | L94: 72
C95: Saint Francois County | D95: Saint Francois | E95: 73 | F95: MO | G95: MO 73 | K95: 118 | L95: 73
C96: Saint Louis County | D96: Saint Louis | E96: 74 | F96: MO | G96: MO 74 | K96: 119 | L96: 74
C97: Saint Louis City | D97: Saint Louis City | E97: 75 | F97: MO | G97: MO 75 | K97: 120 | L97: 75
C98: Ste. Genevieve County | D98: Ste. Genevieve | E98: 76 | F98: MO | G98: MO 76 | K98: 121 | L98: 76
C99: Saline County | D99: Saline | E99: 77 | F99: MO | G99: MO 77 | K99: 122 | L99: 77
C100: Schuyler County | D100: Schuyler | E100: 78 | F100: MO | G100: MO 78 | K100: 123 | L100: 78
C101: Scotland County | D101: Scotland | E101: 79 | F101: MO | G101: MO 79 | K101: 124 | L101: 79
C102: Scott County | D102: Scott | E102: 80 | F102: MO | G102: MO 80 | K102: 125 | L102: 80
C103: Shannon County | D103: Shannon | E103: 81 | F103: MO | G103: MO 81 | K103: 126 | L103: 81
C104: Shelby County | D104: Shelby | E104: 82 | F104: MO | G104: MO 82 | K104: 127 | L104: 82
C105: Stoddard County | D105: Stoddard | E105: 83 | F105: MO | G105: MO 83 | K105: 128 | L105: 83
C106: Stone County | D106: Stone | E106: 84 | F106: MO | G106: MO 84 | K106: 129 | L106: 84
C107: Sullivan County | D107: Sullivan | E107: 85 | F107: MO | G107: MO 85 | K107: 130 | L107: 85
C108: Taney County | D108: Taney | E108: 86 | F108: MO | G108: MO 86 | K108: 131 | L108: 86
C109: Texas County | D109: Texas | E109: 87 | F109: MO | G109: MO 87 | K109: 133 | L109: 87
C110: Vernon County | D110: Vernon | E110: 89 | F110: MO | G110: MO 89 | K110: 134 | L110: 89
C111: Warren County | D111: Warren | E111: 90 | F111: MO | G111: MO 90 | K111: 135 | L111: 90
C112: Washington County | D112: Washington | E112: 91 | F112: MO | G112: MO 91 | K112: 137 | L112: 91
C113: Wayne County | D113: Wayne | E113: 92 | F113: MO | G113: MO 92 | K113: 138 | L113: 92
C114: Webster County | D114: Webster | E114: 94 | F114: MO | G114: MO 94 | K114: 139 | L114: 94
C115: Worth County | D115: Worth | E115: 95 | F115: MO | G115: MO 95 | K115: 141 | L115: 95
C116: Wright County | D116: Wright | E116: 96 | F116: MO | G116: MO 96 | K116: 142 | L116: 96
D117: UNKNOWN | E117: 97 | F117: MO | G117: MO 97 | K117: 143 | L117: 97
D118: N/A | E118: 98 | F118: MO | G118: MO 98 | K118: 144 | L118: 98
E119: 99 | F119: MO | G119: MO 99 | K119: 145 | L119: 99
E120: 100 | F120: MO | G120: MO 100 | K120: 146 | L120: 100
E121: 101 | F121: MO | G121: MO 101 | K121: 147 | L121: 101
E122: 102 | F122: MO | G122: MO 102 | K122: 148 | L122: 102
E123: 103 | F123: MO | G123: MO 103 | K123: 149 | L123: 103
E124: 104 | F124: MO | G124: MO 104 | K124: 150 | L124: 104
E125: 105 | F125: MO | G125: MO 105 | K125: 151 | L125: 105
E126: 106 | F126: MO | G126: MO 106 | K126: 152 | L126: 106
E127: 107 | F127: MO | G127: MO 107 | K127: 153 | L127: 107
E128: 108 | F128: MO | G128: MO 108 | K128: 154 | L128: 108
E129: 109 | F129: MO | G129: MO 109 | K129: 156 | L129: 109
E130: 110 | F130: MO | G130: MO 110 | K130: 157 | L130: 110
E131: 111 | F131: MO | G131: MO 111 | K131: 158 | L131: 111
E132: 112 | F132: MO | G132: MO 112 | K132: 161 | L132: 112
E133: 113 | F133: MO | G133: MO 113 | K133: 162 | L133: 113
E134: 114 | F134: MO | G134: MO 114 | K134: 163 | L134: 114
E135: 115 | F135: MO | G135: MO 115 | K135: 164 | L135: 115
E136: 116 | F136: MO | G136: MO 116 | K136: 165 | L136: 116
E137: 117 | F137: MO | G137: MO 117 | K137: 168 | L137: 117
E138: 118 | F138: MO | G138: MO 118 | K138: 171 | L138: 118
E139: 119 | F139: MO | G139: MO 119 | K139: 172 | L139: 119
E140: 120 | F140: MO | G140: MO 120 | K140: 173 | L140: 120
E141: 121 | F141: MO | G141: MO 121 | K141: 174 | L141: 121
E142: 122 | F142: MO | G142: MO 122 | K142: 175 | L142: 122
E143: 123 | F143: MO | G143: MO 123 | K143: 176 | L143: 123
E144: 124 | F144: MO | G144: MO 124 | K144: 177 | L144: 124
E145: 125 | F145: MO | G145: MO 125 | K145: 179 | L145: 125
E146: 126 | F146: MO | G146: MO 126 | K146: 180 | L146: 126
E147: 127 | F147: MO | G147: MO 127 | K147: 181 | L147: 127
E148: 128 | F148: MO | G148: MO 128 | K148: 185 | L148: 128
E149: 129 | F149: MO | G149: MO 129 | K149: 187 | L149: 129
E150: 130 | F150: MO | G150: MO 130 | K150: 190 | L150: 130
E151: 131 | F151: MO | G151: MO 131 | K151: 202 | L151: 131
E152: 133 | F152: MO | G152: MO 133 | K152: 210 | L152: 133
E153: 134 | F153: MO | G153: MO 134 | K153: 213 | L153: 134
E154: 135 | F154: MO | G154: MO 135 | K154: 215 | L154: 135
E155: 137 | F155: MO | G155: MO 137 | K155: 221 | L155: 137
E156: 138 | F156: MO | G156: MO 138 | K156: 224 | L156: 138
E157: 139 | F157: MO | G157: MO 139 | K157: 231 | L157: 139
E158: 141 | F158: MO | G158: MO 141 | K158: 240 | L158: 141
E159: 142 | F159: MO | G159: MO 142 | K159: 242 | L159: 142
E160: 143 | F160: MO | G160: MO 143 | K160: 245 | L160: 143
E161: 144 | F161: MO | G161: MO 144 | K161: 246 | L161: 144
E162: 145 | F162: MO | G162: MO 145 | K162: 248 | L162: 145
E163: 146 | F163: MO | G163: MO 146 | K163: 249 | L163: 146
E164: 147 | F164: MO | G164: MO 147 | K164: 254 | L164: 147
E165: 148 | F165: MO | G165: MO 148 | K165: 265 | L165: 148
E166: 149 | F166: MO | G166: MO 149 | K166: 266 | L166: 149
E167: 150 | F167: MO | G167: MO 150 | K167: 267 | L167: 150
E168: 151 | F168: MO | G168: MO 151 | K168: 269 | L168: 151
E169: 152 | F169: MO | G169: MO 152 | K169: 273 | L169: 152
E170: 153 | F170: MO | G170: MO 153 | K170: 283 | L170: 153
E171: 154 | F171: MO | G171: MO 154 | K171: 291 | L171: 154
E172: 156 | F172: MO | G172: MO 156 | K172: 340 | L172: 156
E173: 157 | F173: MO | G173: MO 157 | K173: 350 | L173: 157
E174: 158 | F174: MO | G174: MO 158 | K174: 360 | L174: 158
E175: 161 | F175: MO | G175: MO 161 | K175: 364 | L175: 161
E176: 162 | F176: MO | G176: MO 162 | K176: 366 | L176: 162
E177: 163 | F177: MO | G177: MO 163 | K177: 367 | L177: 163
E178: 164 | F178: MO | G178: MO 164 | K178: 370 | L178: 164
E179: 165 | F179: MO | G179: MO 165 | K179: 371 | L179: 165
E180: 168 | F180: MO | G180: MO 168 | K180: 376 | L180: 168
E181: 171 | F181: MO | G181: MO 171 | K181: 413 | L181: 171
E182: 172 | F182: MO | G182: MO 172 | K182: 465 | L182: 172
E183: 173 | F183: MO | G183: MO 173 | K183: 571 | L183: 173
E184: 174 | F184: MO | G184: MO 174 | K184: 740 | L184: 174
E185: 175 | F185: MO | G185: MO 175 | K185: 744 | L185: 175
E186: 176 | F186: MO | G186: MO 176 | K186: 752 | L186: 176
E187: 177 | F187: MO | G187: MO 177 | K187: 759 | L187: 177
E188: 179 | F188: MO | G188: MO 179 | K188: 763 | L188: 179
E189: 180 | F189: MO | G189: MO 180 | K189: 765 | L189: 180
E190: 181 | F190: MO | G190: MO 181 | K190: 799 | L190: 181
E191: 185 | F191: MO | G191: MO 185 | L191: 185
E192: 187 | F192: MO | G192: MO 187 | L192: 187
E193: 190 | F193: MO | G193: MO 190 | L193: 190
E194: 202 | F194: MO | G194: MO 202 | L194: 202
E195: 210 | F195: MO | G195: MO 210 | L195: 210
E196: 213 | F196: MO | G196: MO 213 | L196: 213
E197: 215 | F197: MO | G197: MO 215 | L197: 215
E198: 221 | F198: MO | G198: MO 221 | L198: 221
E199: 224 | F199: MO | G199: MO 224 | L199: 224
E200: 231 | F200: MO | G200: MO 231 | L200: 231
... 35 more rows

Sheet HCM 2010 Program (hidden)
A1: Highway Capacity Manual 2010 Program for the MoDOT's Work Zone Impact Analysis Spreadsheet
A2: Work Location | B2: Travel Lane Width (ft) | D2: Capacity of Work Zone Before Trucks (pc/h/ln) | E2: Percent of Trucks* | F2: ET - Equivalent Truck* | G2: Lane Width Factor (fLW) | H2: Capacity (w/Trucks) veh/lane/hr
A3: Workers & equipment less than 4 feet from travel lane | B3: > 11.5 | C3: 1 | D3: 1440 | E3: ='Step 2 - Facility Data Inputs'!$E$15 -> 0.05 | F3: =VLOOKUP(('Step 2 - Facility Data Inputs'!$G$16+'Step 2 - Facility Data Inputs'!$I$16),$C$36:$O$51,'Step 2 - Facility Data Inputs'!$E$16) -> 1.5 | G3: 1 | H3: =+(D3*(1/(1+(E3*(F3-1)))))*G3 -> 1404.878049
B4: 10 - 11.5 | C4: 2 | D4: 1440 | E4: ='Step 2 - Facility Data Inputs'!$E$15 -> 0.05 | F4: =VLOOKUP(('Step 2 - Facility Data Inputs'!$G$16+'Step 2 - Facility Data Inputs'!$I$16),$C$36:$O$51,'Step 2 - Facility Data Inputs'!$E$16) -> 1.5 | G4: 0.91 | H4: =+(D4*(1/(1+(E4*(F4-1)))))*G4 -> 1278.439024
B5: <10 | C5: 3 | D5: 1440 | E5: ='Step 2 - Facility Data Inputs'!$E$15 -> 0.05 | F5: =VLOOKUP(('Step 2 - Facility Data Inputs'!$G$16+'Step 2 - Facility Data Inputs'!$I$16),$C$36:$O$51,'Step 2 - Facility Data Inputs'!$E$16) -> 1.5 | G5: 0.86 | H5: 1208.195122
A6: Workers & equipment greater than 4-feet from travel lane | B6: > 11.5 | C6: 4 | D6: 1600 | E6: ='Step 2 - Facility Data Inputs'!$E$15 -> 0.05 | F6: =VLOOKUP(('Step 2 - Facility Data Inputs'!$G$16+'Step 2 - Facility Data Inputs'!$I$16),$C$36:$O$51,'Step 2 - Facility Data Inputs'!$E$16) -> 1.5 | G6: 1 | H6: 1560.97561
B7: 10 - 11.5 | C7: 5 | D7: 1600 | E7: ='Step 2 - Facility Data Inputs'!$E$15 -> 0.05 | F7: =VLOOKUP(('Step 2 - Facility Data Inputs'!$G$16+'Step 2 - Facility Data Inputs'!$I$16),$C$36:$O$51,'Step 2 - Facility Data Inputs'!$E$16) -> 1.5 | G7: 0.91 | H7: 1420.487805
B8: <10 | C8: 6 | D8: 1600 | E8: ='Step 2 - Facility Data Inputs'!$E$15 -> 0.05 | F8: =VLOOKUP(('Step 2 - Facility Data Inputs'!$G$16+'Step 2 - Facility Data Inputs'!$I$16),$C$36:$O$51,'Step 2 - Facility Data Inputs'!$E$16) -> 1.5 | G8: 0.86 | H8: 1342.439024
A9: Barrier located less than 2 feet from travel lane | B9: > 11.5 | C9: 7 | D9: 1500 | E9: ='Step 2 - Facility Data Inputs'!$E$15 -> 0.05 | F9: =VLOOKUP(('Step 2 - Facility Data Inputs'!$G$16+'Step 2 - Facility Data Inputs'!$I$16),$C$36:$O$51,'Step 2 - Facility Data Inputs'!$E$16) -> 1.5 | G9: 1 | H9: 1463.414634
B10: 10 - 11.5 | C10: 8 | D10: 1500 | E10: ='Step 2 - Facility Data Inputs'!$E$15 -> 0.05 | F10: =VLOOKUP(('Step 2 - Facility Data Inputs'!$G$16+'Step 2 - Facility Data Inputs'!$I$16),$C$36:$O$51,'Step 2 - Facility Data Inputs'!$E$16) -> 1.5 | G10: 0.91 | H10: 1331.707317
B11: <10 | C11: 9 | D11: 1500 | E11: ='Step 2 - Facility Data Inputs'!$E$15 -> 0.05 | F11: =VLOOKUP(('Step 2 - Facility Data Inputs'!$G$16+'Step 2 - Facility Data Inputs'!$I$16),$C$36:$O$51,'Step 2 - Facility Data Inputs'!$E$16) -> 1.5 | G11: 0.86 | H11: 1258.536585
A12: Barrier located greater than 2 feet from travel lane | B12: > 11.5 | C12: 10 | D12: 1600 | E12: ='Step 2 - Facility Data Inputs'!$E$15 -> 0.05 | F12: =VLOOKUP(('Step 2 - Facility Data Inputs'!$G$16+'Step 2 - Facility Data Inputs'!$I$16),$C$36:$O$51,'Step 2 - Facility Data Inputs'!$E$16) -> 1.5 | G12: 1 | H12: 1560.97561
B13: 10 - 11.5 | C13: 11 | D13: 1600 | E13: ='Step 2 - Facility Data Inputs'!$E$15 -> 0.05 | F13: =VLOOKUP(('Step 2 - Facility Data Inputs'!$G$16+'Step 2 - Facility Data Inputs'!$I$16),$C$36:$O$51,'Step 2 - Facility Data Inputs'!$E$16) -> 1.5 | G13: 0.91 | H13: 1420.487805
B14: <10 | C14: 12 | D14: 1600 | E14: ='Step 2 - Facility Data Inputs'!$E$15 -> 0.05 | F14: =VLOOKUP(('Step 2 - Facility Data Inputs'!$G$16+'Step 2 - Facility Data Inputs'!$I$16),$C$36:$O$51,'Step 2 - Facility Data Inputs'!$E$16) -> 1.5 | G14: 0.86 | H14: 1342.439024
A15: Ramp (used as bypass) | B15: > 11.5 | C15: 13 | D15: 1680 | E15: ='Step 2 - Facility Data Inputs'!$E$15 -> 0.05 | F15: =VLOOKUP(('Step 2 - Facility Data Inputs'!$G$16+'Step 2 - Facility Data Inputs'!$I$16),$C$36:$O$51,'Step 2 - Facility Data Inputs'!$E$16) -> 1.5 | G15: 1 | H15: 1639.02439
B16: 10 - 11.5 | C16: 14 | D16: 1680 | E16: ='Step 2 - Facility Data Inputs'!$E$15 -> 0.05 | F16: =VLOOKUP(('Step 2 - Facility Data Inputs'!$G$16+'Step 2 - Facility Data Inputs'!$I$16),$C$36:$O$51,'Step 2 - Facility Data Inputs'!$E$16) -> 1.5 | G16: 0.91 | H16: 1491.512195
B17: <10 | C17: 15 | D17: 1680 | E17: ='Step 2 - Facility Data Inputs'!$E$15 -> 0.05 | F17: =VLOOKUP(('Step 2 - Facility Data Inputs'!$G$16+'Step 2 - Facility Data Inputs'!$I$16),$C$36:$O$51,'Step 2 - Facility Data Inputs'!$E$16) -> 1.5 | G17: 0.86 | H17: 1409.560976
A18: Crossover on Divided Highway | B18: > 11.5 | C18: 16 | D18: 1760 | E18: ='Step 2 - Facility Data Inputs'!$E$15 -> 0.05 | F18: =VLOOKUP(('Step 2 - Facility Data Inputs'!$G$16+'Step 2 - Facility Data Inputs'!$I$16),$C$36:$O$51,'Step 2 - Facility Data Inputs'!$E$16) -> 1.5 | G18: 1 | H18: 1717.073171
B19: 10 - 11.5 | C19: 17 | D19: 1760 | E19: ='Step 2 - Facility Data Inputs'!$E$15 -> 0.05 | F19: =VLOOKUP(('Step 2 - Facility Data Inputs'!$G$16+'Step 2 - Facility Data Inputs'!$I$16),$C$36:$O$51,'Step 2 - Facility Data Inputs'!$E$16) -> 1.5 | G19: 0.91 | H19: 1562.536585
B20: <10 | C20: 18 | D20: 1760 | E20: ='Step 2 - Facility Data Inputs'!$E$15 -> 0.05 | F20: =VLOOKUP(('Step 2 - Facility Data Inputs'!$G$16+'Step 2 - Facility Data Inputs'!$I$16),$C$36:$O$51,'Step 2 - Facility Data Inputs'!$E$16) -> 1.5 | G20: 0.86 | H20: 1476.682927
A21: * Percent of Trucks and ET - Equivalent Truck located in the below chart.
A24: Capacity of Work Before Trucks = 1600 + I (pc/h/ln)
A25: Intensity of Work = I; I is the adjustment factor for type, intensity and proximity of work activity
B26: I ranges between + or - 160 pc/h/ln based on professional judgement and local experience
A27: ET = passenger-car equivalent for truck (based on percent of trucks and climbing grade)
A28: Lane Width Facter (fLW) = Restricted lane widths will negatively affect capacity.
A31: Passenger - Car Equivalents for Trucks on Upgrades
A32: Climbing Grade (%)* | B32: Length (mi) | D32: ET - Passenger - Car Equivalents for Trucks on Upgrades
D33: Percentage of Trucks
D34: 0.02 | E34: 0.04 | F34: 0.05 | G34: 0.06 | H34: 0.08 | I34: 0.1 | J34: 0.15 | K34: 0.2 | L34: 0.25 | M34: 0.3 | N34: 0.35 | O34: 0.4
C35: 1 | D35: 2 | E35: 3 | F35: 4 | G35: 5 | H35: 6 | I35: 7 | J35: 8 | K35: 9 | L35: 10 | M35: 11 | N35: 12 | O35: 13
A36: < 2 | C36: 1 | D36: 1.5 | E36: 1.5 | F36: 1.5 | G36: 1.5 | H36: 1.5 | I36: 1.5 | J36: 1.5 | K36: 1.5 | L36: 1.5 | M36: 1.5 | N36: 1.5 | O36: 1.5
A37: >2-3 | B37: 0 - 0.49 | C37: 2 | D37: 1.5 | E37: 1.5 | F37: 1.5 | G37: 1.5 | H37: 1.5 | I37: 1.5 | J37: 1.5 | K37: 1.5 | L37: 1.5 | M37: 1.5 | N37: 1.5 | O37: 1.5
B38: 0.50 - 1.00 | C38: 3 | D38: 2 | E38: 2 | F38: 2 | G38: 2 | H38: 1.5 | I38: 1.5 | J38: 1.5 | K38: 1.5 | L38: 1.5 | M38: 1.5 | N38: 1.5 | O38: 1.5
B39: >1.00 | C39: 4 | D39: 3 | E39: 3 | F39: 2.5 | G39: 2.5 | H39: 2 | I39: 2 | J39: 2 | K39: 2 | L39: 2 | M39: 2 | N39: 2 | O39: 2
A40: >3-4 | B40: 0 - 0.49 | C40: 5 | D40: 2 | E40: 2 | F40: 2 | G40: 2 | H40: 2 | I40: 2 | J40: 1.5 | K40: 1.5 | L40: 1.5 | M40: 1.5 | N40: 1.5 | O40: 1.5
B41: 0.50 - 1.00 | C41: 6 | D41: 3 | E41: 3 | F41: 2.5 | G41: 2.5 | H41: 2.5 | I41: 2.5 | J41: 2 | K41: 2 | L41: 2 | M41: 2 | N41: 2 | O41: 2
B42: >1.00 | C42: 7 | D42: 4 | E42: 3.5 | F42: 3 | G42: 3 | H42: 3 | I42: 3 | J42: 2.5 | K42: 2.5 | L42: 2.5 | M42: 2.5 | N42: 2.5 | O42: 2.5
A43: >4-5 | B43: 0 - 0.49 | C43: 8 | D43: 3 | E43: 2.5 | F43: 2.5 | G43: 2.5 | H43: 2 | I43: 2 | J43: 2 | K43: 2 | L43: 2 | M43: 2 | N43: 2 | O43: 2
B44: 0.50 - 1.00 | C44: 9 | D44: 4 | E44: 3.5 | F44: 3.5 | G44: 3.5 | H44: 3 | I44: 3 | J44: 3 | K44: 3 | L44: 3 | M44: 3 | N44: 3 | O44: 3
B45: >1.00 | C45: 10 | D45: 5 | E45: 4 | F45: 4 | G45: 4 | H45: 3.5 | I45: 3.5 | J45: 3 | K45: 3 | L45: 3 | M45: 3 | N45: 3 | O45: 3
A46: >5-6 | B46: 0 - 0.49 | C46: 11 | D46: 4.5 | E46: 4 | F46: 3.5 | G46: 3 | H46: 2.5 | I46: 2.5 | J46: 2.5 | K46: 2.5 | L46: 2.5 | M46: 2.5 | N46: 2.5 | O46: 2.5
B47: 0.50 - 1.00 | C47: 12 | D47: 5.5 | E47: 5 | F47: 4.5 | G47: 4 | H47: 3 | I47: 3 | J47: 3 | K47: 3 | L47: 3 | M47: 3 | N47: 3 | O47: 3
B48: >1.00 | C48: 13 | D48: 6 | E48: 5 | F48: 5 | G48: 4.5 | H48: 3.5 | I48: 3.5 | J48: 3.5 | K48: 3.5 | L48: 3.5 | M48: 3.5 | N48: 3.5 | O48: 3.5
A49: >6 | B49: 0 - 0.49 | C49: 14 | D49: 5 | E49: 4.5 | F49: 4 | G49: 4 | H49: 3.5 | I49: 3 | J49: 2.5 | K49: 2.5 | L49: 2.5 | M49: 2.5 | N49: 2.5 | O49: 2.5
B50: 0.50 - 1.00 | C50: 15 | D50: 6 | E50: 5.5 | F50: 5 | G50: 5 | H50: 4.5 | I50: 4 | J50: 3.5 | K50: 3.5 | L50: 3.5 | M50: 3.5 | N50: 3.5 | O50: 3.5
B51: >1.00 | C51: 16 | D51: 7 | E51: 6 | F51: 5.5 | G51: 5.5 | H51: 5 | I51: 4.5 | J51: 4 | K51: 4 | L51: 4 | M51: 4 | N51: 4 | O51: 4
A52: *Climbing Grade can be located anywhere throughout the entire work zone project.

Sheet WZ Analysis (Worksheet) (hidden)
H1: WORKSHEET
H3: WORKZONE DETAILS
H10: TOTAL NUMBER OF LANES | I10: ='Step 2 - Facility Data Inputs'!A15 -> 2 | AF10: Developed by University of Missouri - Columbia
H11: TRUCK PERCENTAGE | I11: =IF('Step 2 - Facility Data Inputs'!E15='HCM 2010 Program'!D34,0.02,IF('Step 2 - Facility Data Inputs'!E15='HCM 2010 Program'!O34,0.4,'Step 2 - Facility Data Inputs'!E15)) -> 0.05
H12: VEH. LEN. | I12: =(25*(1-I11))+(50*I11) -> 26.25
H13: TOTAL CAPACITY OF WORKZONE
H15: User Defined Work Zone Capacitry | AF15: Start Time | AG15: 04:00:00
H16: USER COST | I16: TRUCKS | J16: ='Step 2 - Facility Data Inputs'!K18 -> 34.9 | AF16: Start Time | AG16: ='WZ Analysis (Worksheet)'!G31 -> 0
I17: CARS | J17: ='Step 2 - Facility Data Inputs'!K19 -> 13.65 | AF17: Duration of closure (hrs) | AG17: ='Step 3 - WZ Analysis'!D18 -> 0
AG18: =COUNT(H22:H45) -> 24
AG19: =AG16+AG17-AG18 -> -24
A20: ='Step 2 - Facility Data Inputs'!E22 -> Sunday | H20: ='Step 2 - Facility Data Inputs'!E22 -> Sunday | I20: TIME | K20: DEMAND | L20: Base Capacity | M20: Base Arrivals | N20: Base Departures | O20: Base Queued Vehicles | P20: Base Queue | Q20: Base Delay | R20: Base User Cost | S20: CAPACITY | T20: TOTAL ARRIVALS | U20: TOTAL DEPARTURES | V20: QUEUED VEHICLES | W20: QUEUE LENGTH | X20: Total Delay | Y20: User cost | Z20: WZ QUEUED VEHICLES | AA20: WZ Queue | AB20: WZ Delay | AC20: WZ Delay for Graph | AD20: WZ User Cost
C21: BASE CONDITIONS | J21: Unmet Demand from Previous Day -> | K21: 0
C22: Open Lane Capacity (pc/h/lane): | D22: ='Step 3 - WZ Analysis'!D7 -> 2300 | E22: Base Conditions Capacity (Total for ALL Lanes): | F22: =D22*$I$10 -> 4600 | H22: 0 | I22: 00:00:00 | J22: 0 | K22: ='Step 2 - Facility Data Inputs'!E26+K21 -> 0 | L22: =$D$22*$I$10 -> 4600 | M22: =K22 -> 0 | N22: =MIN(K22,L22) -> 0 | O22: =IF((K22-L22)<0,0,K22-L22) -> 0 | P22: =O22*$I$12/(5280*$I$10) -> 0 | Q22: =60*O22/L22 -> 0 | R22: =(Q22*$I$11*($J$16/60))+(Q22*(1-$I$11)*($J$17/60)) -> 0 | S22: =IF($AG$19-H23>=0,IF($G$30="",$F$29,$G$30),IF(AND(H22>=$AG$16,H22<$AG$16+$AG$17),IF($G$30="",$F$29,$G$30),$F$22)) -> 4600 | T22: =K22 -> 0 | U22: =MIN(K22,S22) -> 0 | V22: =IF((K22-S22)<0,0,K22-S22) -> 0 | W22: =V22*$I$12/(5280*$I$10) -> 0 | X22: =IF(S22=0,60*V22,60*V22/S22) -> 0 | Y22: =(X22*$I$11*($J$16/60))+(X22*(1-$I$11)*($J$17/60)) -> 0 | Z22: =V22-O22 -> 0 | AA22: =W22-P22 -> 0 | AB22: =X22-Q22 -> 0 | AC22: =IF((X22-Q22)=0,IF(OR(AB45<>0,AB23<>0),0,NA()),X22) ->  | AD22: =Y22-R22 -> 0
H23: 1 | I23: 01:00:00 | J23: 1 | K23: ='Step 2 - Facility Data Inputs'!E27 -> 0 | L23: 4600 | M23: =M22+K23 -> 0 | N23: =IF((K23<M23),IF((L23-K23)>O22,O22+K23+N22,L23+N22),(L23+N22)) -> 4600 | O23: =IF((K23<L23),IF((L23-K23)>O22,0,O22-(L23-K23)),(O22+(K23-L23))) -> 0 | P23: 0 | Q23: =60*O23/L23 -> 0 | R23: =(Q23*$I$11*($J$16/60))+(Q23*(1-$I$11)*($J$17/60)) -> 0 | S23: =IF($AG$19-H24>=0,IF($G$30="",$F$29,$G$30),IF(AND(H23>=$AG$16,H23<$AG$16+$AG$17),IF($G$30="",$F$29,$G$30),$F$22)) -> 4600 | T23: =T22+K23 -> 0 | U23: =IF((K23<S23),IF((S23-K23)>V22,V22+K23+U22,S23+U22),(S23+U22)) -> 0 | V23: =IF((K23<S23),IF((S23-K23)>V22,0,V22-(S23-K23)),(V22+(K23-S23))) -> 0 | W23: =V23*$I$12/(5280*$I$10) -> 0 | X23: =IF(S23=0,60*V23,60*V23/S23) -> 0 | Y23: =(X23*$I$11*($J$16/60))+(X23*(1-$I$11)*($J$17/60)) -> 0 | Z23: =V23-O23 -> 0 | AA23: =W23-P23 -> 0 | AB23: 0 | AC23: =IF((X23-Q23)=0,IF(OR(AB22<>0,AB24<>0),0,NA()),X23) ->  | AD23: =Y23-R23 -> 0
C24: WORKZONE DETAILS | H24: 2 | I24: 02:00:00 | J24: 2 | K24: ='Step 2 - Facility Data Inputs'!E28 -> 0 | L24: 4600 | M24: =M23+K24 -> 0 | N24: =IF((K24<M24),IF((L24-K24)>O23,O23+K24+N23,L24+N23),(L24+N23)) -> 9200 | O24: =IF((K24<L24),IF((L24-K24)>O23,0,O23-(L24-K24)),(O23+(K24-L24))) -> 0 | P24: 0 | Q24: 0 | R24: =(Q24*$I$11*($J$16/60))+(Q24*(1-$I$11)*($J$17/60)) -> 0 | S24: 4600 | T24: =T23+K24 -> 0 | U24: =IF((K24<S24),IF((S24-K24)>V23,V23+K24+U23,S24+U23),(S24+U23)) -> 0 | V24: =IF((K24<S24),IF((S24-K24)>V23,0,V23-(S24-K24)),(V23+(K24-S24))) -> 0 | W24: 0 | X24: 0 | Y24: 0 | Z24: 0 | AA24: 0 | AB24: 0 | AD24: 0
C25: Work Description: | D25: ='Step 3 - WZ Analysis'!D10:F10 -> (Example: Pothole Patching - Close One Lane OR Joint Repair - Two Lanes Closed) | H25: 3 | I25: 03:00:00 | J25: 3 | K25: ='Step 2 - Facility Data Inputs'!E29 -> 0 | L25: 4600 | M25: 0 | N25: 13800 | O25: =IF((K25<L25),IF((L25-K25)>O24,0,O24-(L25-K25)),(O24+(K25-L25))) -> 0 | P25: 0 | Q25: 0 | R25: 0 | S25: 4600 | T25: 0 | U25: =IF((K25<S25),IF((S25-K25)>V24,V24+K25+U24,S25+U24),(S25+U24)) -> 0 | V25: =IF((K25<S25),IF((S25-K25)>V24,0,V24-(S25-K25)),(V24+(K25-S25))) -> 0 | W25: 0 | X25: =IF(S25=0,60*V25,60*V25/S25) -> 0 | Y25: 0 | Z25: 0 | AA25: 0 | AB25: 0 | AD25: 0 | AG25: Minutes
C26: Work Location: | D26: ='Step 3 - WZ Analysis'!D11:F11 -> No Work Zone (Use for Calibrating Existing Conditions) | G26: =VLOOKUP(D26,'Reference Sheet'!$S$2:$T$8,2) -> 538 | H26: 4 | I26: 04:00:00 | J26: 4 | K26: ='Step 2 - Facility Data Inputs'!E30 -> 0 | L26: 4600 | M26: 0 | N26: 18400 | O26: =IF((K26<L26),IF((L26-K26)>O25,0,O25-(L26-K26)),(O25+(K26-L26))) -> 0 | P26: 0 | Q26: 0 | R26: 0 | S26: 4600 | T26: 0 | U26: 0 | V26: =IF((K26<S26),IF((S26-K26)>V25,0,V25-(S26-K26)),(V25+(K26-S26))) -> 0 | W26: 0 | X26: 0 | Y26: 0 | Z26: 0 | AA26: 0 | AB26: 0 | AD26: 0 | AF26: MAX DELAY (minutes) | AG26: =MAX(X22:X45) -> 0
C27: Travel Lane Width (ft): | D27: ='Step 3 - WZ Analysis'!D12:F12 -> > 11.5 | G27: =VLOOKUP(D27,'Reference Sheet'!$V$2:$W$4,2) -> 1 | H27: 5 | I27: 05:00:00 | J27: 5 | K27: ='Step 2 - Facility Data Inputs'!E31 -> 0 | L27: 4600 | M27: =M26+K27 -> 0 | N27: 23000 | O27: 0 | P27: 0 | Q27: 0 | R27: 0 | S27: 4600 | T27: 0 | U27: 0 | V27: =IF((K27<S27),IF((S27-K27)>V26,0,V26-(S27-K27)),(V26+(K27-S27))) -> 0 | W27: 0 | X27: =IF(S27=0,60*V27,60*V27/S27) -> 0 | Y27: 0 | Z27: 0 | AA27: 0 | AB27: 0 | AD27: 0
C28: Number of Lanes Open: | D28: ='Step 3 - WZ Analysis'!D13 -> 1 | H28: 6 | I28: 06:00:00 | J28: 6 | K28: ='Step 2 - Facility Data Inputs'!E32 -> 0 | L28: 4600 | M28: =M27+K28 -> 0 | N28: 27600 | O28: 0 | P28: 0 | Q28: 0 | R28: 0 | S28: 4600 | T28: 0 | U28: 0 | V28: =IF((K28<S28),IF((S28-K28)>V27,0,V27-(S28-K28)),(V27+(K28-S28))) -> 0 | W28: 0 | X28: 0 | Y28: 0 | Z28: 0 | AA28: 0 | AB28: 0 | AD28: 0 | AF28: AVE DELAY (minutes) | AG28: =(SUM(V22:V45)/T45)*60 -> 
C29: ESTIMATED Work Zone Capacity (pc/h): | D29: =IF(G26=538,D22,IF(VLOOKUP((G26+G27),'HCM 2010 Program'!$C$3:$H$20,6)>(D22),D22,VLOOKUP((G26+G27),'HCM 2010 Program'!$C$3:$H$20,6))) -> 2300 | E29: capacity all wz lanes | F29: =MIN((D29*D28),F22) -> 2300 | G29: cell below in use | H29: 7 | I29: 07:00:00 | J29: 7 | K29: ='Step 2 - Facility Data Inputs'!E33 -> 0 | L29: 4600 | M29: =M28+K29 -> 0 | N29: 32200 | O29: 0 | P29: 0 | Q29: 0 | R29: 0 | S29: 4600 | T29: 0 | U29: 0 | V29: 0 | W29: 0 | X29: 0 | Y29: 0 | Z29: 0 | AA29: 0 | AB29: 0 | AD29: 0
C30: USER DEFINED Work Zone Capacity (pc/h): | E30: ='Step 3 - WZ Analysis'!E15 -> 0 | G30: =IF('Step 3 - WZ Analysis'!E15="","",'Step 3 - WZ Analysis'!E15) ->  | H30: 8 | I30: 08:00:00 | J30: 8 | K30: ='Step 2 - Facility Data Inputs'!E34 -> 0 | L30: 4600 | M30: =M29+K30 -> 0 | N30: 36800 | O30: 0 | P30: 0 | Q30: 0 | R30: 0 | S30: 4600 | T30: 0 | U30: 0 | V30: 0 | W30: 0 | X30: 0 | Y30: 0 | Z30: 0 | AA30: 0 | AB30: 0 | AD30: 0
C31: Start Time: | D31: ='Step 3 - WZ Analysis'!D16:F16 -> 00:00:00 | G31: =VLOOKUP('Step 3 - WZ Analysis'!D16,'WZ Analysis (Worksheet)'!$I$22:$J$45,2) -> 0 | H31: 9 | I31: 09:00:00 | J31: 9 | K31: ='Step 2 - Facility Data Inputs'!E35 -> 0 | L31: 4600 | M31: =M30+K31 -> 0 | N31: 41400 | O31: 0 | P31: 0 | Q31: 0 | R31: 0 | S31: 4600 | T31: 0 | U31: 0 | V31: 0 | W31: 0 | X31: 0 | Y31: 0 | Z31: 0 | AA31: 0 | AB31: 0 | AD31: 0 | AF31: COST ($) | AG31: =Z46 -> 0
C32: End Time: | D32: ='Step 3 - WZ Analysis'!D17:F17 -> 00:00:00 | G32: =VLOOKUP('Step 3 - WZ Analysis'!D17,'WZ Analysis (Worksheet)'!$I$22:$J$45,2) -> 0 | H32: 10 | I32: 10:00:00 | J32: 10 | K32: ='Step 2 - Facility Data Inputs'!E36 -> 0 | L32: 4600 | M32: 0 | N32: 46000 | O32: =IF((K32<L32),IF((L32-K32)>O31,0,O31-(L32-K32)),(O31+(K32-L32))) -> 0 | P32: 0 | Q32: 0 | R32: 0 | S32: 4600 | T32: 0 | U32: 0 | V32: 0 | W32: 0 | X32: 0 | Y32: 0 | Z32: 0 | AA32: 0 | AB32: 0 | AD32: 0
C33: Duration of closure (hrs): | D33: ='Step 3 - WZ Analysis'!D18:F18 -> 0 | H33: 11 | I33: 11:00:00 | J33: 11 | K33: ='Step 2 - Facility Data Inputs'!E37 -> 0 | L33: 4600 | M33: 0 | N33: 50600 | O33: 0 | P33: 0 | Q33: 0 | R33: 0 | S33: 4600 | T33: 0 | U33: 0 | V33: 0 | W33: 0 | X33: 0 | Y33: 0 | Z33: 0 | AA33: 0 | AB33: 0 | AD33: 0 | AF33: MAX QUEUE LENGTH (miles) | AG33: =W46 -> 0
H34: 12 | I34: 12:00:00 | J34: 12 | K34: ='Step 2 - Facility Data Inputs'!E38 -> 0 | L34: 4600 | M34: 0 | N34: 55200 | O34: 0 | P34: 0 | Q34: 0 | R34: 0 | S34: 4600 | T34: 0 | U34: 0 | V34: 0 | W34: 0 | X34: 0 | Y34: 0 | Z34: 0 | AA34: 0 | AB34: 0 | AD34: 0
C35: RESULTS | H35: 13 | I35: 13:00:00 | J35: 13 | K35: ='Step 2 - Facility Data Inputs'!E39 -> 0 | L35: 4600 | M35: 0 | N35: 59800 | O35: 0 | P35: 0 | Q35: 0 | R35: 0 | S35: 4600 | T35: 0 | U35: 0 | V35: 0 | W35: 0 | X35: 0 | Y35: 0 | Z35: 0 | AA35: 0 | AB35: 0 | AD35: 0 | AF35: Hours per day of queuing | AG35: =24-COUNTIF(AA22:AA45,0) -> 0
C36: Measure of Effectiveness | D36: Base Conditions | E36: Work Zone | F36: Total | H36: 14 | I36: 14:00:00 | J36: 14 | K36: ='Step 2 - Facility Data Inputs'!E40 -> 0 | L36: 4600 | M36: 0 | N36: 64400 | O36: 0 | P36: 0 | Q36: 0 | R36: 0 | S36: 4600 | T36: 0 | U36: 0 | V36: 0 | W36: 0 | X36: 0 | Y36: 0 | Z36: 0 | AA36: 0 | AB36: 0 | AD36: 0
C37: Max Queue Length (mi): | D37: ='Step 3 - WZ Analysis'!D22 -> 0 | E37: ='Step 3 - WZ Analysis'!E22 -> 0 | F37: ='Step 3 - WZ Analysis'!F22 -> 0 | H37: 15 | I37: 15:00:00 | J37: 15 | K37: ='Step 2 - Facility Data Inputs'!E41 -> 0 | L37: 4600 | M37: 0 | N37: 69000 | O37: 0 | P37: 0 | Q37: 0 | R37: 0 | S37: 4600 | T37: 0 | U37: 0 | V37: 0 | W37: 0 | X37: 0 | Y37: 0 | Z37: 0 | AA37: 0 | AB37: 0 | AD37: 0
C38: Max Delay (minutes): | D38: ='Step 3 - WZ Analysis'!D23 -> 0 | E38: ='Step 3 - WZ Analysis'!E23 -> 0 | F38: ='Step 3 - WZ Analysis'!F23 -> 0 | H38: 16 | I38: 16:00:00 | J38: 16 | K38: ='Step 2 - Facility Data Inputs'!E42 -> 0 | L38: 4600 | M38: 0 | N38: 73600 | O38: 0 | P38: 0 | Q38: 0 | R38: 0 | S38: 4600 | T38: 0 | U38: 0 | V38: 0 | W38: 0 | X38: 0 | Y38: 0 | Z38: 0 | AA38: 0 | AB38: 0 | AD38: 0
C39: Cost ($): | D39: ='Step 3 - WZ Analysis'!D24 -> 0 | E39: ='Step 3 - WZ Analysis'!E24 -> 0 | F39: ='Step 3 - WZ Analysis'!F24 -> 0 | H39: 17 | I39: 17:00:00 | J39: 17 | K39: ='Step 2 - Facility Data Inputs'!E43 -> 0 | L39: 4600 | M39: 0 | N39: 78200 | O39: 0 | P39: 0 | Q39: 0 | R39: 0 | S39: 4600 | T39: 0 | U39: 0 | V39: 0 | W39: 0 | X39: 0 | Y39: 0 | Z39: 0 | AA39: 0 | AB39: 0 | AD39: 0
H40: 18 | I40: 18:00:00 | J40: 18 | K40: ='Step 2 - Facility Data Inputs'!E44 -> 0 | L40: 4600 | M40: 0 | N40: 82800 | O40: 0 | P40: 0 | Q40: 0 | R40: 0 | S40: 4600 | T40: 0 | U40: 0 | V40: 0 | W40: 0 | X40: 0 | Y40: 0 | Z40: 0 | AA40: 0 | AB40: 0 | AD40: 0
H41: 19 | I41: 19:00:00 | J41: 19 | K41: ='Step 2 - Facility Data Inputs'!E45 -> 0 | L41: 4600 | M41: 0 | N41: 87400 | O41: 0 | P41: 0 | Q41: 0 | R41: 0 | S41: 4600 | T41: 0 | U41: 0 | V41: 0 | W41: 0 | X41: 0 | Y41: 0 | Z41: 0 | AA41: 0 | AB41: 0 | AD41: 0
H42: 20 | I42: 20:00:00 | J42: 20 | K42: ='Step 2 - Facility Data Inputs'!E46 -> 0 | L42: 4600 | M42: 0 | N42: 92000 | O42: 0 | P42: 0 | Q42: 0 | R42: 0 | S42: 4600 | T42: 0 | U42: 0 | V42: 0 | W42: 0 | X42: 0 | Y42: 0 | Z42: 0 | AA42: 0 | AB42: 0 | AD42: 0
H43: 21 | I43: 21:00:00 | J43: 21 | K43: ='Step 2 - Facility Data Inputs'!E47 -> 0 | L43: 4600 | M43: 0 | N43: 96600 | O43: 0 | P43: 0 | Q43: 0 | R43: 0 | S43: 4600 | T43: 0 | U43: 0 | V43: 0 | W43: 0 | X43: 0 | Y43: 0 | Z43: 0 | AA43: 0 | AB43: 0 | AD43: 0
H44: 22 | I44: 22:00:00 | J44: 22 | K44: ='Step 2 - Facility Data Inputs'!E48 -> 0 | L44: 4600 | M44: 0 | N44: 101200 | O44: 0 | P44: 0 | Q44: 0 | R44: 0 | S44: 4600 | T44: 0 | U44: 0 | V44: 0 | W44: 0 | X44: 0 | Y44: 0 | Z44: 0 | AA44: 0 | AB44: 0 | AD44: 0
H45: 23 | I45: 23:00:00 | J45: 23 | K45: ='Step 2 - Facility Data Inputs'!E49 -> 0 | L45: 4600 | M45: 0 | N45: 105800 | O45: 0 | P45: 0 | Q45: 0 | R45: 0 | S45: 4600 | T45: 0 | U45: 0 | V45: 0 | W45: 0 | X45: 0 | Y45: 0 | Z45: 0 | AA45: 0 | AB45: 0 | AC45: =IF((X45-Q45)=0,IF(OR(AB44<>0,AB22<>0),0,NA()),X45) ->  | AD45: 0
P46: =MAX(P22:P45) -> 0 | Q46: =MAX(Q22:Q45) -> 0 | R46: =(SUM(R22:R45)) -> 0 | W46: =MAX(W22:W45) -> 0 | X46: =MAX(X22:X45) -> 0 | Y46: =ROUND(SUM(Y22:Y45),0) -> 0 | Z46: =SUM(Z22:Z45) -> 0 | AA46: =MAX(AA22:AA45) -> 0 | AB46: =MAX(AB22:AB45) -> 0 | AD46: =ROUND(SUM(AD22:AD45),0) -> 0
R47: =IF(R46<100,ROUND(R46,0),IF(R46<1000,ROUND(R46,-1),ROUND(R46,-2))) -> 0 | Y47: =AD47+R47 -> 0 | AD47: =IF(AD46<100,ROUND(AD46,0),IF(AD46<1000,ROUND(AD46,-1),ROUND(AD46,-2))) -> 0
A49: ='Step 2 - Facility Data Inputs'!F22 -> Monday | H49: ='Step 2 - Facility Data Inputs'!F22 -> Monday | I49: TIME | K49: DEMAND | L49: Base Capacity | M49: Base Arrivals | N49: Base Departures | O49: Base Queued Vehicles | P49: Base Queue | Q49: Base Delay | R49: Base User Cost | S49: CAPACITY | T49: TOTAL ARRIVALS | U49: TOTAL DEPARTURES | V49: QUEUED VEHICLES | W49: QUEUE LENGTH | X49: Total Delay | Y49: User cost | Z49: WZ QUEUED VEHICLES | AA49: WZ Queue | AB49: WZ Delay | AC49: WZ Delay for Graph | AD49: WZ User Cost
C50: BASE CONDITIONS | J50: Unmet Demand from Previous Day -> | K50: 0 | AF50: Start Time (24 hour clock) | AG50: =G60 -> 0
C51: Open Lane Capacity (pc/h/lane): | D51: ='Step 3 - WZ Analysis'!D29 -> 2300 | E51: Base Conditions Capacity (Total for ALL Lanes): | F51: =D51*$I$10 -> 4600 | H51: 0 | I51: 00:00:00 | J51: 0 | K51: ='Step 2 - Facility Data Inputs'!F26+K50 -> 0 | L51: =$F$51 -> 4600 | M51: =K51 -> 0 | N51: =MIN(K51,L51) -> 0 | O51: =IF((K51-L51)<0,0,K51-L51) -> 0 | P51: =O51*$I$12/(5280*$I$10) -> 0 | Q51: =60*O51/L51 -> 0 | R51: =(Q51*$I$11*($J$16/60))+(Q51*(1-$I$11)*($J$17/60)) -> 0 | S51: =IF($AG$54-H52>=0,IF($G$59="",$F$58,$G$59),IF(AND(H51>=$AG$50,H51<$AG$50+$AG$51),IF($G$59="",$F$58,$G$59),$F$51)) -> 4600 | T51: =K51 -> 0 | U51: =MIN(K51,S51) -> 0 | V51: =IF((K51-S51)<0,0,K51-S51) -> 0 | W51: =V51*$I$12/(5280*$I$10) -> 0 | X51: =IF(S51=0,60*V51,60*V51/S51) -> 0 | Y51: =(X51*$I$11*($J$16/60))+(X51*(1-$I$11)*($J$17/60)) -> 0 | Z51: =V51-O51 -> 0 | AA51: =W51-P51 -> 0 | AB51: =X51-Q51 -> 0 | AC51: =IF((X51-Q51)=0,IF(OR(AB74<>0,AB52<>0),0,NA()),X51) ->  | AD51: =Y51-R51 -> 0 | AF51: Duration of closure (hrs) | AG51: ='Step 3 - WZ Analysis'!D40 -> 0
H52: 1 | I52: 01:00:00 | J52: 1 | K52: ='Step 2 - Facility Data Inputs'!F27 -> 0 | L52: =$F$51 -> 4600 | M52: =M51+K52 -> 0 | N52: =IF((K52<M52),IF((L52-K52)>O51,O51+K52+N51,L52+N51),(L52+N51)) -> 4600 | O52: =IF((K52<L52),IF((L52-K52)>O51,0,O51-(L52-K52)),(O51+(K52-L52))) -> 0 | P52: =O52*$I$12/(5280*$I$10) -> 0 | Q52: =60*O52/L52 -> 0 | R52: =(Q52*$I$11*($J$16/60))+(Q52*(1-$I$11)*($J$17/60)) -> 0 | S52: =IF($AG$54-H53>=0,IF($G$59="",$F$58,$G$59),IF(AND(H52>=$AG$50,H52<$AG$50+$AG$51),IF($G$59="",$F$58,$G$59),$F$51)) -> 4600 | T52: =T51+K52 -> 0 | U52: =IF((K52<S52),IF((S52-K52)>V51,V51+K52+U51,S52+U51),(S52+U51)) -> 0 | V52: =IF((K52<S52),IF((S52-K52)>V51,0,V51-(S52-K52)),(V51+(K52-S52))) -> 0 | W52: =V52*$I$12/(5280*$I$10) -> 0 | X52: =IF(S52=0,60*V52,60*V52/S52) -> 0 | Y52: =(X52*$I$11*($J$16/60))+(X52*(1-$I$11)*($J$17/60)) -> 0 | Z52: =V52-O52 -> 0 | AA52: =W52-P52 -> 0 | AB52: =X52-Q52 -> 0 | AC52: =IF((X52-Q52)=0,IF(OR(AB51<>0,AB53<>0),0,NA()),X52) ->  | AD52: =Y52-R52 -> 0
C53: WORKZONE DETAILS | H53: 2 | I53: 02:00:00 | J53: 2 | K53: ='Step 2 - Facility Data Inputs'!F28 -> 0 | L53: 4600 | M53: =M52+K53 -> 0 | N53: =IF((K53<M53),IF((L53-K53)>O52,O52+K53+N52,L53+N52),(L53+N52)) -> 9200 | O53: =IF((K53<L53),IF((L53-K53)>O52,0,O52-(L53-K53)),(O52+(K53-L53))) -> 0 | P53: 0 | Q53: 0 | R53: 0 | S53: 4600 | T53: =T52+K53 -> 0 | U53: =IF((K53<S53),IF((S53-K53)>V52,V52+K53+U52,S53+U52),(S53+U52)) -> 0 | V53: =IF((K53<S53),IF((S53-K53)>V52,0,V52-(S53-K53)),(V52+(K53-S53))) -> 0 | W53: =V53*$I$12/(5280*$I$10) -> 0 | X53: 0 | Y53: 0 | Z53: 0 | AA53: 0 | AB53: 0 | AC53: =IF((X53-Q53)=0,IF(OR(AB52<>0,AB54<>0),0,NA()),X53) ->  | AD53: =Y53-R53 -> 0 | AF53: count | AG53: =COUNT(H51:H74) -> 24
C54: Work Description: | D54: ='Step 3 - WZ Analysis'!D32:F32 -> (Example: Pothole Patching - Close One Lane OR Joint Repair - Two Lanes Closed) | H54: 3 | I54: 03:00:00 | J54: 3 | K54: ='Step 2 - Facility Data Inputs'!F29 -> 0 | L54: 4600 | M54: 0 | N54: =IF((K54<M54),IF((L54-K54)>O53,O53+K54+N53,L54+N53),(L54+N53)) -> 13800 | O54: 0 | P54: 0 | Q54: 0 | R54: 0 | S54: 4600 | T54: 0 | U54: 0 | V54: 0 | W54: 0 | X54: =IF(S54=0,60*V54,60*V54/S54) -> 0 | Y54: 0 | Z54: 0 | AA54: 0 | AB54: 0 | AD54: 0 | AF54: short | AG54: =AG50+AG51-AG53 -> -24
C55: Work Location: | D55: ='Step 3 - WZ Analysis'!D33:F33 -> No Work Zone (Use for Calibrating Existing Conditions) | G55: =VLOOKUP(D55,'Reference Sheet'!$S$2:$T$8,2) -> 538 | H55: 4 | I55: 04:00:00 | J55: 4 | K55: ='Step 2 - Facility Data Inputs'!F30 -> 0 | L55: 4600 | M55: 0 | N55: 18400 | O55: 0 | P55: 0 | Q55: 0 | R55: 0 | S55: 4600 | T55: 0 | U55: 0 | V55: 0 | W55: 0 | X55: 0 | Y55: 0 | Z55: 0 | AA55: 0 | AB55: 0 | AD55: 0
C56: Travel Lane Width (ft): | D56: ='Step 3 - WZ Analysis'!D34:F34 -> > 11.5 | G56: =VLOOKUP(D56,'Reference Sheet'!$V$2:$W$4,2) -> 1 | H56: 5 | I56: 05:00:00 | J56: 5 | K56: ='Step 2 - Facility Data Inputs'!F31 -> 0 | L56: 4600 | M56: 0 | N56: 23000 | O56: 0 | P56: 0 | Q56: 0 | R56: 0 | S56: 4600 | T56: 0 | U56: 0 | V56: 0 | W56: 0 | X56: 0 | Y56: 0 | Z56: 0 | AA56: 0 | AB56: 0 | AD56: 0
C57: Number of Lanes Open: | D57: ='Step 3 - WZ Analysis'!D35:F35 -> 1 | H57: 6 | I57: 06:00:00 | J57: 6 | K57: ='Step 2 - Facility Data Inputs'!F32 -> 0 | L57: 4600 | M57: 0 | N57: 27600 | O57: 0 | P57: 0 | Q57: 0 | R57: 0 | S57: 4600 | T57: 0 | U57: 0 | V57: 0 | W57: 0 | X57: 0 | Y57: 0 | Z57: =V57-O57 -> 0 | AA57: 0 | AB57: 0 | AD57: 0 | AF57: MAX DELAY (minutes) | AG57: =MAX(X51:X74) -> 0
C58: ESTIMATED Work Zone Capacity (pc/h): | D58: =IF(G55=538,D51,IF(VLOOKUP((G55+G56),'HCM 2010 Program'!$C$3:$H$20,6)>(D51),D51,VLOOKUP((G55+G56),'HCM 2010 Program'!$C$3:$H$20,6))) -> 2300 | E58: Capacity all wz lanes | F58: =MIN((D58*D57),F51) -> 2300 | G58: cell below in use | H58: 7 | I58: 07:00:00 | J58: 7 | K58: ='Step 2 - Facility Data Inputs'!F33 -> 0 | L58: 4600 | M58: 0 | N58: 32200 | O58: 0 | P58: 0 | Q58: 0 | R58: 0 | S58: 4600 | T58: 0 | U58: 0 | V58: 0 | W58: 0 | X58: 0 | Y58: 0 | Z58: 0 | AA58: 0 | AB58: 0 | AD58: 0
C59: USER DEFINED Work Zone Capacity (pc/h): | E59: ='Step 3 - WZ Analysis'!E37 -> 0 | G59: =IF('Step 3 - WZ Analysis'!E37="","",'Step 3 - WZ Analysis'!E37) ->  | H59: 8 | I59: 08:00:00 | J59: 8 | K59: ='Step 2 - Facility Data Inputs'!F34 -> 0 | L59: 4600 | M59: 0 | N59: 36800 | O59: 0 | P59: 0 | Q59: 0 | R59: 0 | S59: 4600 | T59: 0 | U59: 0 | V59: 0 | W59: 0 | X59: 0 | Y59: 0 | Z59: 0 | AA59: 0 | AB59: 0 | AD59: 0 | AF59: AVE DELAY (minutes) | AG59: =(SUM(V51:V74)/T74)*60 -> 
C60: Start Time: | D60: ='Step 3 - WZ Analysis'!D38:F38 -> 00:00:00 | G60: =VLOOKUP('Step 3 - WZ Analysis'!D38,'WZ Analysis (Worksheet)'!$I$22:$J$45,2) -> 0 | H60: 9 | I60: 09:00:00 | J60: 9 | K60: ='Step 2 - Facility Data Inputs'!F35 -> 0 | L60: 4600 | M60: 0 | N60: 41400 | O60: 0 | P60: 0 | Q60: 0 | R60: 0 | S60: 4600 | T60: 0 | U60: 0 | V60: 0 | W60: 0 | X60: 0 | Y60: 0 | Z60: 0 | AA60: 0 | AB60: 0 | AD60: 0
C61: End Time: | D61: ='Step 3 - WZ Analysis'!D39:F39 -> 00:00:00 | G61: =VLOOKUP('Step 3 - WZ Analysis'!D39,'WZ Analysis (Worksheet)'!$I$22:$J$45,2) -> 0 | H61: 10 | I61: 10:00:00 | J61: 10 | K61: ='Step 2 - Facility Data Inputs'!F36 -> 0 | L61: 4600 | M61: 0 | N61: 46000 | O61: 0 | P61: 0 | Q61: 0 | R61: 0 | S61: 4600 | T61: 0 | U61: 0 | V61: 0 | W61: 0 | X61: 0 | Y61: 0 | Z61: 0 | AA61: 0 | AB61: 0 | AD61: 0 | AF61: COST ($) | AG61: =Z75 -> 0
C62: Duration of closure (hrs): | D62: ='Step 3 - WZ Analysis'!D40:F40 -> 0 | H62: 11 | I62: 11:00:00 | J62: 11 | K62: ='Step 2 - Facility Data Inputs'!F37 -> 0 | L62: 4600 | M62: 0 | N62: 50600 | O62: 0 | P62: 0 | Q62: 0 | R62: 0 | S62: 4600 | T62: 0 | U62: 0 | V62: 0 | W62: 0 | X62: 0 | Y62: 0 | Z62: 0 | AA62: 0 | AB62: 0 | AD62: 0
H63: 12 | I63: 12:00:00 | J63: 12 | K63: ='Step 2 - Facility Data Inputs'!F38 -> 0 | L63: 4600 | M63: 0 | N63: 55200 | O63: 0 | P63: 0 | Q63: 0 | R63: 0 | S63: 4600 | T63: 0 | U63: 0 | V63: 0 | W63: 0 | X63: 0 | Y63: 0 | Z63: 0 | AA63: 0 | AB63: 0 | AD63: 0 | AF63: MAX QUEUE LENGTH (miles) | AG63: =W75 -> 0
C64: RESULTS | H64: 13 | I64: 13:00:00 | J64: 13 | K64: ='Step 2 - Facility Data Inputs'!F39 -> 0 | L64: 4600 | M64: 0 | N64: 59800 | O64: 0 | P64: 0 | Q64: 0 | R64: 0 | S64: 4600 | T64: 0 | U64: 0 | V64: 0 | W64: 0 | X64: 0 | Y64: 0 | Z64: 0 | AA64: 0 | AB64: 0 | AD64: 0
C65: Measure of Effectiveness | D65: Base Conditions | E65: Work Zone | F65: Total | H65: 14 | I65: 14:00:00 | J65: 14 | K65: ='Step 2 - Facility Data Inputs'!F40 -> 0 | L65: 4600 | M65: 0 | N65: 64400 | O65: 0 | P65: 0 | Q65: 0 | R65: 0 | S65: 4600 | T65: 0 | U65: 0 | V65: 0 | W65: 0 | X65: 0 | Y65: 0 | Z65: 0 | AA65: 0 | AB65: 0 | AD65: 0 | AF65: Hours per day of queuing | AG65: =24-COUNTIF(AA52:AA75,0) -> 0
C66: Max Queue Length (mi): | D66: ='WZ Analysis (Worksheet)'!P91 -> 0 | E66: ='WZ Analysis (Worksheet)'!AA91 -> 0 | F66: ='WZ Analysis (Worksheet)'!W91 -> 0 | H66: 15 | I66: 15:00:00 | J66: 15 | K66: ='Step 2 - Facility Data Inputs'!F41 -> 0 | L66: 4600 | M66: 0 | N66: 69000 | O66: 0 | P66: 0 | Q66: 0 | R66: 0 | S66: 4600 | T66: 0 | U66: 0 | V66: 0 | W66: 0 | X66: 0 | Y66: 0 | Z66: 0 | AA66: 0 | AB66: 0 | AD66: 0
C67: Max Delay (minutes): | D67: ='WZ Analysis (Worksheet)'!Q91 -> 0 | E67: ='WZ Analysis (Worksheet)'!AB91 -> 0 | F67: ='WZ Analysis (Worksheet)'!X91 -> 0 | H67: 16 | I67: 16:00:00 | J67: 16 | K67: ='Step 2 - Facility Data Inputs'!F42 -> 0 | L67: 4600 | M67: 0 | N67: 73600 | O67: 0 | P67: 0 | Q67: 0 | R67: 0 | S67: 4600 | T67: 0 | U67: 0 | V67: 0 | W67: 0 | X67: 0 | Y67: 0 | Z67: 0 | AA67: 0 | AB67: 0 | AD67: 0
C68: Cost ($): | D68: ='WZ Analysis (Worksheet)'!R92 -> 0 | E68: ='WZ Analysis (Worksheet)'!AD92 -> 0 | F68: ='WZ Analysis (Worksheet)'!Y92 -> 0 | H68: 17 | I68: 17:00:00 | J68: 17 | K68: ='Step 2 - Facility Data Inputs'!F43 -> 0 | L68: 4600 | M68: 0 | N68: 78200 | O68: 0 | P68: 0 | Q68: 0 | R68: 0 | S68: 4600 | T68: 0 | U68: 0 | V68: 0 | W68: 0 | X68: 0 | Y68: 0 | Z68: 0 | AA68: 0 | AB68: 0 | AD68: 0
H69: 18 | I69: 18:00:00 | J69: 18 | K69: ='Step 2 - Facility Data Inputs'!F44 -> 0 | L69: 4600 | M69: 0 | N69: 82800 | O69: 0 | P69: 0 | Q69: 0 | R69: 0 | S69: 4600 | T69: 0 | U69: 0 | V69: 0 | W69: 0 | X69: 0 | Y69: 0 | Z69: 0 | AA69: 0 | AB69: 0 | AD69: 0
H70: 19 | I70: 19:00:00 | J70: 19 | K70: ='Step 2 - Facility Data Inputs'!F45 -> 0 | L70: 4600 | M70: 0 | N70: 87400 | O70: 0 | P70: 0 | Q70: 0 | R70: =(Q70*$I$11*($J$16/60))+(Q70*(1-$I$11)*($J$17/60)) -> 0 | S70: 4600 | T70: 0 | U70: =IF((K70<S70),IF((S70-K70)>V69,V69+K70+U69,S70+U69),(S70+U69)) -> 0 | V70: 0 | W70: 0 | X70: 0 | Y70: 0 | Z70: 0 | AA70: 0 | AB70: 0 | AD70: 0
H71: 20 | I71: 20:00:00 | J71: 20 | K71: ='Step 2 - Facility Data Inputs'!F46 -> 0 | L71: 4600 | M71: 0 | N71: 92000 | O71: 0 | P71: 0 | Q71: 0 | R71: 0 | S71: 4600 | T71: 0 | U71: 0 | V71: 0 | W71: 0 | X71: 0 | Y71: 0 | Z71: 0 | AA71: 0 | AB71: 0 | AD71: 0
H72: 21 | I72: 21:00:00 | J72: 21 | K72: ='Step 2 - Facility Data Inputs'!F47 -> 0 | L72: 4600 | M72: 0 | N72: 96600 | O72: 0 | P72: 0 | Q72: 0 | R72: 0 | S72: 4600 | T72: 0 | U72: 0 | V72: 0 | W72: 0 | X72: 0 | Y72: 0 | Z72: 0 | AA72: 0 | AB72: 0 | AD72: 0
H73: 22 | I73: 22:00:00 | J73: 22 | K73: ='Step 2 - Facility Data Inputs'!F48 -> 0 | L73: 4600 | M73: 0 | N73: 101200 | O73: 0 | P73: 0 | Q73: 0 | R73: =(Q73*$I$11*($J$16/60))+(Q73*(1-$I$11)*($J$17/60)) -> 0 | S73: 4600 | T73: 0 | U73: 0 | V73: 0 | W73: 0 | X73: 0 | Y73: =(X73*$I$11*($J$16/60))+(X73*(1-$I$11)*($J$17/60)) -> 0 | Z73: 0 | AA73: 0 | AB73: 0 | AD73: 0
H74: 23 | I74: 23:00:00 | J74: 23 | K74: ='Step 2 - Facility Data Inputs'!F49 -> 0 | L74: 4600 | M74: 0 | N74: 105800 | O74: 0 | P74: 0 | Q74: 0 | R74: 0 | S74: 4600 | T74: 0 | U74: 0 | V74: 0 | W74: 0 | X74: 0 | Y74: =((V74*X74)*$I$11*$J$16/(60))+((V74*X74)*(1-$I$11)*$J$17/(60)) -> 0 | Z74: 0 | AA74: 0 | AB74: 0 | AC74: =IF((X74-Q74)=0,IF(OR(AB73<>0,AB51<>0),0,NA()),X74) ->  | AD74: 0
P75: =MAX(P51:P74) -> 0 | Q75: =MAX(Q51:Q74) -> 0 | R75: =(SUM(R51:R74)) -> 0 | W75: =MAX(W51:W74) -> 0 | X75: =MAX(X51:X74) -> 0 | Y75: =ROUND(SUM(Y51:Y74),0) -> 0 | Z75: =SUM(Z51:Z74) -> 0 | AA75: =MAX(AA51:AA74) -> 0 | AB75: =MAX(AB51:AB74) -> 0 | AD75: =ROUND(SUM(AD51:AD74),0) -> 0
R76: =IF(R75<100,ROUND(R75,0),IF(R75<1000,ROUND(R75,-1),ROUND(R75,-2))) -> 0 | Y76: =AD76+R76 -> 0 | AD76: =IF(AD75<100,ROUND(AD75,0),IF(AD75<1000,ROUND(AD75,-1),ROUND(AD75,-2))) -> 0
A78: ='Step 2 - Facility Data Inputs'!G22 -> Tuesday | H78: ='Step 2 - Facility Data Inputs'!F52 -> 0 | I78: TIME | K78: DEMAND | L78: Base Capacity | M78: Base Arrivals | N78: Base Departures | O78: Base Queued Vehicles | P78: Base Queue | Q78: Base Delay | R78: Base User Cost | S78: CAPACITY | T78: TOTAL ARRIVALS | U78: TOTAL DEPARTURES | V78: QUEUED VEHICLES | W78: QUEUE LENGTH | X78: Total Delay | Y78: User cost | Z78: WZ QUEUED VEHICLES | AA78: WZ Queue | AB78: WZ Delay | AC78: WZ Delay for Graph | AD78: WZ User Cost
C79: BASE CONDITIONS | J79: Unmet Demand from Previous Day -> | K79: 0 | AF79: Start Time (24 hour clock) | AG79: =G89 -> 0
C80: Open Lane Capacity (pc/h/lane): | D80: ='Step 3 - WZ Analysis'!D51 -> 2300 | E80: Base Conditions Capacity (Total for ALL Lanes): | F80: =D80*$I$10 -> 4600 | H80: 0 | I80: 00:00:00 | J80: 0 | K80: ='Step 2 - Facility Data Inputs'!G26+K79 -> 0 | L80: =$F$80 -> 4600 | M80: =K80 -> 0 | N80: =MIN(K80,L80) -> 0 | O80: =IF((K80-L80)<0,0,K80-L80) -> 0 | P80: =O80*$I$12/(5280*$I$10) -> 0 | Q80: =60*O80/L80 -> 0 | R80: =(Q80*$I$11*($J$16/60))+(Q80*(1-$I$11)*($J$17/60)) -> 0 | S80: =IF($AG$83-H81>=0,IF($G$88="",$F$87,$G$88),IF(AND(H80>=$AG$79,H80<$AG$79+$AG$80),IF($G$88="",$F$87,$G$88),$F$80)) -> 4600 | T80: =K80 -> 0 | U80: =MIN(K80,S80) -> 0 | V80: =IF((K80-S80)<0,0,K80-S80) -> 0 | W80: =V80*$I$12/(5280*$I$10) -> 0 | X80: =IF(S80=0,60*V80,60*V80/S80) -> 0 | Y80: =(X80*$I$11*($J$16/60))+(X80*(1-$I$11)*($J$17/60)) -> 0 | Z80: =V80-O80 -> 0 | AA80: =W80-P80 -> 0 | AB80: =X80-Q80 -> 0 | AC80: =IF((X80-Q80)=0,IF(OR(AB103<>0,AB81<>0),0,NA()),X80) ->  | AD80: =Y80-R80 -> 0 | AF80: Duration of closure (hrs) | AG80: ='Step 3 - WZ Analysis'!D62 -> 0
H81: 1 | I81: 01:00:00 | J81: 1 | K81: ='Step 2 - Facility Data Inputs'!G27 -> 0 | L81: =$F$80 -> 4600 | M81: =M80+K81 -> 0 | N81: =IF((K81<M81),IF((L81-K81)>O80,O80+K81+N80,L81+N80),(L81+N80)) -> 4600 | O81: =IF((K81<L81),IF((L81-K81)>O80,0,O80-(L81-K81)),(O80+(K81-L81))) -> 0 | P81: =O81*$I$12/(5280*$I$10) -> 0 | Q81: =60*O81/L81 -> 0 | R81: =(Q81*$I$11*($J$16/60))+(Q81*(1-$I$11)*($J$17/60)) -> 0 | S81: =IF($AG$83-H82>=0,IF($G$88="",$F$87,$G$88),IF(AND(H81>=$AG$79,H81<$AG$79+$AG$80),IF($G$88="",$F$87,$G$88),$F$80)) -> 4600 | T81: =T80+K81 -> 0 | U81: =IF((K81<S81),IF((S81-K81)>V80,V80+K81+U80,S81+U80),(S81+U80)) -> 0 | V81: =IF((K81<S81),IF((S81-K81)>V80,0,V80-(S81-K81)),(V80+(K81-S81))) -> 0 | W81: =V81*$I$12/(5280*$I$10) -> 0 | X81: =IF(S81=0,60*V81,60*V81/S81) -> 0 | Y81: =(X81*$I$11*($J$16/60))+(X81*(1-$I$11)*($J$17/60)) -> 0 | Z81: =V81-O81 -> 0 | AA81: =W81-P81 -> 0 | AB81: =X81-Q81 -> 0 | AC81: =IF((X81-Q81)=0,IF(OR(AB80<>0,AB82<>0),0,NA()),X81) ->  | AD81: =Y81-R81 -> 0
C82: WORKZONE DETAILS | H82: 2 | I82: 02:00:00 | J82: 2 | K82: ='Step 2 - Facility Data Inputs'!G28 -> 0 | L82: 4600 | M82: =M81+K82 -> 0 | N82: =IF((K82<M82),IF((L82-K82)>O81,O81+K82+N81,L82+N81),(L82+N81)) -> 9200 | O82: =IF((K82<L82),IF((L82-K82)>O81,0,O81-(L82-K82)),(O81+(K82-L82))) -> 0 | P82: 0 | Q82: 0 | R82: 0 | S82: 4600 | T82: =T81+K82 -> 0 | U82: =IF((K82<S82),IF((S82-K82)>V81,V81+K82+U81,S82+U81),(S82+U81)) -> 0 | V82: =IF((K82<S82),IF((S82-K82)>V81,0,V81-(S82-K82)),(V81+(K82-S82))) -> 0 | W82: 0 | X82: 0 | Y82: 0 | Z82: 0 | AA82: 0 | AB82: 0 | AC82: =IF((X82-Q82)=0,IF(OR(AB81<>0,AB83<>0),0,NA()),X82) ->  | AD82: =Y82-R82 -> 0 | AF82: count | AG82: =COUNT(H80:H103) -> 24
C83: Work Description: | D83: ='Step 3 - WZ Analysis'!D54:F54 -> (Example: Pothole Patching - Close One Lane OR Joint Repair - Two Lanes Closed) | H83: 3 | I83: 03:00:00 | J83: 3 | K83: ='Step 2 - Facility Data Inputs'!G29 -> 0 | L83: 4600 | M83: 0 | N83: =IF((K83<M83),IF((L83-K83)>O82,O82+K83+N82,L83+N82),(L83+N82)) -> 13800 | O83: 0 | P83: 0 | Q83: 0 | R83: 0 | S83: 4600 | T83: 0 | U83: 0 | V83: 0 | W83: 0 | X83: =IF(S83=0,60*V83,60*V83/S83) -> 0 | Y83: 0 | Z83: 0 | AA83: 0 | AB83: 0 | AC83: =IF((X83-Q83)=0,IF(OR(AB82<>0,AB84<>0),0,NA()),X83) ->  | AD83: =Y83-R83 -> 0 | AF83: short | AG83: =AG79+AG80-AG82 -> -24
C84: Work Location: | D84: ='Step 3 - WZ Analysis'!D55:F55 -> No Work Zone (Use for Calibrating Existing Conditions) | G84: =VLOOKUP(D84,'Reference Sheet'!$S$2:$T$8,2) -> 538 | H84: 4 | I84: 04:00:00 | J84: 4 | K84: ='Step 2 - Facility Data Inputs'!G30 -> 0 | L84: 4600 | M84: 0 | N84: =IF((K84<M84),IF((L84-K84)>O83,O83+K84+N83,L84+N83),(L84+N83)) -> 18400 | O84: 0 | P84: 0 | Q84: 0 | R84: 0 | S84: 4600 | T84: 0 | U84: 0 | V84: 0 | W84: 0 | X84: 0 | Y84: 0 | Z84: 0 | AA84: 0 | AB84: 0 | AD84: 0
C85: Travel Lane Width (ft): | D85: ='Step 3 - WZ Analysis'!D56:F56 -> > 11.5 | G85: =VLOOKUP(D85,'Reference Sheet'!$V$2:$W$4,2) -> 1 | H85: 5 | I85: 05:00:00 | J85: 5 | K85: ='Step 2 - Facility Data Inputs'!G31 -> 0 | L85: 4600 | M85: 0 | N85: 23000 | O85: 0 | P85: 0 | Q85: 0 | R85: 0 | S85: 4600 | T85: 0 | U85: 0 | V85: 0 | W85: 0 | X85: 0 | Y85: 0 | Z85: 0 | AA85: 0 | AB85: 0 | AD85: 0
C86: Number of Lanes Open: | D86: ='Step 3 - WZ Analysis'!D57:F57 -> 1 | H86: 6 | I86: 06:00:00 | J86: 6 | K86: ='Step 2 - Facility Data Inputs'!G32 -> 0 | L86: 4600 | M86: 0 | N86: 27600 | O86: 0 | P86: 0 | Q86: 0 | R86: 0 | S86: 4600 | T86: 0 | U86: 0 | V86: 0 | W86: 0 | X86: 0 | Y86: 0 | Z86: =V86-O86 -> 0 | AA86: 0 | AB86: 0 | AD86: 0 | AF86: MAX DELAY (minutes) | AG86: =MAX(X80:X103) -> 0
C87: ESTIMATED Work Zone Capacity (pc/h): | D87: =IF(G84=538,D80,IF(VLOOKUP((G84+G85),'HCM 2010 Program'!$C$3:$H$20,6)>(D80),D80,VLOOKUP((G84+G85),'HCM 2010 Program'!$C$3:$H$20,6))) -> 2300 | E87: Capacity all wz lanes | F87: =MIN((D87*D86),F80) -> 2300 | G87: cell below in use | H87: 7 | I87: 07:00:00 | J87: 7 | K87: ='Step 2 - Facility Data Inputs'!G33 -> 0 | L87: 4600 | M87: 0 | N87: 32200 | O87: 0 | P87: 0 | Q87: 0 | R87: 0 | S87: 4600 | T87: 0 | U87: 0 | V87: 0 | W87: 0 | X87: 0 | Y87: 0 | Z87: =V87-O87 -> 0 | AA87: 0 | AB87: 0 | AD87: 0
C88: USER DEFINED Work Zone Capacity (pc/h): | E88: ='Step 3 - WZ Analysis'!E59 -> 0 | G88: =IF('Step 3 - WZ Analysis'!E59="","",'Step 3 - WZ Analysis'!E59) ->  | H88: 8 | I88: 08:00:00 | J88: 8 | K88: ='Step 2 - Facility Data Inputs'!G34 -> 0 | L88: 4600 | M88: 0 | N88: 36800 | O88: 0 | P88: 0 | Q88: 0 | R88: 0 | S88: 4600 | T88: 0 | U88: 0 | V88: 0 | W88: 0 | X88: 0 | Y88: 0 | Z88: 0 | AA88: 0 | AB88: 0 | AD88: 0 | AF88: AVE DELAY (minutes) | AG88: =(SUM(V80:V103)/T103)*60 -> 
C89: Start Time: | D89: ='Step 3 - WZ Analysis'!D60 -> 00:00:00 | G89: =VLOOKUP(D89,'WZ Analysis (Worksheet)'!$I$22:$J$45,2) -> 0 | H89: 9 | I89: 09:00:00 | J89: 9 | K89: ='Step 2 - Facility Data Inputs'!G35 -> 0 | L89: 4600 | M89: 0 | N89: 41400 | O89: 0 | P89: 0 | Q89: 0 | R89: 0 | S89: 4600 | T89: 0 | U89: 0 | V89: 0 | W89: 0 | X89: 0 | Y89: 0 | Z89: 0 | AA89: 0 | AB89: 0 | AD89: 0
C90: End Time: | D90: ='Step 3 - WZ Analysis'!D61 -> 00:00:00 | G90: =VLOOKUP(D90,'WZ Analysis (Worksheet)'!$I$22:$J$45,2) -> 0 | H90: 10 | I90: 10:00:00 | J90: 10 | K90: ='Step 2 - Facility Data Inputs'!G36 -> 0 | L90: 4600 | M90: 0 | N90: 46000 | O90: 0 | P90: 0 | Q90: 0 | R90: 0 | S90: 4600 | T90: 0 | U90: 0 | V90: 0 | W90: 0 | X90: 0 | Y90: 0 | Z90: 0 | AA90: 0 | AB90: 0 | AD90: 0 | AF90: COST ($) | AG90: =Z104 -> 0
C91: Duration of closure (hrs): | D91: ='Step 3 - WZ Analysis'!D62:F62 -> 0 | H91: 11 | I91: 11:00:00 | J91: 11 | K91: ='Step 2 - Facility Data Inputs'!G37 -> 0 | L91: 4600 | M91: 0 | N91: 50600 | O91: 0 | P91: 0 | Q91: 0 | R91: 0 | S91: 4600 | T91: 0 | U91: 0 | V91: 0 | W91: 0 | X91: 0 | Y91: 0 | Z91: 0 | AA91: 0 | AB91: 0 | AD91: 0
H92: 12 | I92: 12:00:00 | J92: 12 | K92: ='Step 2 - Facility Data Inputs'!G38 -> 0 | L92: 4600 | M92: 0 | N92: 55200 | O92: 0 | P92: 0 | Q92: 0 | R92: 0 | S92: 4600 | T92: 0 | U92: 0 | V92: 0 | W92: 0 | X92: 0 | Y92: 0 | Z92: 0 | AA92: 0 | AB92: 0 | AD92: 0 | AF92: MAX QUEUE LENGTH (miles) | AG92: =W104 -> 0
C93: RESULTS | H93: 13 | I93: 13:00:00 | J93: 13 | K93: ='Step 2 - Facility Data Inputs'!G39 -> 0 | L93: 4600 | M93: 0 | N93: 59800 | O93: 0 | P93: 0 | Q93: 0 | R93: 0 | S93: 4600 | T93: 0 | U93: 0 | V93: 0 | W93: 0 | X93: 0 | Y93: 0 | Z93: 0 | AA93: 0 | AB93: 0 | AD93: 0
C94: Measure of Effectiveness | D94: Base Conditions | E94: Work Zone | F94: Total | H94: 14 | I94: 14:00:00 | J94: 14 | K94: ='Step 2 - Facility Data Inputs'!G40 -> 0 | L94: 4600 | M94: 0 | N94: 64400 | O94: 0 | P94: 0 | Q94: 0 | R94: 0 | S94: 4600 | T94: 0 | U94: 0 | V94: 0 | W94: 0 | X94: 0 | Y94: 0 | Z94: 0 | AA94: 0 | AB94: 0 | AD94: 0 | AF94: Hours per day of queuing | AG94: =24-COUNTIF(AA81:AA104,0) -> 0
C95: Max Queue Length (mi): | D95: =P104 -> 0 | E95: =AA104 -> 0 | F95: =W104 -> 0 | H95: 15 | I95: 15:00:00 | J95: 15 | K95: ='Step 2 - Facility Data Inputs'!G41 -> 0 | L95: 4600 | M95: 0 | N95: 69000 | O95: 0 | P95: 0 | Q95: 0 | R95: 0 | S95: 4600 | T95: 0 | U95: 0 | V95: 0 | W95: 0 | X95: 0 | Y95: 0 | Z95: 0 | AA95: 0 | AB95: 0 | AD95: 0
C96: Max Delay (minutes): | D96: =Q104 -> 0 | E96: =AB104 -> 0 | F96: =X104 -> 0 | H96: 16 | I96: 16:00:00 | J96: 16 | K96: ='Step 2 - Facility Data Inputs'!G42 -> 0 | L96: 4600 | M96: 0 | N96: 73600 | O96: 0 | P96: 0 | Q96: 0 | R96: 0 | S96: 4600 | T96: 0 | U96: 0 | V96: 0 | W96: 0 | X96: 0 | Y96: 0 | Z96: 0 | AA96: 0 | AB96: 0 | AD96: 0
C97: Cost ($): | D97: =R105 -> 0 | E97: =AD105 -> 0 | F97: =Y105 -> 0 | H97: 17 | I97: 17:00:00 | J97: 17 | K97: ='Step 2 - Facility Data Inputs'!G43 -> 0 | L97: 4600 | M97: 0 | N97: 78200 | O97: 0 | P97: 0 | Q97: 0 | R97: 0 | S97: 4600 | T97: 0 | U97: 0 | V97: 0 | W97: 0 | X97: 0 | Y97: 0 | Z97: 0 | AA97: 0 | AB97: 0 | AD97: 0
H98: 18 | I98: 18:00:00 | J98: 18 | K98: ='Step 2 - Facility Data Inputs'!G44 -> 0 | L98: 4600 | M98: 0 | N98: 82800 | O98: 0 | P98: 0 | Q98: 0 | R98: 0 | S98: 4600 | T98: 0 | U98: 0 | V98: 0 | W98: 0 | X98: 0 | Y98: 0 | Z98: 0 | AA98: 0 | AB98: 0 | AD98: 0
H99: 19 | I99: 19:00:00 | J99: 19 | K99: ='Step 2 - Facility Data Inputs'!G45 -> 0 | L99: 4600 | M99: 0 | N99: 87400 | O99: 0 | P99: 0 | Q99: 0 | R99: 0 | S99: 4600 | T99: 0 | U99: =IF((K99<S99),IF((S99-K99)>V98,V98+K99+U98,S99+U98),(S99+U98)) -> 0 | V99: 0 | W99: 0 | X99: 0 | Y99: 0 | Z99: 0 | AA99: 0 | AB99: 0 | AD99: 0
H100: 20 | I100: 20:00:00 | J100: 20 | K100: ='Step 2 - Facility Data Inputs'!G46 -> 0 | L100: 4600 | M100: 0 | N100: 92000 | O100: 0 | P100: 0 | Q100: 0 | R100: 0 | S100: 4600 | T100: 0 | U100: =IF((K100<S100),IF((S100-K100)>V99,V99+K100+U99,S100+U99),(S100+U99)) -> 0 | V100: 0 | W100: 0 | X100: 0 | Y100: 0 | Z100: 0 | AA100: 0 | AB100: 0 | AD100: 0
H101: 21 | I101: 21:00:00 | J101: 21 | K101: ='Step 2 - Facility Data Inputs'!G47 -> 0 | L101: 4600 | M101: 0 | N101: 96600 | O101: 0 | P101: 0 | Q101: 0 | R101: 0 | S101: 4600 | T101: 0 | U101: 0 | V101: 0 | W101: 0 | X101: 0 | Y101: 0 | Z101: 0 | AA101: 0 | AB101: 0 | AD101: 0
H102: 22 | I102: 22:00:00 | J102: 22 | K102: ='Step 2 - Facility Data Inputs'!G48 -> 0 | L102: 4600 | M102: 0 | N102: 101200 | O102: 0 | P102: 0 | Q102: 0 | R102: 0 | S102: 4600 | T102: 0 | U102: 0 | V102: 0 | W102: 0 | X102: 0 | Y102: 0 | Z102: 0 | AA102: 0 | AB102: 0 | AD102: 0
H103: 23 | I103: 23:00:00 | J103: 23 | K103: ='Step 2 - Facility Data Inputs'!G49 -> 0 | L103: 4600 | M103: 0 | N103: 105800 | O103: 0 | P103: 0 | Q103: 0 | R103: 0 | S103: 4600 | T103: 0 | U103: 0 | V103: 0 | W103: 0 | X103: 0 | Y103: 0 | Z103: 0 | AA103: 0 | AB103: 0 | AC103: =IF((X103-Q103)=0,IF(OR(AB102<>0,AB80<>0),0,NA()),X103) ->  | AD103: 0
P104: =MAX(P80:P103) -> 0 | Q104: =MAX(Q80:Q103) -> 0 | R104: =(SUM(R80:R103)) -> 0 | W104: =MAX(W80:W103) -> 0 | X104: =MAX(X80:X103) -> 0 | Y104: =ROUND(SUM(Y80:Y103),0) -> 0 | Z104: =SUM(Z80:Z103) -> 0 | AA104: =MAX(AA80:AA103) -> 0 | AB104: =MAX(AB80:AB103) -> 0 | AD104: =ROUND(SUM(AD80:AD103),0) -> 0
R105: =IF(R104<100,ROUND(R104,0),IF(R104<1000,ROUND(R104,-1),ROUND(R104,-2))) -> 0 | Y105: =AD105+R105 -> 0 | AD105: =IF(AD104<100,ROUND(AD104,0),IF(AD104<1000,ROUND(AD104,-1),ROUND(AD104,-2))) -> 0
A107: ='Step 2 - Facility Data Inputs'!H22 -> Wednesday | H107: ='Step 2 - Facility Data Inputs'!F81 -> 0 | I107: TIME | K107: DEMAND | L107: Base Capacity | M107: Base Arrivals | N107: Base Departures | O107: Base Queued Vehicles | P107: Base Queue | Q107: Base Delay | R107: Base User Cost | S107: CAPACITY | T107: TOTAL ARRIVALS | U107: TOTAL DEPARTURES | V107: QUEUED VEHICLES | W107: QUEUE LENGTH | X107: Total Delay | Y107: User cost | Z107: WZ QUEUED VEHICLES | AA107: WZ Queue | AB107: WZ Delay | AC107: WZ Delay for Graph | AD107: WZ User Cost
C108: BASE CONDITIONS | J108: Unmet Demand from Previous Day -> | K108: 0 | AF108: Start Time (24 hour clock) | AG108: =G118 -> 0
C109: Open Lane Capacity (pc/h/lane): | D109: ='Step 3 - WZ Analysis'!$D$73 -> 2300 | E109: Base Conditions Capacity (Total for ALL Lanes): | F109: =D109*$I$10 -> 4600 | H109: 0 | I109: 00:00:00 | J109: 0 | K109: ='Step 2 - Facility Data Inputs'!H26+K108 -> 0 | L109: =$F$109 -> 4600 | M109: =K109 -> 0 | N109: =MIN(K109,L109) -> 0 | O109: =IF((K109-L109)<0,0,K109-L109) -> 0 | P109: =O109*$I$12/(5280*$I$10) -> 0 | Q109: =60*O109/L109 -> 0 | R109: =(Q109*$I$11*($J$16/60))+(Q109*(1-$I$11)*($J$17/60)) -> 0 | S109: =IF($AG$112-H110>=0,IF($G$117="",$F$116,$G$117),IF(AND(H109>=$AG$108,H109<$AG$108+$AG$109),IF($G$117="",$F$116,$G$117),$F$109)) -> 4600 | T109: =K109 -> 0 | U109: =MIN(K109,S109) -> 0 | V109: =IF((K109-S109)<0,0,K109-S109) -> 0 | W109: =V109*$I$12/(5280*$I$10) -> 0 | X109: =IF(S109=0,60*V109,60*V109/S109) -> 0 | Y109: =(X109*$I$11*($J$16/60))+(X109*(1-$I$11)*($J$17/60)) -> 0 | Z109: =V109-O109 -> 0 | AA109: =W109-P109 -> 0 | AB109: =X109-Q109 -> 0 | AC109: =IF((X109-Q109)=0,IF(OR(AB132<>0,AB110<>0),0,NA()),X109) ->  | AD109: =Y109-R109 -> 0 | AF109: Duration of closure (hrs) | AG109: =D120 -> 0
H110: 1 | I110: 01:00:00 | J110: 1 | K110: ='Step 2 - Facility Data Inputs'!H27 -> 0 | L110: =$F$109 -> 4600 | M110: =M109+K110 -> 0 | N110: =IF((K110<M110),IF((L110-K110)>O109,O109+K110+N109,L110+N109),(L110+N109)) -> 4600 | O110: =IF((K110<L110),IF((L110-K110)>O109,0,O109-(L110-K110)),(O109+(K110-L110))) -> 0 | P110: =O110*$I$12/(5280*$I$10) -> 0 | Q110: =60*O110/L110 -> 0 | R110: =(Q110*$I$11*($J$16/60))+(Q110*(1-$I$11)*($J$17/60)) -> 0 | S110: =IF($AG$112-H111>=0,IF($G$117="",$F$116,$G$117),IF(AND(H110>=$AG$108,H110<$AG$108+$AG$109),IF($G$117="",$F$116,$G$117),$F$109)) -> 4600 | T110: =T109+K110 -> 0 | U110: =IF((K110<S110),IF((S110-K110)>V109,V109+K110+U109,S110+U109),(S110+U109)) -> 0 | V110: =IF((K110<S110),IF((S110-K110)>V109,0,V109-(S110-K110)),(V109+(K110-S110))) -> 0 | W110: =V110*$I$12/(5280*$I$10) -> 0 | X110: =IF(S110=0,60*V110,60*V110/S110) -> 0 | Y110: =(X110*$I$11*($J$16/60))+(X110*(1-$I$11)*($J$17/60)) -> 0 | Z110: =V110-O110 -> 0 | AA110: =W110-P110 -> 0 | AB110: =X110-Q110 -> 0 | AC110: =IF((X110-Q110)=0,IF(OR(AB109<>0,AB111<>0),0,NA()),X110) ->  | AD110: =Y110-R110 -> 0
C111: WORKZONE DETAILS | H111: 2 | I111: 02:00:00 | J111: 2 | K111: ='Step 2 - Facility Data Inputs'!H28 -> 0 | L111: 4600 | M111: =M110+K111 -> 0 | N111: =IF((K111<M111),IF((L111-K111)>O110,O110+K111+N110,L111+N110),(L111+N110)) -> 9200 | O111: =IF((K111<L111),IF((L111-K111)>O110,0,O110-(L111-K111)),(O110+(K111-L111))) -> 0 | P111: 0 | Q111: 0 | R111: 0 | S111: 4600 | T111: =T110+K111 -> 0 | U111: =IF((K111<S111),IF((S111-K111)>V110,V110+K111+U110,S111+U110),(S111+U110)) -> 0 | V111: =IF((K111<S111),IF((S111-K111)>V110,0,V110-(S111-K111)),(V110+(K111-S111))) -> 0 | W111: =V111*$I$12/(5280*$I$10) -> 0 | X111: 0 | Y111: 0 | Z111: =V111-O111 -> 0 | AA111: =W111-P111 -> 0 | AB111: 0 | AC111: =IF((X111-Q111)=0,IF(OR(AB110<>0,AB112<>0),0,NA()),X111) ->  | AD111: =Y111-R111 -> 0 | AF111: count | AG111: =COUNT(H109:H132) -> 24
C112: Work Description: | D112: ='Step 3 - WZ Analysis'!$D$76:$F$76 -> (Example: Pothole Patching - Close One Lane OR Joint Repair - Two Lanes Closed) | H112: 3 | I112: 03:00:00 | J112: 3 | K112: ='Step 2 - Facility Data Inputs'!H29 -> 0 | L112: 4600 | M112: 0 | N112: =IF((K112<M112),IF((L112-K112)>O111,O111+K112+N111,L112+N111),(L112+N111)) -> 13800 | O112: 0 | P112: 0 | Q112: 0 | R112: 0 | S112: 4600 | T112: 0 | U112: 0 | V112: 0 | W112: 0 | X112: =IF(S112=0,60*V112,60*V112/S112) -> 0 | Y112: 0 | Z112: 0 | AA112: 0 | AB112: 0 | AC112: =IF((X112-Q112)=0,IF(OR(AB111<>0,AB113<>0),0,NA()),X112) ->  | AD112: =Y112-R112 -> 0 | AF112: short | AG112: =AG108+AG109-AG111 -> -24
C113: Work Location: | D113: ='Step 3 - WZ Analysis'!$D$77:$F$77 -> No Work Zone (Use for Calibrating Existing Conditions) | G113: =VLOOKUP(D113,'Reference Sheet'!$S$2:$T$8,2) -> 538 | H113: 4 | I113: 04:00:00 | J113: 4 | K113: ='Step 2 - Facility Data Inputs'!H30 -> 0 | L113: 4600 | M113: 0 | N113: =IF((K113<M113),IF((L113-K113)>O112,O112+K113+N112,L113+N112),(L113+N112)) -> 18400 | O113: 0 | P113: 0 | Q113: 0 | R113: 0 | S113: 4600 | T113: 0 | U113: 0 | V113: 0 | W113: 0 | X113: 0 | Y113: 0 | Z113: 0 | AA113: 0 | AB113: 0 | AD113: 0
C114: Travel Lane Width (ft): | D114: ='Step 3 - WZ Analysis'!$D$78:$F$78 -> > 11.5 | G114: =VLOOKUP(D114,'Reference Sheet'!$V$2:$W$4,2) -> 1 | H114: 5 | I114: 05:00:00 | J114: 5 | K114: ='Step 2 - Facility Data Inputs'!H31 -> 0 | L114: 4600 | M114: 0 | N114: 23000 | O114: 0 | P114: 0 | Q114: 0 | R114: 0 | S114: 4600 | T114: 0 | U114: 0 | V114: 0 | W114: 0 | X114: 0 | Y114: 0 | Z114: 0 | AA114: 0 | AB114: 0 | AD114: 0
C115: Number of Lanes Open: | D115: ='Step 3 - WZ Analysis'!$D$79:$F$79 -> 1 | H115: 6 | I115: 06:00:00 | J115: 6 | K115: ='Step 2 - Facility Data Inputs'!H32 -> 0 | L115: 4600 | M115: 0 | N115: 27600 | O115: 0 | P115: 0 | Q115: 0 | R115: 0 | S115: 4600 | T115: 0 | U115: 0 | V115: 0 | W115: 0 | X115: 0 | Y115: 0 | Z115: =V115-O115 -> 0 | AA115: 0 | AB115: 0 | AD115: 0 | AF115: MAX DELAY (minutes) | AG115: =MAX(X109:X132) -> 0
C116: ESTIMATED Work Zone Capacity (pc/h): | D116: =IF(G113=538,D109,IF(VLOOKUP((G113+G114),'HCM 2010 Program'!$C$3:$H$20,6)>(D109),D109,VLOOKUP((G113+G114),'HCM 2010 Program'!$C$3:$H$20,6))) -> 2300 | E116: Capacity all wz lanes | F116: =MIN((D116*D115),F109) -> 2300 | G116: cell below in use | H116: 7 | I116: 07:00:00 | J116: 7 | K116: ='Step 2 - Facility Data Inputs'!H33 -> 0 | L116: 4600 | M116: 0 | N116: 32200 | O116: 0 | P116: 0 | Q116: 0 | R116: 0 | S116: 4600 | T116: 0 | U116: 0 | V116: 0 | W116: 0 | X116: 0 | Y116: 0 | Z116: =V116-O116 -> 0 | AA116: 0 | AB116: 0 | AD116: 0
C117: USER DEFINED Work Zone Capacity (pc/h): | E117: ='Step 3 - WZ Analysis'!E81 -> 0 | G117: =IF('Step 3 - WZ Analysis'!E81="","",'Step 3 - WZ Analysis'!E81) ->  | H117: 8 | I117: 08:00:00 | J117: 8 | K117: ='Step 2 - Facility Data Inputs'!H34 -> 0 | L117: 4600 | M117: 0 | N117: 36800 | O117: 0 | P117: 0 | Q117: 0 | R117: 0 | S117: 4600 | T117: 0 | U117: 0 | V117: 0 | W117: 0 | X117: 0 | Y117: 0 | Z117: 0 | AA117: 0 | AB117: 0 | AD117: 0 | AF117: AVE DELAY (minutes) | AG117: =(SUM(V109:V132)/T132)*60 -> 
C118: Start Time: | D118: ='Step 3 - WZ Analysis'!D82:F82 -> 00:00:00 | G118: =VLOOKUP(D118,'WZ Analysis (Worksheet)'!$I$22:$J$45,2) -> 0 | H118: 9 | I118: 09:00:00 | J118: 9 | K118: ='Step 2 - Facility Data Inputs'!H35 -> 0 | L118: 4600 | M118: 0 | N118: 41400 | O118: 0 | P118: 0 | Q118: 0 | R118: 0 | S118: 4600 | T118: 0 | U118: 0 | V118: 0 | W118: 0 | X118: 0 | Y118: 0 | Z118: 0 | AA118: 0 | AB118: 0 | AD118: 0
C119: End Time: | D119: ='Step 3 - WZ Analysis'!D83:F83 -> 00:00:00 | G119: =VLOOKUP(D119,'WZ Analysis (Worksheet)'!$I$22:$J$45,2) -> 0 | H119: 10 | I119: 10:00:00 | J119: 10 | K119: ='Step 2 - Facility Data Inputs'!H36 -> 0 | L119: 4600 | M119: 0 | N119: 46000 | O119: 0 | P119: 0 | Q119: 0 | R119: 0 | S119: 4600 | T119: 0 | U119: 0 | V119: 0 | W119: 0 | X119: 0 | Y119: 0 | Z119: 0 | AA119: 0 | AB119: 0 | AD119: 0 | AF119: COST ($) | AG119: =Z133 -> 0
C120: Duration of closure (hrs): | D120: ='Step 3 - WZ Analysis'!D84:F84 -> 0 | H120: 11 | I120: 11:00:00 | J120: 11 | K120: ='Step 2 - Facility Data Inputs'!H37 -> 0 | L120: 4600 | M120: 0 | N120: 50600 | O120: 0 | P120: 0 | Q120: 0 | R120: 0 | S120: 4600 | T120: 0 | U120: 0 | V120: 0 | W120: 0 | X120: 0 | Y120: 0 | Z120: 0 | AA120: 0 | AB120: 0 | AD120: 0
H121: 12 | I121: 12:00:00 | J121: 12 | K121: ='Step 2 - Facility Data Inputs'!H38 -> 0 | L121: 4600 | M121: 0 | N121: 55200 | O121: 0 | P121: 0 | Q121: 0 | R121: 0 | S121: 4600 | T121: 0 | U121: 0 | V121: 0 | W121: 0 | X121: 0 | Y121: 0 | Z121: 0 | AA121: 0 | AB121: 0 | AD121: 0 | AF121: MAX QUEUE LENGTH (miles) | AG121: =W133 -> 0
C122: RESULTS | H122: 13 | I122: 13:00:00 | J122: 13 | K122: ='Step 2 - Facility Data Inputs'!H39 -> 0 | L122: 4600 | M122: 0 | N122: 59800 | O122: 0 | P122: 0 | Q122: 0 | R122: 0 | S122: 4600 | T122: 0 | U122: 0 | V122: 0 | W122: 0 | X122: 0 | Y122: 0 | Z122: 0 | AA122: 0 | AB122: 0 | AD122: 0
C123: Measure of Effectiveness | D123: Base Conditions | E123: Work Zone | F123: Total | H123: 14 | I123: 14:00:00 | J123: 14 | K123: ='Step 2 - Facility Data Inputs'!H40 -> 0 | L123: 4600 | M123: 0 | N123: 64400 | O123: 0 | P123: 0 | Q123: 0 | R123: 0 | S123: 4600 | T123: 0 | U123: 0 | V123: 0 | W123: 0 | X123: 0 | Y123: 0 | Z123: 0 | AA123: 0 | AB123: 0 | AD123: 0 | AF123: Hours per day of queuing | AG123: =24-COUNTIF(AA110:AA133,0) -> 0
C124: Max Queue Length (mi): | D124: =P133 -> 0 | E124: =AA133 -> 0 | F124: =W133 -> 0 | H124: 15 | I124: 15:00:00 | J124: 15 | K124: ='Step 2 - Facility Data Inputs'!H41 -> 0 | L124: 4600 | M124: 0 | N124: 69000 | O124: 0 | P124: 0 | Q124: 0 | R124: 0 | S124: 4600 | T124: 0 | U124: 0 | V124: 0 | W124: 0 | X124: 0 | Y124: 0 | Z124: 0 | AA124: 0 | AB124: 0 | AD124: 0
C125: Max Delay (minutes): | D125: =Q133 -> 0 | E125: =AB133 -> 0 | F125: =X133 -> 0 | H125: 16 | I125: 16:00:00 | J125: 16 | K125: ='Step 2 - Facility Data Inputs'!H42 -> 0 | L125: 4600 | M125: 0 | N125: 73600 | O125: 0 | P125: 0 | Q125: 0 | R125: 0 | S125: 4600 | T125: 0 | U125: 0 | V125: 0 | W125: 0 | X125: 0 | Y125: 0 | Z125: 0 | AA125: 0 | AB125: 0 | AD125: 0
C126: Cost ($): | D126: =R134 -> 0 | E126: =AD134 -> 0 | F126: =Y134 -> 0 | H126: 17 | I126: 17:00:00 | J126: 17 | K126: ='Step 2 - Facility Data Inputs'!H43 -> 0 | L126: 4600 | M126: 0 | N126: 78200 | O126: 0 | P126: 0 | Q126: 0 | R126: 0 | S126: 4600 | T126: 0 | U126: 0 | V126: 0 | W126: 0 | X126: 0 | Y126: 0 | Z126: 0 | AA126: 0 | AB126: 0 | AD126: 0
H127: 18 | I127: 18:00:00 | J127: 18 | K127: ='Step 2 - Facility Data Inputs'!H44 -> 0 | L127: 4600 | M127: 0 | N127: 82800 | O127: 0 | P127: 0 | Q127: 0 | R127: 0 | S127: 4600 | T127: 0 | U127: 0 | V127: 0 | W127: 0 | X127: 0 | Y127: 0 | Z127: 0 | AA127: 0 | AB127: 0 | AD127: 0
H128: 19 | I128: 19:00:00 | J128: 19 | K128: ='Step 2 - Facility Data Inputs'!H45 -> 0 | L128: 4600 | M128: 0 | N128: 87400 | O128: 0 | P128: 0 | Q128: 0 | R128: 0 | S128: 4600 | T128: 0 | U128: =IF((K128<S128),IF((S128-K128)>V127,V127+K128+U127,S128+U127),(S128+U127)) -> 0 | V128: 0 | W128: 0 | X128: 0 | Y128: 0 | Z128: 0 | AA128: 0 | AB128: 0 | AD128: 0
H129: 20 | I129: 20:00:00 | J129: 20 | K129: ='Step 2 - Facility Data Inputs'!H46 -> 0 | L129: 4600 | M129: 0 | N129: 92000 | O129: 0 | P129: 0 | Q129: 0 | R129: 0 | S129: 4600 | T129: 0 | U129: =IF((K129<S129),IF((S129-K129)>V128,V128+K129+U128,S129+U128),(S129+U128)) -> 0 | V129: 0 | W129: 0 | X129: 0 | Y129: 0 | Z129: 0 | AA129: 0 | AB129: 0 | AD129: 0
H130: 21 | I130: 21:00:00 | J130: 21 | K130: ='Step 2 - Facility Data Inputs'!H47 -> 0 | L130: 4600 | M130: 0 | N130: 96600 | O130: 0 | P130: 0 | Q130: 0 | R130: 0 | S130: 4600 | T130: 0 | U130: 0 | V130: 0 | W130: 0 | X130: 0 | Y130: 0 | Z130: 0 | AA130: 0 | AB130: 0 | AD130: 0
H131: 22 | I131: 22:00:00 | J131: 22 | K131: ='Step 2 - Facility Data Inputs'!H48 -> 0 | L131: 4600 | M131: 0 | N131: 101200 | O131: 0 | P131: 0 | Q131: 0 | R131: 0 | S131: 4600 | T131: 0 | U131: 0 | V131: 0 | W131: 0 | X131: 0 | Y131: 0 | Z131: 0 | AA131: 0 | AB131: 0 | AD131: 0
H132: 23 | I132: 23:00:00 | J132: 23 | K132: ='Step 2 - Facility Data Inputs'!H49 -> 0 | L132: 4600 | M132: 0 | N132: 105800 | O132: 0 | P132: 0 | Q132: 0 | R132: 0 | S132: 4600 | T132: 0 | U132: 0 | V132: 0 | W132: 0 | X132: 0 | Y132: 0 | Z132: 0 | AA132: 0 | AB132: 0 | AC132: =IF((X132-Q132)=0,IF(OR(AB131<>0,AB109<>0),0,NA()),X132) ->  | AD132: 0
P133: =MAX(P109:P132) -> 0 | Q133: =MAX(Q109:Q132) -> 0 | R133: =(SUM(R109:R132)) -> 0 | W133: =MAX(W109:W132) -> 0 | X133: =MAX(X109:X132) -> 0 | Y133: =ROUND(SUM(Y109:Y132),0) -> 0 | Z133: =SUM(Z109:Z132) -> 0 | AA133: =MAX(AA109:AA132) -> 0 | AB133: =MAX(AB109:AB132) -> 0 | AD133: =ROUND(SUM(AD109:AD132),0) -> 0
R134: =IF(R133<100,ROUND(R133,0),IF(R133<1000,ROUND(R133,-1),ROUND(R133,-2))) -> 0 | Y134: =AD134+R134 -> 0 | AD134: =IF(AD133<100,ROUND(AD133,0),IF(AD133<1000,ROUND(AD133,-1),ROUND(AD133,-2))) -> 0
A136: ='Step 2 - Facility Data Inputs'!I22 -> Thursday | H136: ='Step 2 - Facility Data Inputs'!F110 -> 0 | I136: TIME | K136: DEMAND | L136: Base Capacity | M136: Base Arrivals | N136: Base Departures | O136: Base Queued Vehicles | P136: Base Queue | Q136: Base Delay | R136: Base User Cost | S136: CAPACITY | T136: TOTAL ARRIVALS | U136: TOTAL DEPARTURES | V136: QUEUED VEHICLES | W136: QUEUE LENGTH | X136: Total Delay | Y136: User cost | Z136: WZ QUEUED VEHICLES | AA136: WZ Queue | AB136: WZ Delay | AC136: WZ Delay for Graph | AD136: WZ User Cost
C137: BASE CONDITIONS | J137: Unmet Demand from Previous Day -> | K137: 0 | AF137: Start Time (24 hour clock) | AG137: =G147 -> 0
C138: Open Lane Capacity (pc/h/lane): | D138: ='Step 3 - WZ Analysis'!D95 -> 2300 | E138: Base Conditions Capacity (Total for ALL Lanes): | F138: =D138*$I$10 -> 4600 | H138: 0 | I138: 00:00:00 | J138: 0 | K138: ='Step 2 - Facility Data Inputs'!I26+K137 -> 0 | L138: =$F$138 -> 4600 | M138: =K138 -> 0 | N138: =MIN(K138,L138) -> 0 | O138: =IF((K138-L138)<0,0,K138-L138) -> 0 | P138: =O138*$I$12/(5280*$I$10) -> 0 | Q138: =60*O138/L138 -> 0 | R138: =(Q138*$I$11*($J$16/60))+(Q138*(1-$I$11)*($J$17/60)) -> 0 | S138: =IF($AG$141-H139>=0,IF($G$146="",$F$145,$G$146),IF(AND(H138>=$AG$137,H138<$AG$137+$AG$138),IF($G$146="",$F$145,$G$146),$F$138)) -> 4600 | T138: =K138 -> 0 | U138: =MIN(K138,S138) -> 0 | V138: =IF((K138-S138)<0,0,K138-S138) -> 0 | W138: =V138*$I$12/(5280*$I$10) -> 0 | X138: =IF(S138=0,60*V138,60*V138/S138) -> 0 | Y138: =(X138*$I$11*($J$16/60))+(X138*(1-$I$11)*($J$17/60)) -> 0 | Z138: =V138-O138 -> 0 | AA138: =W138-P138 -> 0 | AB138: =X138-Q138 -> 0 | AC138: =IF((X138-Q138)=0,IF(OR(AB161<>0,AB139<>0),0,NA()),X138) ->  | AD138: =Y138-R138 -> 0 | AF138: Duration of closure (hrs) | AG138: =D149 -> 0
H139: 1 | I139: 01:00:00 | J139: 1 | K139: ='Step 2 - Facility Data Inputs'!I27 -> 0 | L139: =$F$138 -> 4600 | M139: =M138+K139 -> 0 | N139: =IF((K139<M139),IF((L139-K139)>O138,O138+K139+N138,L139+N138),(L139+N138)) -> 4600 | O139: =IF((K139<L139),IF((L139-K139)>O138,0,O138-(L139-K139)),(O138+(K139-L139))) -> 0 | P139: =O139*$I$12/(5280*$I$10) -> 0 | Q139: =60*O139/L139 -> 0 | R139: =(Q139*$I$11*($J$16/60))+(Q139*(1-$I$11)*($J$17/60)) -> 0 | S139: =IF($AG$141-H140>=0,IF($G$146="",$F$145,$G$146),IF(AND(H139>=$AG$137,H139<$AG$137+$AG$138),IF($G$146="",$F$145,$G$146),$F$138)) -> 4600 | T139: =T138+K139 -> 0 | U139: =IF((K139<S139),IF((S139-K139)>V138,V138+K139+U138,S139+U138),(S139+U138)) -> 0 | V139: =IF((K139<S139),IF((S139-K139)>V138,0,V138-(S139-K139)),(V138+(K139-S139))) -> 0 | W139: =V139*$I$12/(5280*$I$10) -> 0 | X139: =IF(S139=0,60*V139,60*V139/S139) -> 0 | Y139: =(X139*$I$11*($J$16/60))+(X139*(1-$I$11)*($J$17/60)) -> 0 | Z139: =V139-O139 -> 0 | AA139: =W139-P139 -> 0 | AB139: =X139-Q139 -> 0 | AC139: =IF((X139-Q139)=0,IF(OR(AB138<>0,AB140<>0),0,NA()),X139) ->  | AD139: =Y139-R139 -> 0
C140: WORKZONE DETAILS | H140: 2 | I140: 02:00:00 | J140: 2 | K140: ='Step 2 - Facility Data Inputs'!I28 -> 0 | L140: 4600 | M140: =M139+K140 -> 0 | N140: =IF((K140<M140),IF((L140-K140)>O139,O139+K140+N139,L140+N139),(L140+N139)) -> 9200 | O140: =IF((K140<L140),IF((L140-K140)>O139,0,O139-(L140-K140)),(O139+(K140-L140))) -> 0 | P140: 0 | Q140: 0 | R140: 0 | S140: 4600 | T140: =T139+K140 -> 0 | U140: =IF((K140<S140),IF((S140-K140)>V139,V139+K140+U139,S140+U139),(S140+U139)) -> 0 | V140: =IF((K140<S140),IF((S140-K140)>V139,0,V139-(S140-K140)),(V139+(K140-S140))) -> 0 | W140: =V140*$I$12/(5280*$I$10) -> 0 | X140: 0 | Y140: 0 | Z140: =V140-O140 -> 0 | AA140: =W140-P140 -> 0 | AB140: 0 | AC140: =IF((X140-Q140)=0,IF(OR(AB139<>0,AB141<>0),0,NA()),X140) ->  | AD140: =Y140-R140 -> 0 | AF140: count | AG140: =COUNT(H138:H161) -> 24
C141: Work Description: | D141: ='Step 3 - WZ Analysis'!D98:F98 -> (Example: Pothole Patching - Close One Lane OR Joint Repair - Two Lanes Closed) | H141: 3 | I141: 03:00:00 | J141: 3 | K141: ='Step 2 - Facility Data Inputs'!I29 -> 0 | L141: 4600 | M141: 0 | N141: =IF((K141<M141),IF((L141-K141)>O140,O140+K141+N140,L141+N140),(L141+N140)) -> 13800 | O141: 0 | P141: 0 | Q141: 0 | R141: 0 | S141: 4600 | T141: 0 | U141: 0 | V141: =IF((K141<S141),IF((S141-K141)>V140,0,V140-(S141-K141)),(V140+(K141-S141))) -> 0 | W141: =V141*$I$12/(5280*$I$10) -> 0 | X141: =IF(S141=0,60*V141,60*V141/S141) -> 0 | Y141: 0 | Z141: =V141-O141 -> 0 | AA141: =W141-P141 -> 0 | AB141: 0 | AC141: =IF((X141-Q141)=0,IF(OR(AB140<>0,AB142<>0),0,NA()),X141) ->  | AD141: =Y141-R141 -> 0 | AF141: short | AG141: =AG137+AG138-AG140 -> -24
C142: Work Location: | D142: ='Step 3 - WZ Analysis'!D99:F99 -> No Work Zone (Use for Calibrating Existing Conditions) | G142: =VLOOKUP(D142,'Reference Sheet'!$S$2:$T$8,2) -> 538 | H142: 4 | I142: 04:00:00 | J142: 4 | K142: ='Step 2 - Facility Data Inputs'!I30 -> 0 | L142: 4600 | M142: 0 | N142: =IF((K142<M142),IF((L142-K142)>O141,O141+K142+N141,L142+N141),(L142+N141)) -> 18400 | O142: 0 | P142: 0 | Q142: 0 | R142: 0 | S142: 4600 | T142: 0 | U142: 0 | V142: =IF((K142<S142),IF((S142-K142)>V141,0,V141-(S142-K142)),(V141+(K142-S142))) -> 0 | W142: 0 | X142: 0 | Y142: 0 | Z142: 0 | AA142: 0 | AB142: 0 | AD142: 0
C143: Travel Lane Width (ft): | D143: ='Step 3 - WZ Analysis'!D100:F100 -> > 11.5 | G143: =VLOOKUP(D143,'Reference Sheet'!$V$2:$W$4,2) -> 1 | H143: 5 | I143: 05:00:00 | J143: 5 | K143: ='Step 2 - Facility Data Inputs'!I31 -> 0 | L143: 4600 | M143: 0 | N143: 23000 | O143: 0 | P143: 0 | Q143: 0 | R143: 0 | S143: 4600 | T143: 0 | U143: 0 | V143: 0 | W143: 0 | X143: 0 | Y143: 0 | Z143: 0 | AA143: 0 | AB143: 0 | AD143: 0
C144: Number of Lanes Open: | D144: ='Step 3 - WZ Analysis'!D101:F101 -> 1 | H144: 6 | I144: 06:00:00 | J144: 6 | K144: ='Step 2 - Facility Data Inputs'!I32 -> 0 | L144: 4600 | M144: 0 | N144: 27600 | O144: 0 | P144: 0 | Q144: 0 | R144: 0 | S144: 4600 | T144: 0 | U144: 0 | V144: 0 | W144: 0 | X144: 0 | Y144: 0 | Z144: =V144-O144 -> 0 | AA144: 0 | AB144: 0 | AD144: 0 | AF144: MAX DELAY (minutes) | AG144: =MAX(X138:X161) -> 0
C145: ESTIMATED Work Zone Capacity (pc/h): | D145: =IF(G142=538,D138,IF(VLOOKUP((G142+G143),'HCM 2010 Program'!$C$3:$H$20,6)>(D138),D138,VLOOKUP((G142+G143),'HCM 2010 Program'!$C$3:$H$20,6))) -> 2300 | E145: Capacity all wz lanes | F145: =MIN((D145*D144),F138) -> 2300 | G145: cell below in use | H145: 7 | I145: 07:00:00 | J145: 7 | K145: ='Step 2 - Facility Data Inputs'!I33 -> 0 | L145: 4600 | M145: 0 | N145: 32200 | O145: 0 | P145: 0 | Q145: 0 | R145: 0 | S145: 4600 | T145: 0 | U145: 0 | V145: 0 | W145: 0 | X145: 0 | Y145: 0 | Z145: =V145-O145 -> 0 | AA145: 0 | AB145: 0 | AD145: 0
C146: USER DEFINED Work Zone Capacity (pc/h): | E146: ='Step 3 - WZ Analysis'!E103 -> 0 | G146: =IF('Step 3 - WZ Analysis'!E103="","",'Step 3 - WZ Analysis'!E103) ->  | H146: 8 | I146: 08:00:00 | J146: 8 | K146: ='Step 2 - Facility Data Inputs'!I34 -> 0 | L146: 4600 | M146: 0 | N146: 36800 | O146: 0 | P146: 0 | Q146: 0 | R146: 0 | S146: 4600 | T146: 0 | U146: 0 | V146: 0 | W146: 0 | X146: 0 | Y146: 0 | Z146: 0 | AA146: 0 | AB146: 0 | AD146: 0 | AF146: AVE DELAY (minutes) | AG146: =(SUM(V138:V161)/T161)*60 -> 
C147: Start Time: | D147: ='Step 3 - WZ Analysis'!D104:F104 -> 00:00:00 | G147: =VLOOKUP(D147,'WZ Analysis (Worksheet)'!$I$22:$J$45,2) -> 0 | H147: 9 | I147: 09:00:00 | J147: 9 | K147: ='Step 2 - Facility Data Inputs'!I35 -> 0 | L147: 4600 | M147: 0 | N147: 41400 | O147: 0 | P147: 0 | Q147: 0 | R147: 0 | S147: 4600 | T147: 0 | U147: 0 | V147: 0 | W147: 0 | X147: 0 | Y147: 0 | Z147: 0 | AA147: 0 | AB147: 0 | AD147: 0
C148: End Time: | D148: ='Step 3 - WZ Analysis'!D105:F105 -> 00:00:00 | G148: =VLOOKUP(D148,'WZ Analysis (Worksheet)'!$I$22:$J$45,2) -> 0 | H148: 10 | I148: 10:00:00 | J148: 10 | K148: ='Step 2 - Facility Data Inputs'!I36 -> 0 | L148: 4600 | M148: 0 | N148: 46000 | O148: 0 | P148: 0 | Q148: 0 | R148: 0 | S148: 4600 | T148: 0 | U148: 0 | V148: 0 | W148: 0 | X148: 0 | Y148: 0 | Z148: 0 | AA148: 0 | AB148: 0 | AD148: 0 | AF148: COST ($) | AG148: =Z162 -> 0
C149: Duration of closure (hrs): | D149: ='Step 3 - WZ Analysis'!D106:F106 -> 0 | H149: 11 | I149: 11:00:00 | J149: 11 | K149: ='Step 2 - Facility Data Inputs'!I37 -> 0 | L149: 4600 | M149: 0 | N149: 50600 | O149: 0 | P149: 0 | Q149: 0 | R149: 0 | S149: 4600 | T149: 0 | U149: 0 | V149: 0 | W149: 0 | X149: 0 | Y149: 0 | Z149: 0 | AA149: 0 | AB149: 0 | AD149: 0
H150: 12 | I150: 12:00:00 | J150: 12 | K150: ='Step 2 - Facility Data Inputs'!I38 -> 0 | L150: 4600 | M150: 0 | N150: 55200 | O150: 0 | P150: 0 | Q150: 0 | R150: 0 | S150: 4600 | T150: 0 | U150: 0 | V150: 0 | W150: 0 | X150: 0 | Y150: 0 | Z150: 0 | AA150: 0 | AB150: 0 | AD150: 0 | AF150: MAX QUEUE LENGTH (miles) | AG150: =W162 -> 0
C151: RESULTS | H151: 13 | I151: 13:00:00 | J151: 13 | K151: ='Step 2 - Facility Data Inputs'!I39 -> 0 | L151: 4600 | M151: 0 | N151: 59800 | O151: 0 | P151: 0 | Q151: 0 | R151: 0 | S151: 4600 | T151: 0 | U151: 0 | V151: 0 | W151: 0 | X151: 0 | Y151: 0 | Z151: 0 | AA151: 0 | AB151: 0 | AD151: 0
C152: Measure of Effectiveness | D152: Base Conditions | E152: Work Zone | F152: Total | H152: 14 | I152: 14:00:00 | J152: 14 | K152: ='Step 2 - Facility Data Inputs'!I40 -> 0 | L152: 4600 | M152: 0 | N152: 64400 | O152: 0 | P152: 0 | Q152: 0 | R152: 0 | S152: 4600 | T152: 0 | U152: 0 | V152: 0 | W152: 0 | X152: 0 | Y152: 0 | Z152: 0 | AA152: 0 | AB152: 0 | AD152: 0 | AF152: Hours per day of queuing | AG152: =24-COUNTIF(AA139:AA162,0) -> 0
C153: Max Queue Length (mi): | D153: =P162 -> 0 | E153: =AA162 -> 0 | F153: =W162 -> 0 | H153: 15 | I153: 15:00:00 | J153: 15 | K153: ='Step 2 - Facility Data Inputs'!I41 -> 0 | L153: 4600 | M153: 0 | N153: 69000 | O153: 0 | P153: 0 | Q153: 0 | R153: 0 | S153: 4600 | T153: 0 | U153: 0 | V153: 0 | W153: 0 | X153: 0 | Y153: 0 | Z153: 0 | AA153: 0 | AB153: 0 | AD153: 0
C154: Max Delay (minutes): | D154: =Q162 -> 0 | E154: =AB162 -> 0 | F154: =X162 -> 0 | H154: 16 | I154: 16:00:00 | J154: 16 | K154: ='Step 2 - Facility Data Inputs'!I42 -> 0 | L154: 4600 | M154: 0 | N154: 73600 | O154: 0 | P154: 0 | Q154: 0 | R154: 0 | S154: 4600 | T154: 0 | U154: 0 | V154: 0 | W154: 0 | X154: 0 | Y154: 0 | Z154: 0 | AA154: 0 | AB154: 0 | AD154: 0
C155: Cost ($): | D155: =R163 -> 0 | E155: =AD163 -> 0 | F155: =Y163 -> 0 | H155: 17 | I155: 17:00:00 | J155: 17 | K155: ='Step 2 - Facility Data Inputs'!I43 -> 0 | L155: 4600 | M155: 0 | N155: 78200 | O155: 0 | P155: 0 | Q155: 0 | R155: 0 | S155: 4600 | T155: 0 | U155: 0 | V155: 0 | W155: 0 | X155: 0 | Y155: 0 | Z155: 0 | AA155: 0 | AB155: 0 | AD155: 0
H156: 18 | I156: 18:00:00 | J156: 18 | K156: ='Step 2 - Facility Data Inputs'!I44 -> 0 | L156: 4600 | M156: 0 | N156: 82800 | O156: 0 | P156: 0 | Q156: 0 | R156: 0 | S156: 4600 | T156: 0 | U156: 0 | V156: 0 | W156: 0 | X156: 0 | Y156: 0 | Z156: 0 | AA156: 0 | AB156: 0 | AD156: 0
H157: 19 | I157: 19:00:00 | J157: 19 | K157: ='Step 2 - Facility Data Inputs'!I45 -> 0 | L157: 4600 | M157: 0 | N157: 87400 | O157: 0 | P157: 0 | Q157: 0 | R157: 0 | S157: 4600 | T157: 0 | U157: =IF((K157<S157),IF((S157-K157)>V156,V156+K157+U156,S157+U156),(S157+U156)) -> 0 | V157: 0 | W157: 0 | X157: 0 | Y157: =(X157*$I$11*($J$16/60))+(X157*(1-$I$11)*($J$17/60)) -> 0 | Z157: 0 | AA157: 0 | AB157: 0 | AD157: 0
H158: 20 | I158: 20:00:00 | J158: 20 | K158: ='Step 2 - Facility Data Inputs'!I46 -> 0 | L158: 4600 | M158: 0 | N158: 92000 | O158: 0 | P158: 0 | Q158: 0 | R158: 0 | S158: 4600 | T158: 0 | U158: =IF((K158<S158),IF((S158-K158)>V157,V157+K158+U157,S158+U157),(S158+U157)) -> 0 | V158: 0 | W158: 0 | X158: 0 | Y158: 0 | Z158: 0 | AA158: 0 | AB158: 0 | AD158: 0
H159: 21 | I159: 21:00:00 | J159: 21 | K159: ='Step 2 - Facility Data Inputs'!I47 -> 0 | L159: 4600 | M159: 0 | N159: 96600 | O159: 0 | P159: 0 | Q159: 0 | R159: 0 | S159: 4600 | T159: 0 | U159: 0 | V159: 0 | W159: 0 | X159: 0 | Y159: 0 | Z159: 0 | AA159: 0 | AB159: 0 | AD159: 0
H160: 22 | I160: 22:00:00 | J160: 22 | K160: ='Step 2 - Facility Data Inputs'!I48 -> 0 | L160: 4600 | M160: 0 | N160: 101200 | O160: 0 | P160: 0 | Q160: 0 | R160: 0 | S160: 4600 | T160: 0 | U160: 0 | V160: 0 | W160: 0 | X160: 0 | Y160: 0 | Z160: 0 | AA160: 0 | AB160: 0 | AD160: 0
H161: 23 | I161: 23:00:00 | J161: 23 | K161: ='Step 2 - Facility Data Inputs'!I49 -> 0 | L161: 4600 | M161: 0 | N161: 105800 | O161: 0 | P161: 0 | Q161: 0 | R161: 0 | S161: 4600 | T161: 0 | U161: 0 | V161: =IF((K161<S161),IF((S161-K161)>V160,0,V160-(S161-K161)),(V160+(K161-S161))) -> 0 | W161: 0 | X161: 0 | Y161: =(X161*$I$11*($J$16/60))+(X161*(1-$I$11)*($J$17/60)) -> 0 | Z161: 0 | AA161: 0 | AB161: 0 | AC161: =IF((X161-Q161)=0,IF(OR(AB160<>0,AB138<>0),0,NA()),X161) ->  | AD161: 0
P162: =MAX(P138:P161) -> 0 | Q162: =MAX(Q138:Q161) -> 0 | R162: =(SUM(R138:R161)) -> 0 | W162: =MAX(W138:W161) -> 0 | X162: =MAX(X138:X161) -> 0 | Y162: =ROUND(SUM(Y138:Y161),0) -> 0 | Z162: =SUM(Z138:Z161) -> 0 | AA162: =MAX(AA138:AA161) -> 0 | AB162: =MAX(AB138:AB161) -> 0 | AD162: =ROUND(SUM(AD138:AD161),0) -> 0
R163: =IF(R162<100,ROUND(R162,0),IF(R162<1000,ROUND(R162,-1),ROUND(R162,-2))) -> 0 | Y163: =AD163+R163 -> 0 | AD163: =IF(AD162<100,ROUND(AD162,0),IF(AD162<1000,ROUND(AD162,-1),ROUND(AD162,-2))) -> 0
A165: ='Step 2 - Facility Data Inputs'!J22 -> Friday | H165: ='Step 2 - Facility Data Inputs'!F139 -> 0 | I165: TIME | K165: DEMAND | L165: Base Capacity | M165: Base Arrivals | N165: Base Departures | O165: Base Queued Vehicles | P165: Base Queue | Q165: Base Delay | R165: Base User Cost | S165: CAPACITY | T165: TOTAL ARRIVALS | U165: TOTAL DEPARTURES | V165: QUEUED VEHICLES | W165: QUEUE LENGTH | X165: Total Delay | Y165: User cost | Z165: WZ QUEUED VEHICLES | AA165: WZ Queue | AB165: WZ Delay | AC165: WZ Delay for Graph | AD165: WZ User Cost
C166: BASE CONDITIONS | J166: Unmet Demand from Previous Day -> | K166: 0 | AF166: Start Time (24 hour clock) | AG166: =G176 -> 0
C167: Open Lane Capacity (pc/h/lane): | D167: ='Step 3 - WZ Analysis'!D117 -> 2300 | E167: Base Conditions Capacity (Total for ALL Lanes): | F167: =D167*$I$10 -> 4600 | H167: 0 | I167: 00:00:00 | J167: 0 | K167: ='Step 2 - Facility Data Inputs'!J26+K166 -> 0 | L167: =$F$167 -> 4600 | M167: =K167 -> 0 | N167: =MIN(K167,L167) -> 0 | O167: =IF((K167-L167)<0,0,K167-L167) -> 0 | P167: =O167*$I$12/(5280*$I$10) -> 0 | Q167: =60*O167/L167 -> 0 | R167: =(Q167*$I$11*($J$16/60))+(Q167*(1-$I$11)*($J$17/60)) -> 0 | S167: =IF($AG$170-H168>=0,IF($G$175="",$F$174,$G$175),IF(AND(H167>=$AG$166,H167<$AG$166+$AG$167),IF($G$175="",$F$174,$G$175),$F$167)) -> 4600 | T167: =K167 -> 0 | U167: =MIN(K167,S167) -> 0 | V167: =IF((K167-S167)<0,0,K167-S167) -> 0 | W167: =V167*$I$12/(5280*$I$10) -> 0 | X167: =IF(S167=0,60*V167,60*V167/S167) -> 0 | Y167: =(X167*$I$11*($J$16/60))+(X167*(1-$I$11)*($J$17/60)) -> 0 | Z167: =V167-O167 -> 0 | AA167: =W167-P167 -> 0 | AB167: =X167-Q167 -> 0 | AC167: =IF((X167-Q167)=0,IF(OR(AB190<>0,AB168<>0),0,NA()),X167) ->  | AD167: =Y167-R167 -> 0 | AF167: Duration of closure (hrs) | AG167: =D178 -> 0
H168: 1 | I168: 01:00:00 | J168: 1 | K168: ='Step 2 - Facility Data Inputs'!J27 -> 0 | L168: =$F$167 -> 4600 | M168: =M167+K168 -> 0 | N168: =IF((K168<M168),IF((L168-K168)>O167,O167+K168+N167,L168+N167),(L168+N167)) -> 4600 | O168: =IF((K168<L168),IF((L168-K168)>O167,0,O167-(L168-K168)),(O167+(K168-L168))) -> 0 | P168: =O168*$I$12/(5280*$I$10) -> 0 | Q168: =60*O168/L168 -> 0 | R168: =(Q168*$I$11*($J$16/60))+(Q168*(1-$I$11)*($J$17/60)) -> 0 | S168: =IF($AG$170-H169>=0,IF($G$175="",$F$174,$G$175),IF(AND(H168>=$AG$166,H168<$AG$166+$AG$167),IF($G$175="",$F$174,$G$175),$F$167)) -> 4600 | T168: =T167+K168 -> 0 | U168: =IF((K168<S168),IF((S168-K168)>V167,V167+K168+U167,S168+U167),(S168+U167)) -> 0 | V168: =IF((K168<S168),IF((S168-K168)>V167,0,V167-(S168-K168)),(V167+(K168-S168))) -> 0 | W168: =V168*$I$12/(5280*$I$10) -> 0 | X168: =IF(S168=0,60*V168,60*V168/S168) -> 0 | Y168: =(X168*$I$11*($J$16/60))+(X168*(1-$I$11)*($J$17/60)) -> 0 | Z168: =V168-O168 -> 0 | AA168: =W168-P168 -> 0 | AB168: =X168-Q168 -> 0 | AC168: =IF((X168-Q168)=0,IF(OR(AB167<>0,AB169<>0),0,NA()),X168) ->  | AD168: =Y168-R168 -> 0
C169: WORKZONE DETAILS | H169: 2 | I169: 02:00:00 | J169: 2 | K169: ='Step 2 - Facility Data Inputs'!J28 -> 0 | L169: 4600 | M169: =M168+K169 -> 0 | N169: =IF((K169<M169),IF((L169-K169)>O168,O168+K169+N168,L169+N168),(L169+N168)) -> 9200 | O169: =IF((K169<L169),IF((L169-K169)>O168,0,O168-(L169-K169)),(O168+(K169-L169))) -> 0 | P169: 0 | Q169: 0 | R169: 0 | S169: 4600 | T169: =T168+K169 -> 0 | U169: =IF((K169<S169),IF((S169-K169)>V168,V168+K169+U168,S169+U168),(S169+U168)) -> 0 | V169: =IF((K169<S169),IF((S169-K169)>V168,0,V168-(S169-K169)),(V168+(K169-S169))) -> 0 | W169: =V169*$I$12/(5280*$I$10) -> 0 | X169: 0 | Y169: 0 | Z169: =V169-O169 -> 0 | AA169: =W169-P169 -> 0 | AB169: 0 | AC169: =IF((X169-Q169)=0,IF(OR(AB168<>0,AB170<>0),0,NA()),X169) ->  | AD169: =Y169-R169 -> 0 | AF169: count | AG169: =COUNT(H167:H190) -> 24
C170: Work Description: | D170: ='Step 3 - WZ Analysis'!D120:F120 -> (Example: Pothole Patching - Close One Lane OR Joint Repair - Two Lanes Closed) | H170: 3 | I170: 03:00:00 | J170: 3 | K170: ='Step 2 - Facility Data Inputs'!J29 -> 0 | L170: 4600 | M170: 0 | N170: =IF((K170<M170),IF((L170-K170)>O169,O169+K170+N169,L170+N169),(L170+N169)) -> 13800 | O170: 0 | P170: 0 | Q170: 0 | R170: 0 | S170: 4600 | T170: 0 | U170: 0 | V170: 0 | W170: =V170*$I$12/(5280*$I$10) -> 0 | X170: =IF(S170=0,60*V170,60*V170/S170) -> 0 | Y170: 0 | Z170: =V170-O170 -> 0 | AA170: =W170-P170 -> 0 | AB170: 0 | AC170: =IF((X170-Q170)=0,IF(OR(AB169<>0,AB171<>0),0,NA()),X170) ->  | AD170: =Y170-R170 -> 0 | AF170: short | AG170: =AG166+AG167-AG169 -> -24
C171: Work Location: | D171: ='Step 3 - WZ Analysis'!D121:F121 -> No Work Zone (Use for Calibrating Existing Conditions) | G171: =VLOOKUP(D171,'Reference Sheet'!$S$2:$T$8,2) -> 538 | H171: 4 | I171: 04:00:00 | J171: 4 | K171: ='Step 2 - Facility Data Inputs'!J30 -> 0 | L171: 4600 | M171: 0 | N171: =IF((K171<M171),IF((L171-K171)>O170,O170+K171+N170,L171+N170),(L171+N170)) -> 18400 | O171: 0 | P171: 0 | Q171: 0 | R171: 0 | S171: 4600 | T171: 0 | U171: 0 | V171: 0 | W171: 0 | X171: 0 | Y171: 0 | Z171: 0 | AA171: 0 | AB171: 0 | AD171: 0
C172: Travel Lane Width (ft): | D172: ='Step 3 - WZ Analysis'!D122:F122 -> > 11.5 | G172: =VLOOKUP(D172,'Reference Sheet'!$V$2:$W$4,2) -> 1 | H172: 5 | I172: 05:00:00 | J172: 5 | K172: ='Step 2 - Facility Data Inputs'!J31 -> 0 | L172: 4600 | M172: 0 | N172: 23000 | O172: 0 | P172: 0 | Q172: 0 | R172: 0 | S172: 4600 | T172: 0 | U172: 0 | V172: 0 | W172: 0 | X172: 0 | Y172: 0 | Z172: 0 | AA172: 0 | AB172: 0 | AD172: 0
C173: Number of Lanes Open: | D173: ='Step 3 - WZ Analysis'!D123:F123 -> 1 | H173: 6 | I173: 06:00:00 | J173: 6 | K173: ='Step 2 - Facility Data Inputs'!J32 -> 0 | L173: 4600 | M173: 0 | N173: 27600 | O173: 0 | P173: 0 | Q173: 0 | R173: 0 | S173: 4600 | T173: 0 | U173: 0 | V173: 0 | W173: 0 | X173: 0 | Y173: 0 | Z173: =V173-O173 -> 0 | AA173: 0 | AB173: 0 | AD173: 0 | AF173: MAX DELAY (minutes) | AG173: =MAX(X167:X190) -> 0
C174: ESTIMATED Work Zone Capacity (pc/h): | D174: =IF(G171=538,D167,IF(VLOOKUP((G171+G172),'HCM 2010 Program'!$C$3:$H$20,6)>(D167),D167,VLOOKUP((G171+G172),'HCM 2010 Program'!$C$3:$H$20,6))) -> 2300 | E174: Capacity all wz lanes | F174: =MIN((D174*D173),F167) -> 2300 | G174: cell below in use | H174: 7 | I174: 07:00:00 | J174: 7 | K174: ='Step 2 - Facility Data Inputs'!J33 -> 0 | L174: 4600 | M174: 0 | N174: 32200 | O174: 0 | P174: 0 | Q174: 0 | R174: 0 | S174: 4600 | T174: 0 | U174: 0 | V174: 0 | W174: 0 | X174: 0 | Y174: 0 | Z174: =V174-O174 -> 0 | AA174: 0 | AB174: 0 | AD174: 0
C175: USER DEFINED Work Zone Capacity (pc/h): | E175: ='Step 3 - WZ Analysis'!E125 -> 0 | G175: =IF('Step 3 - WZ Analysis'!E125="","",'Step 3 - WZ Analysis'!E125) ->  | H175: 8 | I175: 08:00:00 | J175: 8 | K175: ='Step 2 - Facility Data Inputs'!J34 -> 0 | L175: 4600 | M175: 0 | N175: 36800 | O175: 0 | P175: 0 | Q175: 0 | R175: 0 | S175: 4600 | T175: 0 | U175: 0 | V175: 0 | W175: 0 | X175: 0 | Y175: 0 | Z175: 0 | AA175: 0 | AB175: 0 | AD175: 0 | AF175: AVE DELAY (minutes) | AG175: =(SUM(V167:V190)/T190)*60 -> 
C176: Start Time: | D176: ='Step 3 - WZ Analysis'!D126:F126 -> 00:00:00 | G176: =VLOOKUP(D176,'WZ Analysis (Worksheet)'!$I$22:$J$45,2) -> 0 | H176: 9 | I176: 09:00:00 | J176: 9 | K176: ='Step 2 - Facility Data Inputs'!J35 -> 0 | L176: 4600 | M176: 0 | N176: 41400 | O176: 0 | P176: 0 | Q176: 0 | R176: 0 | S176: 4600 | T176: 0 | U176: 0 | V176: 0 | W176: 0 | X176: 0 | Y176: 0 | Z176: 0 | AA176: 0 | AB176: 0 | AD176: 0
C177: End Time: | D177: ='Step 3 - WZ Analysis'!D127:F127 -> 00:00:00 | G177: =VLOOKUP(D177,'WZ Analysis (Worksheet)'!$I$22:$J$45,2) -> 0 | H177: 10 | I177: 10:00:00 | J177: 10 | K177: ='Step 2 - Facility Data Inputs'!J36 -> 0 | L177: 4600 | M177: 0 | N177: 46000 | O177: 0 | P177: 0 | Q177: 0 | R177: 0 | S177: 4600 | T177: 0 | U177: 0 | V177: 0 | W177: 0 | X177: 0 | Y177: 0 | Z177: 0 | AA177: 0 | AB177: 0 | AD177: 0 | AF177: COST ($) | AG177: =Z191 -> 0
C178: Duration of closure (hrs): | D178: ='Step 3 - WZ Analysis'!D128:F128 -> 0 | H178: 11 | I178: 11:00:00 | J178: 11 | K178: ='Step 2 - Facility Data Inputs'!J37 -> 0 | L178: 4600 | M178: 0 | N178: 50600 | O178: 0 | P178: 0 | Q178: 0 | R178: 0 | S178: 4600 | T178: 0 | U178: 0 | V178: 0 | W178: 0 | X178: 0 | Y178: 0 | Z178: 0 | AA178: 0 | AB178: 0 | AD178: 0
H179: 12 | I179: 12:00:00 | J179: 12 | K179: ='Step 2 - Facility Data Inputs'!J38 -> 0 | L179: 4600 | M179: 0 | N179: 55200 | O179: 0 | P179: 0 | Q179: 0 | R179: 0 | S179: 4600 | T179: 0 | U179: 0 | V179: 0 | W179: 0 | X179: 0 | Y179: 0 | Z179: 0 | AA179: 0 | AB179: 0 | AD179: 0 | AF179: MAX QUEUE LENGTH (miles) | AG179: =W191 -> 0
C180: RESULTS | H180: 13 | I180: 13:00:00 | J180: 13 | K180: ='Step 2 - Facility Data Inputs'!J39 -> 0 | L180: 4600 | M180: 0 | N180: 59800 | O180: 0 | P180: 0 | Q180: 0 | R180: 0 | S180: 4600 | T180: 0 | U180: 0 | V180: 0 | W180: 0 | X180: 0 | Y180: 0 | Z180: 0 | AA180: 0 | AB180: 0 | AD180: 0
C181: Measure of Effectiveness | D181: Base Conditions | E181: Work Zone | F181: Total | H181: 14 | I181: 14:00:00 | J181: 14 | K181: ='Step 2 - Facility Data Inputs'!J40 -> 0 | L181: 4600 | M181: 0 | N181: 64400 | O181: 0 | P181: 0 | Q181: 0 | R181: 0 | S181: 4600 | T181: 0 | U181: 0 | V181: 0 | W181: 0 | X181: 0 | Y181: 0 | Z181: 0 | AA181: 0 | AB181: 0 | AD181: 0 | AF181: Hours per day of queuing | AG181: =24-COUNTIF(AA168:AA191,0) -> 0
C182: Max Queue Length (mi): | D182: =P191 -> 0 | E182: =AA191 -> 0 | F182: =W191 -> 0 | H182: 15 | I182: 15:00:00 | J182: 15 | K182: ='Step 2 - Facility Data Inputs'!J41 -> 0 | L182: 4600 | M182: 0 | N182: 69000 | O182: 0 | P182: 0 | Q182: 0 | R182: 0 | S182: 4600 | T182: 0 | U182: 0 | V182: 0 | W182: 0 | X182: 0 | Y182: 0 | Z182: 0 | AA182: 0 | AB182: 0 | AD182: 0
C183: Max Delay (minutes): | D183: =Q191 -> 0 | E183: =AB191 -> 0 | F183: =X191 -> 0 | H183: 16 | I183: 16:00:00 | J183: 16 | K183: ='Step 2 - Facility Data Inputs'!J42 -> 0 | L183: 4600 | M183: 0 | N183: 73600 | O183: 0 | P183: 0 | Q183: 0 | R183: 0 | S183: 4600 | T183: 0 | U183: 0 | V183: 0 | W183: 0 | X183: 0 | Y183: 0 | Z183: 0 | AA183: 0 | AB183: 0 | AD183: 0
C184: Cost ($): | D184: =R192 -> 0 | E184: =AD192 -> 0 | F184: =Y192 -> 0 | H184: 17 | I184: 17:00:00 | J184: 17 | K184: ='Step 2 - Facility Data Inputs'!J43 -> 0 | L184: 4600 | M184: 0 | N184: 78200 | O184: 0 | P184: 0 | Q184: 0 | R184: 0 | S184: 4600 | T184: 0 | U184: 0 | V184: 0 | W184: 0 | X184: 0 | Y184: 0 | Z184: 0 | AA184: 0 | AB184: 0 | AD184: 0
H185: 18 | I185: 18:00:00 | J185: 18 | K185: ='Step 2 - Facility Data Inputs'!J44 -> 0 | L185: 4600 | M185: 0 | N185: 82800 | O185: 0 | P185: 0 | Q185: 0 | R185: 0 | S185: 4600 | T185: 0 | U185: 0 | V185: 0 | W185: 0 | X185: 0 | Y185: 0 | Z185: 0 | AA185: 0 | AB185: 0 | AD185: 0
H186: 19 | I186: 19:00:00 | J186: 19 | K186: ='Step 2 - Facility Data Inputs'!J45 -> 0 | L186: 4600 | M186: 0 | N186: 87400 | O186: 0 | P186: 0 | Q186: 0 | R186: 0 | S186: 4600 | T186: 0 | U186: =IF((K186<S186),IF((S186-K186)>V185,V185+K186+U185,S186+U185),(S186+U185)) -> 0 | V186: 0 | W186: 0 | X186: 0 | Y186: 0 | Z186: 0 | AA186: 0 | AB186: 0 | AD186: 0
H187: 20 | I187: 20:00:00 | J187: 20 | K187: ='Step 2 - Facility Data Inputs'!J46 -> 0 | L187: 4600 | M187: 0 | N187: 92000 | O187: 0 | P187: 0 | Q187: 0 | R187: 0 | S187: 4600 | T187: 0 | U187: =IF((K187<S187),IF((S187-K187)>V186,V186+K187+U186,S187+U186),(S187+U186)) -> 0 | V187: 0 | W187: 0 | X187: 0 | Y187: 0 | Z187: 0 | AA187: 0 | AB187: 0 | AD187: 0
H188: 21 | I188: 21:00:00 | J188: 21 | K188: ='Step 2 - Facility Data Inputs'!J47 -> 0 | L188: 4600 | M188: 0 | N188: 96600 | O188: 0 | P188: 0 | Q188: 0 | R188: 0 | S188: 4600 | T188: 0 | U188: 0 | V188: 0 | W188: 0 | X188: 0 | Y188: 0 | Z188: 0 | AA188: 0 | AB188: 0 | AD188: 0
H189: 22 | I189: 22:00:00 | J189: 22 | K189: ='Step 2 - Facility Data Inputs'!J48 -> 0 | L189: 4600 | M189: 0 | N189: 101200 | O189: 0 | P189: 0 | Q189: 0 | R189: 0 | S189: 4600 | T189: 0 | U189: 0 | V189: 0 | W189: 0 | X189: 0 | Y189: 0 | Z189: 0 | AA189: 0 | AB189: 0 | AD189: 0
H190: 23 | I190: 23:00:00 | J190: 23 | K190: ='Step 2 - Facility Data Inputs'!J49 -> 0 | L190: 4600 | M190: 0 | N190: 105800 | O190: 0 | P190: 0 | Q190: 0 | R190: 0 | S190: 4600 | T190: 0 | U190: 0 | V190: 0 | W190: 0 | X190: 0 | Y190: 0 | Z190: 0 | AA190: 0 | AB190: 0 | AC190: =IF((X190-Q190)=0,IF(OR(AB189<>0,AB167<>0),0,NA()),X190) ->  | AD190: 0
P191: =MAX(P167:P190) -> 0 | Q191: =MAX(Q167:Q190) -> 0 | R191: =(SUM(R167:R190)) -> 0 | W191: =MAX(W167:W190) -> 0 | X191: =MAX(X167:X190) -> 0 | Y191: =ROUND(SUM(Y167:Y190),0) -> 0 | Z191: =SUM(Z167:Z190) -> 0 | AA191: =MAX(AA167:AA190) -> 0 | AB191: =MAX(AB167:AB190) -> 0 | AD191: =ROUND(SUM(AD167:AD190),0) -> 0
R192: =IF(R191<100,ROUND(R191,0),IF(R191<1000,ROUND(R191,-1),ROUND(R191,-2))) -> 0 | Y192: =AD192+R192 -> 0 | AD192: =IF(AD191<100,ROUND(AD191,0),IF(AD191<1000,ROUND(AD191,-1),ROUND(AD191,-2))) -> 0
A194: ='Step 2 - Facility Data Inputs'!K22 -> Saturday | H194: ='Step 2 - Facility Data Inputs'!F168 -> 0 | I194: TIME | K194: DEMAND | L194: Base Capacity | M194: Base Arrivals | N194: Base Departures | O194: Base Queued Vehicles | P194: Base Queue | Q194: Base Delay | R194: Base User Cost | S194: CAPACITY | T194: TOTAL ARRIVALS | U194: TOTAL DEPARTURES | V194: QUEUED VEHICLES | W194: QUEUE LENGTH | X194: Total Delay | Y194: User cost | Z194: WZ QUEUED VEHICLES | AA194: WZ Queue | AB194: WZ Delay | AC194: WZ Delay for Graph | AD194: WZ User Cost
C195: BASE CONDITIONS | J195: Unmet Demand from Previous Day -> | K195: 0 | AF195: Start Time (24 hour clock) | AG195: =G205 -> 0
C196: Open Lane Capacity (pc/h/lane): | D196: ='Step 3 - WZ Analysis'!D139 -> 2300 | E196: Base Conditions Capacity (Total for ALL Lanes): | F196: =D196*$I$10 -> 4600 | H196: 0 | I196: 00:00:00 | J196: 0 | K196: ='Step 2 - Facility Data Inputs'!K26+K195 -> 0 | L196: =$F$196 -> 4600 | M196: =K196 -> 0 | N196: =MIN(K196,L196) -> 0 | O196: =IF((K196-L196)<0,0,K196-L196) -> 0 | P196: =O196*$I$12/(5280*$I$10) -> 0 | Q196: =60*O196/L196 -> 0 | R196: =(Q196*$I$11*($J$16/60))+(Q196*(1-$I$11)*($J$17/60)) -> 0 | S196: =IF($AG$199-H197>=0,IF($G$204="",$F$203,$G$204),IF(AND(H196>=$AG$195,H196<$AG$195+$AG$196),IF($G$204="",$F$203,$G$204),$F$196)) -> 4600 | T196: =K196 -> 0 | U196: =MIN(K196,S196) -> 0 | V196: =IF((K196-S196)<0,0,K196-S196) -> 0 | W196: =V196*$I$12/(5280*$I$10) -> 0 | X196: =IF(S196=0,60*V196,60*V196/S196) -> 0 | Y196: =(X196*$I$11*($J$16/60))+(X196*(1-$I$11)*($J$17/60)) -> 0 | Z196: =V196-O196 -> 0 | AA196: =W196-P196 -> 0 | AB196: =X196-Q196 -> 0 | AC196: =IF((X196-Q196)=0,IF(OR(AB219<>0,AB197<>0),0,NA()),X196) ->  | AD196: =Y196-R196 -> 0 | AF196: Duration of closure (hrs) | AG196: =D207 -> 0
H197: 1 | I197: 01:00:00 | J197: 1 | K197: ='Step 2 - Facility Data Inputs'!K27 -> 0 | L197: =$F$196 -> 4600 | M197: =M196+K197 -> 0 | N197: =IF((K197<M197),IF((L197-K197)>O196,O196+K197+N196,L197+N196),(L197+N196)) -> 4600 | O197: =IF((K197<L197),IF((L197-K197)>O196,0,O196-(L197-K197)),(O196+(K197-L197))) -> 0 | P197: =O197*$I$12/(5280*$I$10) -> 0 | Q197: =60*O197/L197 -> 0 | R197: =(Q197*$I$11*($J$16/60))+(Q197*(1-$I$11)*($J$17/60)) -> 0 | S197: =IF($AG$199-H198>=0,IF($G$204="",$F$203,$G$204),IF(AND(H197>=$AG$195,H197<$AG$195+$AG$196),IF($G$204="",$F$203,$G$204),$F$196)) -> 4600 | T197: =T196+K197 -> 0 | U197: =IF((K197<S197),IF((S197-K197)>V196,V196+K197+U196,S197+U196),(S197+U196)) -> 0 | V197: =IF((K197<S197),IF((S197-K197)>V196,0,V196-(S197-K197)),(V196+(K197-S197))) -> 0 | W197: =V197*$I$12/(5280*$I$10) -> 0 | X197: =IF(S197=0,60*V197,60*V197/S197) -> 0 | Y197: =(X197*$I$11*($J$16/60))+(X197*(1-$I$11)*($J$17/60)) -> 0 | Z197: =V197-O197 -> 0 | AA197: =W197-P197 -> 0 | AB197: =X197-Q197 -> 0 | AC197: =IF((X197-Q197)=0,IF(OR(AB196<>0,AB198<>0),0,NA()),X197) ->  | AD197: =Y197-R197 -> 0
C198: WORKZONE DETAILS | H198: 2 | I198: 02:00:00 | J198: 2 | K198: ='Step 2 - Facility Data Inputs'!K28 -> 0 | L198: 4600 | M198: =M197+K198 -> 0 | N198: =IF((K198<M198),IF((L198-K198)>O197,O197+K198+N197,L198+N197),(L198+N197)) -> 9200 | O198: =IF((K198<L198),IF((L198-K198)>O197,0,O197-(L198-K198)),(O197+(K198-L198))) -> 0 | P198: 0 | Q198: 0 | R198: 0 | S198: 4600 | T198: =T197+K198 -> 0 | U198: =IF((K198<S198),IF((S198-K198)>V197,V197+K198+U197,S198+U197),(S198+U197)) -> 0 | V198: =IF((K198<S198),IF((S198-K198)>V197,0,V197-(S198-K198)),(V197+(K198-S198))) -> 0 | W198: =V198*$I$12/(5280*$I$10) -> 0 | X198: 0 | Y198: 0 | Z198: =V198-O198 -> 0 | AA198: =W198-P198 -> 0 | AB198: 0 | AC198: =IF((X198-Q198)=0,IF(OR(AB197<>0,AB199<>0),0,NA()),X198) ->  | AD198: =Y198-R198 -> 0 | AF198: count | AG198: =COUNT(H196:H219) -> 24
C199: Work Description: | D199: ='Step 3 - WZ Analysis'!D142:F142 -> (Example: Pothole Patching - Close One Lane OR Joint Repair - Two Lanes Closed) | H199: 3 | I199: 03:00:00 | J199: 3 | K199: ='Step 2 - Facility Data Inputs'!K29 -> 0 | L199: 4600 | M199: 0 | N199: =IF((K199<M199),IF((L199-K199)>O198,O198+K199+N198,L199+N198),(L199+N198)) -> 13800 | O199: 0 | P199: 0 | Q199: 0 | R199: 0 | S199: 4600 | T199: 0 | U199: 0 | V199: 0 | W199: =V199*$I$12/(5280*$I$10) -> 0 | X199: =IF(S199=0,60*V199,60*V199/S199) -> 0 | Y199: 0 | Z199: =V199-O199 -> 0 | AA199: =W199-P199 -> 0 | AB199: 0 | AC199: =IF((X199-Q199)=0,IF(OR(AB198<>0,AB200<>0),0,NA()),X199) ->  | AD199: =Y199-R199 -> 0 | AF199: short | AG199: =AG195+AG196-AG198 -> -24
C200: Work Location: | D200: ='Step 3 - WZ Analysis'!D143:F143 -> No Work Zone (Use for Calibrating Existing Conditions) | G200: =VLOOKUP(D200,'Reference Sheet'!$S$2:$T$8,2) -> 538 | H200: 4 | I200: 04:00:00 | J200: 4 | K200: ='Step 2 - Facility Data Inputs'!K30 -> 0 | L200: 4600 | M200: 0 | N200: =IF((K200<M200),IF((L200-K200)>O199,O199+K200+N199,L200+N199),(L200+N199)) -> 18400 | O200: 0 | P200: 0 | Q200: 0 | R200: 0 | S200: 4600 | T200: 0 | U200: 0 | V200: 0 | W200: 0 | X200: 0 | Y200: 0 | Z200: 0 | AA200: 0 | AB200: 0 | AD200: 0
C201: Travel Lane Width (ft): | D201: ='Step 3 - WZ Analysis'!D144:F144 -> > 11.5 | G201: =VLOOKUP(D201,'Reference Sheet'!$V$2:$W$4,2) -> 1 | H201: 5 | I201: 05:00:00 | J201: 5 | K201: ='Step 2 - Facility Data Inputs'!K31 -> 0 | L201: 4600 | M201: 0 | N201: 23000 | O201: 0 | P201: 0 | Q201: 0 | R201: 0 | S201: 4600 | T201: 0 | U201: 0 | V201: 0 | W201: 0 | X201: 0 | Y201: 0 | Z201: 0 | AA201: 0 | AB201: 0 | AD201: 0
C202: Number of Lanes Open: | D202: ='Step 3 - WZ Analysis'!D145:F145 -> 1 | H202: 6 | I202: 06:00:00 | J202: 6 | K202: ='Step 2 - Facility Data Inputs'!K32 -> 0 | L202: 4600 | M202: 0 | N202: 27600 | O202: 0 | P202: 0 | Q202: 0 | R202: 0 | S202: 4600 | T202: 0 | U202: 0 | V202: 0 | W202: 0 | X202: 0 | Y202: =(X202*$I$11*($J$16/60))+(X202*(1-$I$11)*($J$17/60)) -> 0 | Z202: =V202-O202 -> 0 | AA202: 0 | AB202: 0 | AD202: 0 | AF202: MAX DELAY (minutes) | AG202: =MAX(X196:X219) -> 0
C203: ESTIMATED Work Zone Capacity (pc/h): | D203: =IF(G200=538,D196,IF(VLOOKUP((G200+G201),'HCM 2010 Program'!$C$3:$H$20,6)>(D196),D196,VLOOKUP((G200+G201),'HCM 2010 Program'!$C$3:$H$20,6))) -> 2300 | E203: Capacity all wz lanes | F203: =MIN((D203*D202),F196) -> 2300 | G203: cell below in use | H203: 7 | I203: 07:00:00 | J203: 7 | K203: ='Step 2 - Facility Data Inputs'!K33 -> 0 | L203: 4600 | M203: 0 | N203: 32200 | O203: 0 | P203: 0 | Q203: 0 | R203: 0 | S203: 4600 | T203: 0 | U203: 0 | V203: 0 | W203: 0 | X203: 0 | Y203: 0 | Z203: =V203-O203 -> 0 | AA203: 0 | AB203: 0 | AD203: 0
C204: USER DEFINED Work Zone Capacity (pc/h): | E204: ='Step 3 - WZ Analysis'!E147 -> 0 | G204: =IF('Step 3 - WZ Analysis'!E147="","",'Step 3 - WZ Analysis'!E147) ->  | H204: 8 | I204: 08:00:00 | J204: 8 | K204: ='Step 2 - Facility Data Inputs'!K34 -> 0 | L204: 4600 | M204: 0 | N204: 36800 | O204: 0 | P204: 0 | Q204: 0 | R204: 0 | S204: 4600 | T204: 0 | U204: 0 | V204: 0 | W204: 0 | X204: 0 | Y204: 0 | Z204: 0 | AA204: 0 | AB204: 0 | AD204: 0 | AF204: AVE DELAY (minutes) | AG204: =(SUM(V196:V219)/T219)*60 -> 
C205: Start Time: | D205: ='Step 3 - WZ Analysis'!D148:F148 -> 00:00:00 | G205: =VLOOKUP(D205,'WZ Analysis (Worksheet)'!$I$22:$J$45,2) -> 0 | H205: 9 | I205: 09:00:00 | J205: 9 | K205: ='Step 2 - Facility Data Inputs'!K35 -> 0 | L205: 4600 | M205: 0 | N205: 41400 | O205: 0 | P205: 0 | Q205: 0 | R205: 0 | S205: 4600 | T205: 0 | U205: 0 | V205: 0 | W205: 0 | X205: 0 | Y205: 0 | Z205: 0 | AA205: 0 | AB205: 0 | AD205: 0
C206: End Time: | D206: ='Step 3 - WZ Analysis'!D149:F149 -> 00:00:00 | G206: =VLOOKUP(D206,'WZ Analysis (Worksheet)'!$I$22:$J$45,2) -> 0 | H206: 10 | I206: 10:00:00 | J206: 10 | K206: ='Step 2 - Facility Data Inputs'!K36 -> 0 | L206: 4600 | M206: 0 | N206: 46000 | O206: 0 | P206: 0 | Q206: 0 | R206: 0 | S206: 4600 | T206: 0 | U206: 0 | V206: 0 | W206: 0 | X206: 0 | Y206: 0 | Z206: 0 | AA206: 0 | AB206: 0 | AD206: 0 | AF206: COST ($) | AG206: =Z220 -> 0
C207: Duration of closure (hrs): | D207: ='Step 3 - WZ Analysis'!D150:F150 -> 0 | H207: 11 | I207: 11:00:00 | J207: 11 | K207: ='Step 2 - Facility Data Inputs'!K37 -> 0 | L207: 4600 | M207: 0 | N207: 50600 | O207: 0 | P207: 0 | Q207: 0 | R207: 0 | S207: 4600 | T207: 0 | U207: 0 | V207: 0 | W207: 0 | X207: 0 | Y207: 0 | Z207: 0 | AA207: 0 | AB207: 0 | AD207: 0
H208: 12 | I208: 12:00:00 | J208: 12 | K208: ='Step 2 - Facility Data Inputs'!K38 -> 0 | L208: 4600 | M208: 0 | N208: 55200 | O208: 0 | P208: 0 | Q208: 0 | R208: 0 | S208: 4600 | T208: 0 | U208: 0 | V208: 0 | W208: 0 | X208: 0 | Y208: 0 | Z208: 0 | AA208: 0 | AB208: 0 | AD208: 0 | AF208: MAX QUEUE LENGTH (miles) | AG208: =W220 -> 0
C209: RESULTS | H209: 13 | I209: 13:00:00 | J209: 13 | K209: ='Step 2 - Facility Data Inputs'!K39 -> 0 | L209: 4600 | M209: 0 | N209: 59800 | O209: 0 | P209: 0 | Q209: 0 | R209: 0 | S209: 4600 | T209: 0 | U209: 0 | V209: 0 | W209: 0 | X209: 0 | Y209: 0 | Z209: 0 | AA209: 0 | AB209: 0 | AD209: 0
C210: Measure of Effectiveness | D210: Base Conditions | E210: Work Zone | F210: Total | H210: 14 | I210: 14:00:00 | J210: 14 | K210: ='Step 2 - Facility Data Inputs'!K40 -> 0 | L210: 4600 | M210: 0 | N210: 64400 | O210: 0 | P210: 0 | Q210: 0 | R210: 0 | S210: 4600 | T210: 0 | U210: 0 | V210: 0 | W210: 0 | X210: 0 | Y210: 0 | Z210: 0 | AA210: 0 | AB210: 0 | AD210: 0 | AF210: Hours per day of queuing | AG210: =24-COUNTIF(AA197:AA220,0) -> 0
C211: Max Queue Length (mi): | D211: =P220 -> 0 | E211: =AA220 -> 0 | F211: =W220 -> 0 | H211: 15 | I211: 15:00:00 | J211: 15 | K211: ='Step 2 - Facility Data Inputs'!K41 -> 0 | L211: 4600 | M211: 0 | N211: 69000 | O211: 0 | P211: 0 | Q211: 0 | R211: 0 | S211: 4600 | T211: 0 | U211: 0 | V211: 0 | W211: 0 | X211: 0 | Y211: 0 | Z211: 0 | AA211: 0 | AB211: 0 | AD211: 0
C212: Max Delay (minutes): | D212: =Q220 -> 0 | E212: =AB220 -> 0 | F212: =X220 -> 0 | H212: 16 | I212: 16:00:00 | J212: 16 | K212: ='Step 2 - Facility Data Inputs'!K42 -> 0 | L212: 4600 | M212: 0 | N212: 73600 | O212: 0 | P212: 0 | Q212: 0 | R212: 0 | S212: 4600 | T212: 0 | U212: 0 | V212: 0 | W212: 0 | X212: 0 | Y212: 0 | Z212: 0 | AA212: 0 | AB212: 0 | AD212: 0
C213: Cost ($): | D213: =R221 -> 0 | E213: =AD221 -> 0 | F213: =Y221 -> 0 | H213: 17 | I213: 17:00:00 | J213: 17 | K213: ='Step 2 - Facility Data Inputs'!K43 -> 0 | L213: 4600 | M213: 0 | N213: 78200 | O213: 0 | P213: 0 | Q213: 0 | R213: 0 | S213: 4600 | T213: 0 | U213: 0 | V213: 0 | W213: 0 | X213: 0 | Y213: 0 | Z213: 0 | AA213: 0 | AB213: 0 | AD213: 0
H214: 18 | I214: 18:00:00 | J214: 18 | K214: ='Step 2 - Facility Data Inputs'!K44 -> 0 | L214: 4600 | M214: 0 | N214: 82800 | O214: 0 | P214: 0 | Q214: 0 | R214: 0 | S214: 4600 | T214: 0 | U214: 0 | V214: 0 | W214: 0 | X214: 0 | Y214: 0 | Z214: 0 | AA214: 0 | AB214: 0 | AD214: 0
... 7 more rows

Sheet ADV WZ Calcs (hidden)
E1: 1. Construction Vehicle Warning System | Q1: 2. Dynamic Late Merge (Zipper Merge) System | AC1: 8. Travel Time Advisory System | AO1: 9. Travel Time Advisory System with Alternative Route | BA1: 3. Queue Warning System | BM1: 4. Road Closure | BY1: 5. Speed Warning System | CK1: 7. Temporary Traffic Incident Management and ITS System | CW1: 6. Temporary Rumble Strips
E2: Pass/Fail Criteria | G2: Scoring | L2: Costs | O2: Comments | Q2: Pass/Fail Criteria | S2: Scoring Calculations | X2: Costs | AA2: Comments | AC2: Pass/Fail Criteria | AE2: Scoring Calculations | AJ2: Costs | AM2: Comments | AO2: Pass/Fail Criteria | AQ2: Scoring Calculations | AV2: Costs | AY2: Comments | BA2: Pass/Fail Criteria | BC2: Scoring Calculations | BH2: Costs | BK2: Comments | BM2: Pass/Fail Criteria | BO2: Scoring Calculations | BT2: Costs | BW2: Comments | BY2: Pass/Fail Criteria | CA2: Scoring Calculations | CF2: Costs | CI2: Comments | CK2: Pass/Fail Criteria | CM2: Scoring Calculations | CR2: Costs | CU2: Comments | CW2: Pass/Fail Criteria | CY2: Scoring Calculations | DD2: Costs | DG2: Comments
A3: Question / Criteria | B3: Value | C3: Unit | E3: Minimum Threshold | F3: Result | G3: Lower Threshold | H3: Upper Threshold | I3: Lower Limit Score | J3: Upper Limit Score | K3: Score | L3: Base Cost | M3: Weekly Maint Cost | N3: Total Cost | Q3: Minimum Threshold | R3: Result | S3: Lower Threshold | T3: Upper Threshold | U3: Lower Limit Score | V3: Upper Limit Score | W3: Score | X3: Base Cost | Y3: Weekly Maint Cost | Z3: Total Cost | AC3: Minimum Threshold | AD3: Result | AE3: Lower Threshold | AF3: Upper Threshold | AG3: Lower Limit Score | AH3: Upper Limit Score | AI3: Score | AJ3: Base Cost | AK3: Weekly Maint Cost | AL3: Total Cost | AO3: Minimum Threshold | AP3: Result | AQ3: Lower Threshold | AR3: Upper Threshold | AS3: Lower Limit Score | AT3: Upper Limit Score | AU3: Score | AV3: Base Cost | AW3: Weekly Maint Cost | AX3: Total Cost | BA3: Minimum Threshold | BB3: Result | BC3: Lower Threshold | BD3: Upper Threshold | BE3: Lower Limit Score | BF3: Upper Limit Score | BG3: Score | BH3: Base Cost | BI3: Weekly Maint Cost | BJ3: Total Cost | BM3: Minimum Threshold | BN3: Result | BO3: Lower Threshold | BP3: Upper Threshold | BQ3: Lower Limit Score | BR3: Upper Limit Score | BS3: Score | BT3: Base Cost | BU3: Weekly Maint Cost | BV3: Total Cost | BY3: Minimum Threshold | BZ3: Result | CA3: Lower Threshold | CB3: Upper Threshold | CC3: Lower Limit Score | CD3: Upper Limit Score | CE3: Score | CF3: Base Cost | CG3: Weekly Maint Cost | CH3: Total Cost | CK3: Minimum Threshold | CL3: Result | CM3: Lower Threshold | CN3: Upper Threshold | CO3: Lower Limit Score | CP3: Upper Limit Score | CQ3: Score | CR3: Base Cost | CS3: Weekly Maint Cost | CT3: Total Cost | CW3: Minimum Threshold | CX3: Result | CY3: Lower Threshold | CZ3: Upper Threshold | DA3: Lower Limit Score | DB3: Upper Limit Score | DC3: Score | DD3: Base Cost | DE3: Weekly Maint Cost | DF3: Total Cost
A4: ='Step 3a - ADV WZ Analysis'!A10 -> Facility Speed Limit (mph) | B4: ='Step 3a - ADV WZ Analysis'!C10 -> 0 | C4: mph | Q4: 40 | R4: =B4>=Q4 -> FALSE | S4: 40 | T4: 65 | U4: 3 | V4: 10 | W4: =IF($B4<=S4,U4,IF($B4>=T4,V4,U4+(V4-U4)*($B4-S4)/(T4-S4))) -> 3 | AA4: Approach speed must be at least 50 mph. Higher approach speeds increase the probability of conflicts and crashes at the back of a queue. | BC4: 40 | BD4: 65 | BE4: 3 | BF4: 10 | BG4: =IF($B4<=BC4,BE4,IF($B4>=BD4,BF4,BE4+(BF4-BE4)*($B4-BC4)/(BD4-BC4))) -> 3 | BK4: Higher speeds increase risk for vehicles approaching the back of a queue | BW4: Higher speeds increase risk for vehicles approaching the back of a queue | BY4: 45 | BZ4: =BY4<=B4 -> FALSE | CA4: 35 | CB4: 55 | CC4: 2 | CD4: 8 | CE4: =IF($B4<=CA4,CC4,IF($B4>=CB4,CD4,CC4+(CD4-CC4)*($B4-CA4)/(CB4-CA4))) -> 2 | CI4: Applicable in work zones with higher speeds | CK4: 55 | CL4: =$B4>=CK4 -> FALSE | CM4: 55 | CN4: 70 | CO4: 1 | CP4: 10 | CQ4: =IF($B4<=CM4,CO4,IF($B4>=CN4,CP4,CO4+(CP4-CO4)*($B4-CM4)/(CN4-CM4))) -> 1 | CW4: 35 | CX4: =$B4>=CW4 -> FALSE | CY4: 35 | CZ4: 60 | DA4: 5 | DB4: 10 | DC4: =IF($B4<=CY4,DA4,IF($B4>=CZ4,DB4,DA4+(DB4-DA4)*($B4-CY4)/(CZ4-CY4))) -> 5 | DD4: 2000 | DF4: =DD4 -> 2000 | DG4: Assumes 1 set and 1 approach
A5: ='Step 3a - ADV WZ Analysis'!A12 -> Are traffic patterns inconsistent from day to day? (e.g. unpredictible with substantial variability or impacts from random local traffic genertors) | B5: ='Step 3a - ADV WZ Analysis'!C12 -> 0 | C5: Y/N | S5: No | T5: Yes | U5: 3 | V5: 10 | W5: =IF($B5<=S5,U5,IF($B5>=T5,V5,U5+(V5-U5)*($B5-S5)/(T5-S5))) -> 3 | AE5: No | AF5: Yes | AG5: 3 | AH5: 10 | AI5: =IF($B5<=AE5,AG5,IF($B5>=AF5,AH5,AG5+(AH5-AG5)*($B5-AE5)/(AF5-AE5))) -> 3 | AM5: TT Advisory systems are more useful when traffic is inconsistent. | AQ5: No | AR5: Yes | AS5: 3 | AT5: 10 | AU5: =IF($B5<=AQ5,AS5,IF($B5>=AR5,AT5,AS5+(AT5-AS5)*($B5-AQ5)/(AR5-AQ5))) -> 3 | AY5: Variability increases the value of a TT/Alt Route system | BC5: No | BD5: Yes | BE5: 3 | BF5: 8 | BG5: =IF($B5<=BC5,BE5,IF($B5>=BD5,BF5,BE5+(BF5-BE5)*($B5-BC5)/(BD5-BC5))) -> 3 | BK5: Unpredictible traffic incrases the value of a queue warning system | BW5: Unpredictible traffic incrases the value of a queue warning system
A6: ='Step 3a - ADV WZ Analysis'!A14 -> Is the work zone on a route with an existing ITS Travel Time System? | B6: ='Step 3a - ADV WZ Analysis'!C14 -> 0 | C6: Y/N | AE6: No | AF6: Yes | AG6: 5 | AH6: 20 | AI6: =IF($B6<=AE6,AG6,IF($B6>=AF6,AH6,AG6+(AH6-AG6)*($B6-AE6)/(AF6-AE6))) -> 5 | AJ6: =-AJ11*0.75 -> -15000 | AK6: =-AK13*0.75 -> -56.25 | AL6: =IF($B6="Yes",AJ6*($B11+B25)+AK6*($B11+B25),0) -> 0 | AM6: If this falls within an existing ITS system, then the setup cost is estimted at 75% lower | AQ6: No | AR6: Yes | AS6: 5 | AT6: 20 | AU6: =IF($B6<=AQ6,AS6,IF($B6>=AR6,AT6,AS6+(AT6-AS6)*($B6-AQ6)/(AR6-AQ6))) -> 5 | AV6: =-AV11*0.75 -> -15000 | AW6: =-AW13*0.75 -> -56.25 | AX6: =IF(B6="Yes",AV6*(B11+N25)+AW6*(B11+N25),0) -> 0 | AY6: An existing ITS system increases the feasibility for and reduces cost for this system. | BC6: No | BD6: Yes | BE6: 5 | BF6: 0 | BG6: =IF($B6<=BC6,BE6,IF($B6>=BD6,BF6,BE6+(BF6-BE6)*($B6-BC6)/(BD6-BC6))) -> 5 | BK6: Existing ITS devices may reduce the cost of detecting real-time queues | BW6: Existing ITS devices may reduce the cost of detecting real-time queues
A7: ='Step 3a - ADV WZ Analysis'!A16 -> Are one or more alternative routes with capacity available? | B7: ='Step 3a - ADV WZ Analysis'!C16 -> 0 | C7: Y/N | AO7: Yes | AP7: =$B7=AO7 -> FALSE | AY7: If no alt routes are available, do not consider this option. | BO7: No | BP7: Yes | BQ7: 0 | BR7: 10 | BS7: =IF($B7<=BO7,BQ7,IF($B7>=BP7,BR7,BQ7+(BR7-BQ7)*($B7-BO7)/(BP7-BO7))) -> 0 | BW7: The availability of alternative routes makes a road closure more feasible.
A8: ='Step 3a - ADV WZ Analysis'!A18 -> If yes, what is the approximate length of the existing alternative routes (mi)? | B8: ='Step 3a - ADV WZ Analysis'!C18 -> 0 | C8: mi | AV8: =20000 -> 20000 | AX8: =$B8*AV8 -> 0 | AY8: Cost to outfit alternate routes with ITS devices. **note that this system may increase the mileage needed along the primary route also, but this is not accounted for here because of the added complexity and time needed for a user.
A9: ='Step 3a - ADV WZ Analysis'!A20 -> If yes, do the alternatative routes have existing ITS Travel Time capability? | B9: ='Step 3a - ADV WZ Analysis'!C20 -> 0 | C9: Y/N | AQ9: No | AR9: Yes | AS9: 0 | AT9: 5 | AU9: =IF($B9<=AQ9,AS9,IF($B9>=AR9,AT9,AS9+(AT9-AS9)*($B9-AQ9)/(AR9-AQ9))) -> 0 | AV9: =-AV11*0.75 -> -15000 | AW9: =-AW13*0.75 -> -56.25 | AX9: =IF(B9="Yes",AV6*(B8+N25)+AW6*(B8+N25),0) -> 0 | AY9: 75% discount if ITS devices and TT Capability already exist on the routes.
A10: ='Step 3a - ADV WZ Analysis'!A26 -> Work Zone Speed Limit (mph) | B10: ='Step 3a - ADV WZ Analysis'!C26 -> 0 | C10: mph | G10: 35 | H10: 55 | I10: 2 | J10: 10 | K10: =IF($B10<=G10,I10,IF($B10>=H10,J10,I10+(J10-I10)*($B10-G10)/(H10-G10))) -> 2 | O10: Higher work zone speeds will lead to a higher potential for crashes with entering construction vehicles | BY10: 45 | BZ10: =BY10<=B10 -> FALSE | CA10: 35 | CB10: 55 | CC10: 4 | CD10: 8 | CE10: =IF($B10<=CA10,CC10,IF($B10>=CB10,CD10,CC10+(CD10-CC10)*($B10-CA10)/(CB10-CA10))) -> 4 | CI10: Applicable in work zones with higher speeds
A11: ='Step 3a - ADV WZ Analysis'!A28 -> Total approximate work zone length (mi) | B11: ='Step 3a - ADV WZ Analysis'!C28 -> 0 | C11: mi | AJ11: =20000 -> 20000 | AL11: =$B11*AJ11 -> 0 | AM11: Base: $20k/mile of work zone | AV11: =20000 -> 20000 | AX11: =$B11*AV11 -> 0 | AY11: Base: $20k/mile of work zone | CK11: 1 | CL11: =B11>=CK11 -> FALSE | CM11: 1 | CN11: 3 | CO11: 1 | CP11: 5 | CQ11: =IF($B11<=CM11,CO11,IF($B11>=CN11,CP11,CO11+(CP11-CO11)*($B11-CM11)/(CN11-CM11))) -> 1 | CS11: 150 | CT11: =(FLOOR(B11/1,1))*B13*2*CS11 -> 0 | CU11: $150/device/day/mile. Assumes 2 devices (camera/sensor) per mile. Assumes portable DMS are covered elsewhere. Reduce cost for existing sensors/cameras. Add if emergency response units on standby.
A12: ='Step 3a - ADV WZ Analysis'!A30 -> Total approximate taper length leading up to work zone (mi) | B12: ='Step 3a - ADV WZ Analysis'!C30 -> 0 | C12: mi
A13: ='Step 3a - ADV WZ Analysis'!A32 -> Number of days the work zone will be in place | B13: ='Step 3a - ADV WZ Analysis'!C32 -> 0 | C13: day | M13: 200 | N13: =M13*B13/7*B15 -> 0 | O13: Weekly cost per access point | Q13: 7 | R13: =B13>=Q13 -> FALSE | AA13: Work zone must be in place at least 7 days | AK13: =300/4 -> 75 | AL13: =AK13*(B11+B25) -> 0 | AM13: $200/week/mile of WZ+Queue | AW13: =300/4 -> 75 | AX13: =AW13*(B11+B25+B8) -> 0 | AY13: $200/week/mile of WZ+Queue | CF13: 10 | CH13: =(1+FLOOR(B11/5,1))*CF13*24*B13 -> 0 | CI13: DELETE COST IF MODOT OWNED TRAILERS. Number of trailers (asuming 1 per every 5 miles) * WZ length. Contractor provided Cost:$10/hour. | CK13: 30 | CL13: =$B13>=CK13 -> FALSE
A14: ='Step 3a - ADV WZ Analysis'!A34 -> Will proposed lane closures persist (e.g. not be set up and taken down frequently)? | B14: ='Step 3a - ADV WZ Analysis'!C34 -> 0 | C14: Y/N | Q14: Yes | R14: =Q14=B14 -> FALSE | AA14: Because of the work required to set up and calibrate the system, it should not be installed on short term closure. | BY14: Yes | BZ14: =BY14=B14 -> FALSE
A15: ='Step 3a - ADV WZ Analysis'!A36 -> Number of access points where low speed construction vehicles will enter the work zone without an adequate dedicated acceleration lane | B15: ='Step 3a - ADV WZ Analysis'!C36 -> 0 | C15: num access points | E15: 1 | F15: =B15>E15 -> FALSE | L15: 15000 | N15: =L15*B15 -> 0 | O15: Invalid strategy if there are no construction vehicle access points. Base cost per access point.
A16: ='Step 3a - ADV WZ Analysis'!A38 -> Will sight distance be limited on the approach to the work zone? | B16: ='Step 3a - ADV WZ Analysis'!C38 -> 0 | C16: Y/N | BC16: No | BD16: Yes | BE16: 0 | BF16: 20 | BG16: =IF($B16<=BC16,BE16,IF($B16>=BD16,BF16,BE16+(BF16-BE16)*($B16-BC16)/(BD16-BC16))) -> 0 | BK16: A Queue warning system has creater value if sight distance issues exist | BW16: A Queue warning system has creater value if sight distance issues exist
A17: ='Step 3a - ADV WZ Analysis'!A40 -> Are queue lengths anticipated to extend past an upstream intersection or interchange? | B17: ='Step 3a - ADV WZ Analysis'!C40 -> 0 | C17: Y/N | BC17: No | BD17: Yes | BE17: 0 | BF17: 5 | BG17: =IF($B17<=BC17,BE17,IF($B17>=BD17,BF17,BE17+(BF17-BE17)*($B17-BC17)/(BD17-BC17))) -> 0 | BK17: A Queue warning system has greater value if upstream conflicts exist | BW17: A Queue warning system has greater value if upstream conflicts exist
A18: ='Step 3a - ADV WZ Analysis'!A44 -> Will the work zone have navigating contrstraints that inhibit emergency responder access? | B18: ='Step 3a - ADV WZ Analysis'!C44 -> 0 | C18: Y/N | CM18: No | CN18: Yes | CO18: 0 | CP18: 10 | CQ18: =IF($B18<=CM18,CO18,IF($B18>=CN18,CP18,CO18+(CP18-CO18)*($B18-CM18)/(CN18-CM18))) -> 0
A19: ='Step 3a - ADV WZ Analysis'!A46 -> Total estimate project cost without smart workzone strategies ($) | B19: ='Step 3a - ADV WZ Analysis'!C46 -> 0 | C19: $ | X19: 0.019 | Z19: =MIN(X19*$B19,50000) -> 0 | AA19: 1.9% of total project cost or a max of $50k per setup | BT19: 0.0025 | BV19: =BT19*B19 -> 0 | BW19: 0.5% of total project cost
A20: Directional AADT per open lane in the WZ | B20: =MAX('Step 2 - Facility Data Inputs'!E50:K50)/(MIN('Step 3 - WZ Analysis'!$D$13:$F$13,'Step 3 - WZ Analysis'!$D$35:$F$35,'Step 3 - WZ Analysis'!$D$57:$F$57,'Step 3 - WZ Analysis'!$D$79:$F$79,'Step 3 - WZ Analysis'!$D$101:$F$101,'Step 3 - WZ Analysis'!$D$123:$F$123,'Step 3 - WZ Analysis'!$D$145:$F$145)) -> 0 | C20: AADT | E20: 2500 | F20: =$B20>E20 -> FALSE | G20: 2500 | H20: 15000 | I20: 1 | J20: 10 | K20: =IF($B20<=G20,I20,IF($B20>=H20,J20,I20+(J20-I20)*($B20-G20)/(H20-G20))) -> 1 | O20: Lower volumes will permit construction vehicles to enter the roadway with few potential conflicts | BO20: 1000 | BP20: 20000 | BQ20: 1 | BR20: 10 | BS20: =MIN(((BR20-BQ20)/(BO20-((BP20-BO20)/2+BO20))^2)*(B20-((BP20-BO20)/2+BO20))^2+BQ20,10) -> 10 | BW20: This strategy should be considered for very low and very high volume roads. The score is therefore calculated using a parabolic equation with max score at both the low limit and high limits, and low score at the midpoint. | CK20: 2500 | CL20: =CK20<=$B20 -> FALSE | CM20: 2500 | CN20: 15000 | CO20: 1 | CP20: 10 | CQ20: =IF($B20<=CM20,CO20,IF($B20>=CN20,CP20,CO20+(CP20-CO20)*($B20-CM20)/(CN20-CM20))) -> 1 | CW20: 2500 | CX20: =CW20<=$B20 -> FALSE | CY20: 2500 | CZ20: 15000 | DA20: 1 | DB20: 5 | DC20: =IF($B20<=CY20,DA20,IF($B20>=CZ20,DB20,DA20+(DB20-DA20)*($B20-CY20)/(CZ20-CY20))) -> 1
A21: Number of approach lanes | B21: =MAX('Step 2 - Facility Data Inputs'!A15:C15) -> 2 | C21: num lanes | Q21: 2 | R21: =Q21=$B21 -> TRUE | AA21: Must have 2 approach lanes | BY21: 2 | BZ21: =BY21<=B21 -> TRUE | CI21: For use on multi lane routes
A22: Number of open lanes in WZ | B22: =MIN('Step 3 - WZ Analysis'!D13:F13,'Step 3 - WZ Analysis'!D35:F35,'Step 3 - WZ Analysis'!D57:F57,'Step 3 - WZ Analysis'!D79:F79,'Step 3 - WZ Analysis'!D101:F101,'Step 3 - WZ Analysis'!D123:F123,'Step 3 - WZ Analysis'!D145:F145) -> 1 | C22: num lanes | Q22: 1 | R22: =Q22=$B22 -> TRUE | AA22: Must reduce to 1 open lane
A23: Minutes per day that a queue is present | B23: =60*MAX('WZ Analysis (Worksheet)'!AG35,'WZ Analysis (Worksheet)'!AG65,'WZ Analysis (Worksheet)'!AG94,'WZ Analysis (Worksheet)'!AG123,'WZ Analysis (Worksheet)'!AG152,'WZ Analysis (Worksheet)'!AG181,'WZ Analysis (Worksheet)'!AG210,) -> 0 | C23: min | Q23: 30 | R23: =$B23>=Q23 -> FALSE | S23: 30 | T23: 120 | U23: 1 | V23: 10 | W23: =IF($B23<=S23,U23,IF($B23>=T23,V23,U23+(V23-U23)*($B23-S23)/(T23-S23))) -> 1 | AA23: A greater number of hours has a greater potential for conflicts and crashes. | AC23: 30 | AD23: =$B23>=AC23 -> FALSE | AE23: 30 | AF23: 120 | AG23: 2 | AH23: 10 | AI23: =IF($B23<=AE23,AG23,IF($B23>=AF23,AH23,AG23+(AH23-AG23)*($B23-AE23)/(AF23-AE23))) -> 2 | AM23: Queue anticipated a minimum of 30 minutes per day. Longer durations increase the need for a TT Advisory system. | AO23: 30 | AP23: =$B23>=AO23 -> FALSE | AQ23: 30 | AR23: 120 | AS23: 2 | AT23: 10 | AU23: =IF($B23<=AQ23,AS23,IF($B23>=AR23,AT23,AS23+(AT23-AS23)*($B23-AQ23)/(AR23-AQ23))) -> 2 | AY23: Queue anticipated a minimum of 30 minutes pre day. Longer durations increase the need for a TT Advisory system. | BA23: 30 | BB23: =$B23>=BA23 -> FALSE | BC23: 30 | BD23: 120 | BE23: 2 | BF23: 10 | BG23: =IF($B23<=BC23,BE23,IF($B23>=BD23,BF23,BE23+(BF23-BE23)*($B23-BC23)/(BD23-BC23))) -> 2 | BM23: 30 | BN23: =$B23>=BM23 -> FALSE | BO23: 30 | BP23: 120 | BQ23: 1 | BR23: 10 | BS23: =IF($B23<=BO23,BQ23,IF($B23>=BP23,BR23,BQ23+(BR23-BQ23)*($B23-BO23)/(BP23-BO23))) -> 1 | BW23: This strategy should be considered when excessive queue durations are present.
A24: Maximum Estimated Delay | B24: =MAX('WZ Analysis (Worksheet)'!AG26,'WZ Analysis (Worksheet)'!AG57,'WZ Analysis (Worksheet)'!AG115,'WZ Analysis (Worksheet)'!AG144,'WZ Analysis (Worksheet)'!AG173,'WZ Analysis (Worksheet)'!AG202,) -> 0 | C24: min | AC24: 5 | AD24: =$B24>=AC24 -> FALSE | AE24: 5 | AF24: 25 | AG24: 2 | AH24: 10 | AI24: =IF($B24<=AE24,AG24,IF($B24>=AF24,AH24,AG24+(AH24-AG24)*($B24-AE24)/(AF24-AE24))) -> 2 | AM24: Min delay of 5 minutes, and longer delays increase the need for a TT system | AO24: 5 | AP24: =$B24>=AO24 -> FALSE | AQ24: 5 | AR24: 25 | AS24: 2 | AT24: 10 | AU24: =IF($B24<=AQ24,AS24,IF($B24>=AR24,AT24,AS24+(AT24-AS24)*($B24-AQ24)/(AR24-AQ24))) -> 2 | AY24: Min delay of 5 minutes, and longer delays increase the need for a TT system | BA24: 5 | BB24: =$B24>=BA24 -> FALSE | BC24: 5 | BD24: 25 | BE24: 2 | BF24: 10 | BG24: 2 | BM24: 5 | BN24: =$B24>=BM24 -> FALSE | BO24: 5 | BP24: 30 | BQ24: 1 | BR24: 10 | BS24: 1 | BW24: This strategy should be considered when excessive delays are anticipated. | CK24: 10 | CL24: =B24>=CK24 -> FALSE | CM24: 10 | CN24: 30 | CO24: 1 | CP24: 10 | CQ24: =IF($B24<=CM24,CO24,IF($B24>=CN24,CP24,CO24+(CP24-CO24)*($B24-CM24)/(CN24-CM24))) -> 1
A25: Estimated Maximum Queue Length | B25: =MAX('WZ Analysis (Worksheet)'!AG33,'WZ Analysis (Worksheet)'!AG63,'WZ Analysis (Worksheet)'!AG92,'WZ Analysis (Worksheet)'!AG121,'WZ Analysis (Worksheet)'!AG150,'WZ Analysis (Worksheet)'!AG179,'WZ Analysis (Worksheet)'!AG208) -> 0 | C25: mi | AE25: 0.5 | AF25: 3 | AG25: 1 | AH25: 10 | AI25: =IF($B25<=AE25,AG25,IF($B25>=AF25,AH25,AG25+(AH25-AG25)*($B25-AE25)/(AF25-AE25))) -> 1 | AJ25: =20000 -> 20000 | AL25: =$B25*AJ25 -> 0 | AM25: Sensors must be set up to monitor in the queueing area, and portable DMS signs to advise of the travel times. | AQ25: 0.5 | AR25: 3 | AS25: 1 | AT25: 10 | AU25: =IF($B25<=AQ25,AS25,IF($B25>=AR25,AT25,AS25+(AT25-AS25)*($B25-AQ25)/(AR25-AQ25))) -> 1 | AV25: =20000 -> 20000 | AX25: =$B25*AV25 -> 0 | AY25: Sensors must be set up to monitor in the queueing area, and portable DMS signs to advise of the travel times. | BC25: 0.5 | BD25: 3 | BE25: 1 | BF25: 10 | BG25: 1 | BH25: 20000 | BI25: 200 | BJ25: =MAX($B25,$B12)*(BH25)+MAX($B25,$B12)*BI25*$B13/7 -> 0 | BK25: $20,000/mile * max of (queue length and taper length) + $200/mile/week | BM25: 0.5 | BN25: =$B25>=BM25 -> FALSE | BO25: 0.5 | BP25: 2 | BQ25: 1 | BR25: 10 | BS25: 1 | BW25: This strategy should be considered when queue lengths are excessively long. | CK25: 0.5 | CL25: =B25>=CK25 -> FALSE | CM25: 0.5 | CN25: 1 | CO25: 1 | CP25: 10 | CQ25: =IF($B25<=CM25,CO25,IF($B25>=CN25,CP25,CO25+(CP25-CO25)*($B25-CM25)/(CN25-CM25))) -> 1
A29: Total Points | K29: =SUM(K4:K26) -> 3 | W29: =SUM(W4:W26) -> 7 | AI29: =SUM(AI4:AI26) -> 13 | AU29: =SUM(AU4:AU26) -> 13 | BG29: =SUM(BG4:BG26) -> 16 | BS29: =SUM(BS4:BS26) -> 13 | CE29: =SUM(CE4:CE26) -> 6 | CQ29: =SUM(CQ4:CQ26) -> 5 | DC29: =SUM(DC4:DC26) -> 6
A30: Total Possible Points | K30: =SUM(J4:J26) -> 20 | W30: =SUM(V4:V26) -> 30 | AI30: =SUM(AH4:AH26) -> 60 | AU30: =SUM(AT4:AT26) -> 65 | BG30: =SUM(BF4:BF26) -> 73 | BS30: =SUM(BR4:BR26) -> 50 | CE30: =SUM(CD4:CD26) -> 16 | CQ30: =SUM(CP4:CP26) -> 55 | DC30: =SUM(DB4:DB26) -> 15
A31: Normized (total possible = 100) | K31: =ROUND(K29/K30*100,0) -> 15 | W31: =ROUND(W29/W30*100,0) -> 23 | AI31: =ROUND(AI29/AI30*100,0) -> 22 | AU31: =ROUND(AU29/AU30*100,0) -> 20 | BG31: =ROUND(BG29/BG30*100,0) -> 22 | BS31: =ROUND(BS29/BS30*100,0) -> 26 | CE31: =ROUND(CE29/CE30*100,0) -> 38 | CQ31: =ROUND(CQ29/CQ30*100,0) -> 9 | DC31: =ROUND(DC29/DC30*100,0) -> 40
A32: Manual Adjustment Points (positive for current initiatives or negative de-emphasized strategies) | K32: 0 | W32: 0 | AI32: 0 | AU32: 0 | BG32: 0 | BS32: 0 | CE32: 0 | CQ32: 0 | DC32: 10
A33: Total Final Points (rounded, 100 point max) | K33: =MIN(100,ROUND(SUM(K31:K32),0)) -> 15 | W33: =MIN(100,ROUND(SUM(W31:W32),0)) -> 23 | AI33: =MIN(100,ROUND(SUM(AI31:AI32),0)) -> 22 | AU33: =MIN(100,ROUND(SUM(AU31:AU32),0)) -> 20 | BG33: =MIN(100,ROUND(SUM(BG31:BG32),0)) -> 22 | BS33: =MIN(100,ROUND(SUM(BS31:BS32),0)) -> 26 | CE33: =MIN(100,ROUND(SUM(CE31:CE32),0)) -> 38 | CQ33: =MIN(100,ROUND(SUM(CQ31:CQ32),0)) -> 9 | DC33: =MIN(100,ROUND(SUM(DC31:DC32),0)) -> 50
A35: Strategy Meets Pass/Fail Criteria | N35: =IF(COUNTIF(F4:F26,FALSE),FALSE,TRUE) -> FALSE | Z35: =IF(COUNTIF(R4:R26,FALSE),FALSE,TRUE) -> FALSE | AL35: =IF(COUNTIF(AD4:AD26,FALSE),FALSE,TRUE) -> FALSE | AX35: =IF(COUNTIF(AP4:AP26,FALSE),FALSE,TRUE) -> FALSE | BJ35: =IF(COUNTIF(BB4:BB26,FALSE),FALSE,TRUE) -> FALSE | BV35: =IF(COUNTIF(BN4:BN26,FALSE),FALSE,TRUE) -> FALSE | CH35: =IF(COUNTIF(BZ4:BZ26,FALSE),FALSE,TRUE) -> FALSE | CT35: =IF(COUNTIF(CL4:CL26,FALSE),FALSE,TRUE) -> FALSE | DF35: =IF(COUNTIF(CX4:CX26,FALSE),FALSE,TRUE) -> FALSE
A36: Points | M36: =E1 -> 1. Construction Vehicle Warning System | N36: =K33 -> 15 | Y36: =Q1 -> 2. Dynamic Late Merge (Zipper Merge) System | Z36: =W33 -> 23 | AK36: =AC1 -> 8. Travel Time Advisory System | AL36: =AI33 -> 22 | AW36: =AO1 -> 9. Travel Time Advisory System with Alternative Route | AX36: =AU33 -> 20 | BI36: =BA1 -> 3. Queue Warning System | BJ36: =BG33 -> 22 | BU36: =BM1 -> 4. Road Closure | BV36: =BS33 -> 26 | CG36: =BY1 -> 5. Speed Warning System | CH36: =CE33 -> 38 | CS36: =CK1 -> 7. Temporary Traffic Incident Management and ITS System | CT36: =CQ33 -> 9 | DE36: =CW1 -> 6. Temporary Rumble Strips | DF36: =DC33 -> 50
A37: Estimated Total Cost | N37: =ROUND(SUM(N4:N26),-3) -> 0 | Z37: =ROUND(SUM(Z4:Z26),-3) -> 0 | AL37: =ROUND(SUM(AL4:AL26),-3) -> 0 | AX37: =ROUND(SUM(AX4:AX26),-3) -> 0 | BJ37: =ROUND(SUM(BJ4:BJ26),-3) -> 0 | BV37: =ROUND(SUM(BV4:BV26),-3) -> 0 | CH37: =ROUND(SUM(CH4:CH26),-3) -> 0 | CT37: =ROUND(SUM(CT4:CT26),-3) -> 0 | DF37: =ROUND(SUM(DF4:DF26),-3) -> 2000

Sheet Acceleration Calcs (hidden)
E1: A+B Bidding | O1: Liquidated Damages Specified | Y1: Liquidated Savings Specified | AI1: Liquidated Savings / Liquidated Damages Specified
E2: Scoring | M2: Comments | O2: Scoring | W2: Comments | Y2: Scoring | AG2: Comments | AI2: Scoring | AQ2: Comments
A3: Question / Criteria | B3: Value | C3: Unit | E3: Answer 1 | F3: Answer 2 | G3: Answer 3 | H3: Answer 1 Score | I3: Answer 2 Score | J3: Answer 3 Score | K3: Max | L3: Score | O3: Answer 1 | P3: Answer 2 | Q3: Answer 3 | R3: Answer 1 Score | S3: Answer 2 Score | T3: Answer 3 Score | U3: Max | V3: Score | Y3: Answer 1 | Z3: Answer 2 | AA3: Answer 3 | AB3: Answer 1 Score | AC3: Answer 2 Score | AD3: Answer 3 Score | AE3: Max | AF3: Score | AI3: Answer 1 | AJ3: Answer 2 | AK3: Answer 3 | AL3: Answer 1 Score | AM3: Answer 2 Score | AN3: Answer 3 Score | AO3: Max | AP3: Score
A4: ='Step 3b - Acceleration Analysis'!A11 -> Is the project considered "routine?" | B4: ='Step 3b - Acceleration Analysis'!C11 -> 0 | C4: Y/N | E4: No | F4: Yes | H4: 0 | I4: 10 | K4: =MAX(H4:J4) -> 10 | L4: =IF($B4=E4,H4,IF($B4=F4,I4,IF($B4=G4,J4,""))) -> 0 | U4: =MAX(R4:T4) -> 0 | V4: =IF($B4=O4,R4,IF($B4=P4,S4,IF($B4=Q4,T4,""))) -> 0 | AE4: =MAX(AB4:AD4) -> 0 | AF4: =IF($B4=Y4,AB4,IF($B4=Z4,AC4,IF($B4=AA4,AD4,""))) -> 0 | AO4: =MAX(AL4:AN4) -> 0 | AP4: =IF($B4=AI4,AL4,IF($B4=AJ4,AM4,IF($B4=AK4,AN4,""))) -> 0
A5: ='Step 3b - Acceleration Analysis'!A13 -> What is the anticipated number of construction seasons? | B5: ='Step 3b - Acceleration Analysis'!C13 -> 0 | C5: Seasons | E5: more than one | F5: one or somewhat less than one | G5: much less than one | H5: 0 | I5: 10 | J5: 10 | K5: =MAX(H5:J5) -> 10 | L5: =IF($B5=E5,H5,IF($B5=F5,I5,IF($B5=G5,J5,""))) ->  | O5: more than one | P5: one or somewhat less than one | Q5: much less than one | R5: 0 | S5: 3 | T5: 10 | U5: =MAX(R5:T5) -> 10 | V5: =IF($B5=O5,R5,IF($B5=P5,S5,IF($B5=Q5,T5,""))) ->  | Y5: more than one | Z5: one or somewhat less than one | AA5: much less than one | AB5: 10 | AC5: 5 | AD5: 0 | AE5: =MAX(AB5:AD5) -> 10 | AF5: =IF($B5=Y5,AB5,IF($B5=Z5,AC5,IF($B5=AA5,AD5,""))) ->  | AI5: more than one | AJ5: one or somewhat less than one | AK5: much less than one | AL5: 10 | AM5: 3 | AN5: 10 | AO5: =MAX(AL5:AN5) -> 10 | AP5: =IF($B5=AI5,AL5,IF($B5=AJ5,AM5,IF($B5=AK5,AN5,""))) -> 
A6: ='Step 3b - Acceleration Analysis'!A15 -> Is there is a critical completion date (e.g. to enable future work, or other reasons)? | B6: ='Step 3b - Acceleration Analysis'!C15 -> 0 | C6: Y/N | K6: 0 | L6: 0 | O6: No | P6: Yes | R6: 0 | S6: 10 | U6: 10 | V6: 0 | Y6: No | Z6: Yes | AB6: 0 | AC6: 10 | AE6: 10 | AF6: 0 | AI6: No | AJ6: Yes | AL6: 0 | AM6: 10 | AO6: 10 | AP6: 0
A7: ='Step 3b - Acceleration Analysis'!A17 -> Does the work zone for the project or one of its features cause unusually high impacts to travelers? | B7: ='Step 3b - Acceleration Analysis'!C17 -> 0 | C7: Y/N | E7: No | F7: Yes | H7: 0 | I7: 10 | K7: 10 | L7: 0 | U7: 0 | V7: 0 | AE7: 0 | AF7: 0 | AO7: 0 | AP7: 0
A8: ='Step 3b - Acceleration Analysis'!A19 -> Does the project include numerous or long detours? | B8: ='Step 3b - Acceleration Analysis'!C19 -> 0 | C8: Y/N | K8: 0 | L8: 0 | O8: No | P8: Yes | R8: 0 | S8: 10 | U8: 10 | V8: 0 | Y8: No | Z8: Yes | AB8: 0 | AC8: 10 | AE8: 10 | AF8: 0 | AI8: No | AJ8: Yes | AL8: 0 | AM8: 10 | AO8: 10 | AP8: 0
A9: ='Step 3b - Acceleration Analysis'!A21 -> Are there unusually high safety concerns for the public or workers? | B9: ='Step 3b - Acceleration Analysis'!C21 -> 0 | C9: Y/N | E9: No | F9: Yes | H9: 0 | I9: 10 | K9: 10 | L9: 0 | O9: No | P9: Yes | R9: 0 | S9: 10 | U9: 10 | V9: 0 | AE9: 0 | AF9: 0 | AI9: No | AJ9: Yes | AL9: 0 | AM9: 10 | AO9: 10 | AP9: 0
A10: ='Step 3b - Acceleration Analysis'!A23 -> Will the project cause significant impacts to the local community or business economies? | B10: ='Step 3b - Acceleration Analysis'!C23 -> 0 | C10: Y/N | E10: No | F10: Yes | H10: 0 | I10: 10 | K10: 10 | L10: 0 | U10: 0 | V10: 0 | AE10: 0 | AF10: 0 | AO10: 0 | AP10: 0
A11: ='Step 3b - Acceleration Analysis'!A25 -> Is the project is substantially free of third party conflicts (e.g. right of way, utilities)? | B11: ='Step 3b - Acceleration Analysis'!C25 -> 0 | C11: Y/N | E11: No | F11: Yes | H11: 0 | I11: 10 | K11: 10 | L11: 0 | U11: 0 | V11: 0 | AE11: 0 | AF11: 0 | AO11: 0 | AP11: 0
A12: ='Step 3b - Acceleration Analysis'!A27 -> Are more than two bidders anticipated? | B12: ='Step 3b - Acceleration Analysis'!C27 -> 0 | C12: Y/N | E12: No | F12: Yes | H12: 0 | I12: 10 | K12: 10 | L12: 0 | U12: 0 | V12: 0 | AE12: 0 | AF12: 0 | AO12: 0 | AP12: 0
A16: Total Points | L16: =SUM(L4:L13) -> 0 | V16: =SUM(V4:V13) -> 0 | AF16: =SUM(AF4:AF13) -> 0 | AP16: =SUM(AP4:AP13) -> 0
A17: Total Possible Points | L17: =SUM(K4:K13) -> 70 | V17: =SUM(U4:U13) -> 40 | AF17: =SUM(AE4:AE13) -> 30 | AP17: =SUM(AO4:AO13) -> 40
A18: Normized (total possible = 100) | J18: =E1 -> A+B Bidding | L18: =ROUND(L16/L17*100,0) -> 0 | T18: =O1 -> Liquidated Damages Specified | V18: =ROUND(V16/V17*100,0) -> 0 | AD18: =Y1 -> Liquidated Savings Specified | AF18: =ROUND(AF16/AF17*100,0) -> 0 | AN18: =AI1 -> Liquidated Savings / Liquidated Damages Specified | AP18: =ROUND(AP16/AP17*100,0) -> 0
A19: Manual Adjustment Points (positive for current initiatives or negative de-emphasized strategies) | L19: 0 | V19: 0 | AF19: 0 | AP19: 0
A20: Total Final Points (rounded, 100 point max) | L20: =MIN(100,ROUND(SUM(L18:L19),0)) -> 0 | V20: =MIN(100,ROUND(SUM(V18:V19),0)) -> 0 | AF20: =MIN(100,ROUND(SUM(AF18:AF19),0)) -> 0 | AP20: =MIN(100,ROUND(SUM(AP18:AP19),0)) -> 0

Sheet Step 1 - Introduction
C1: MoDOT WORK ZONE IMPACT ANALYSIS SPREADSHEET
A2: Revised: 4/14/26
A4: Remember to ENABLE CONTENT so the macros inside the excel sheet can run.
A6: Select Volume Input Method using the BUTTONS below.
G8: Include Advanced Work Zone Strategies | I8: Include Contract Time Acceleration Strategies
G13: Yes | I13: Yes
A16: Use the TABS to navigate through the spreadsheet after selecting Input Method.
A18: Enter information into the HIGHLIGHTED cells.
A19: BLUE | B19: cells indicate information needed regarding the Base Conditions
A20: ORANGE | B20: cells indicate information needed regarding the Work Zone
A21: YELLOW | B21: cells are optional inputs. Leave these BLANK if you want to use the spreadsheets defaults.
A22: GREEN | B22: cells are based on imported TSHV data
A24: The following links will provide additional details regarding the speadsheet.
A25: Engineering Policy Guide: | C25: https://epg.modot.org/index.php?title=616.19_Work_Zone_Capacity,_Queue_and_Travel_Delay
A26: Spreadsheet Instructions: | C26: 616.13.2_Directions
A28: This speadsheet was developed by MoDOT Central Office Traffic and Highway Safety Division and the University of Missouri - Columbia
A30: Direct any questions regarding this spreadsheet to:
A32: Ray Shank | E32: Dan Smith
A33: (573) 526-4293 | C33: or | E33: (573) 526-4329
A34: Raymond.Shank@modot.mo.gov | E34: Daniel.Smith@modot.mo.gov

Sheet Step 2 - Facility Data Inputs (hidden)
D1: WORK ZONE IMPACT ANALYSIS SPREADSHEET
A2: UserInput
A3: ANALYST: | G3: DATE OF ANALYSIS: | J3: JOB NUMBER:
G4: =TODAY() -> 2026-05-27
A6: BACKGROUND INFORMATION
A8: DISTRICT: | E8: ROUTE (DIRECTION): | H8: LOCATION SEGMENT (LOGS):
A11: EXISTING ROADWAY DATA
A13: NUMBER OF | E13: DAILY TRUCK | G13: CLIMBING | I13: LENGTH OF
A14: LANES: | E14: PERCENTAGE (%): | G14: GRADE (%): | I14: INCLINE GRADE (mi):
A15: 2 | E15: 0.05 | G15: < 2 | I15: 1
E16: =HLOOKUP(IF(E15<0.02,0.02,E15),'HCM 2010 Program'!D34:O35,2) -> 4 | G16: =VLOOKUP(G15,'Reference Sheet'!X2:Y7,2) -> 0 | I16: =IF(G16=0,1,IF(I15<0.5,1,IF(I15<=1,2,3))) -> 1
A17: TRAFFIC VOLUME DATA: Obtained from TMS Traffic Segment Hourly Volume (TSHV) Application | J17: USER COST ( $ / hr )
A18: Link to Transportation Management System (TMS) | J18: TRUCKS | K18: 34.9
A19: Link to Directions on how to use the TSHV table. | J19: CARS | K19: 13.65
A21: DEMAND (veh/hr)
A22: Day of Week | E22: =IF(E25="","Sunday",TEXT(E25,"dddd")) -> Sunday | F22: =IF(F25="","Monday",TEXT(F25,"dddd")) -> Monday | G22: =IF(G25="","Tuesday",TEXT(G25,"dddd")) -> Tuesday | H22: =IF(H25="","Wednesday",TEXT(H25,"dddd")) -> Wednesday | I22: =IF(I25="","Thursday",TEXT(I25,"dddd")) -> Thursday | J22: =IF(J25="","Friday",TEXT(J25,"dddd")) -> Friday | K22: =IF(K25="","Saturday",TEXT(K25,"dddd")) -> Saturday
A23: Text Date | E23: =IF(E25="","",TEXT(E25,"m/d/yyyy")) ->  | F23: =IF(F25="","",TEXT(F25,"m/d/yyyy")) ->  | G23: =IF(G25="","",TEXT(G25,"m/d/yyyy")) -> 
A24: Graph Below Labels | E24: =IF(E25="",E22,CONCATENATE(TEXT(E25,"ddd")," (",TEXT(E25,"m/d/yyyy"),")")) -> Sunday | F24: =IF(F25="",F22,CONCATENATE(TEXT(F25,"ddd")," (",TEXT(F25,"m/d/yyyy"),")")) -> Monday | G24: Tuesday | H24: Wednesday | I24: Thursday | J24: Friday | K24: Saturday
A25: Date of Count
A26: Time of Day | B26: AM | C26: 12:00 MIDNIGHT - 1 AM
C27: 1:00 - 2:00 AM
C28: 2:00 - 3:00 AM
C29: 3:00 - 4:00 AM
C30: 4:00 - 5:00 AM
C31: 5:00 - 6:00 AM
C32: 6:00 - 7:00 AM
C33: 7:00 - 8:00 AM
C34: 8:00 - 9:00 AM
C35: 9:00 - 10:00 AM
C36: 10:00 - 11:00 AM
C37: 11:00 - 12:00 NOON
B38: PM | C38: 12 NOON - 1:00 PM
C39: 1:00 - 2:00 PM
C40: 2:00 - 3:00 PM
C41: 3:00 - 4:00 PM
C42: 4:00 - 5:00 PM
C43: 5:00 - 6:00 PM
C44: 6:00 - 7:00 PM
C45: 7:00 - 8:00 PM
C46: 8:00 - 9:00 PM
C47: 9:00 - 10:00 PM
C48: 10:00 - 11:00 PM
C49: 11 PM - 12:00 MIDNIGHT
A50: TOTAL ADT | E50: =SUM(E26:E49) -> 0 | F50: =SUM(F26:F49) -> 0 | G50: 0 | H50: 0 | I50: 0 | J50: 0 | K50: 0
D51: Unserviced Demand -> | E51: 0 | F51: 0 | G51: 0 | H51: 0 | I51: 0 | J51: 0 | K51: 0

Sheet Step 3 - WZ Analysis (hidden)
A1: WORK ZONE IMPACT ANALYSIS SPREADSHEET
A3: =CONCATENATE("District: ",'Step 2 - Facility Data Inputs'!A9," Route: ",'Step 2 - Facility Data Inputs'!E9," (",'Step 2 - Facility Data Inputs'!H9,")"," Job No.: ",'Step 2 - Facility Data Inputs'!J4) -> District: Route: () Job No.:
A5: =CONCATENATE('Step 2 - Facility Data Inputs'!E22,"(",TEXT('Step 2 - Facility Data Inputs'!E23,"m/d/yy"),")") -> Sunday() | B5: ='Step 2 - Facility Data Inputs'!E25 -> 0
C6: BASE CONDITIONS
C7: Open Lane Capacity (veh/h/lane): | D7: =MROUND(2350/((1-'HCM 2010 Program'!$E$3)+('HCM 2010 Program'!$E$3*'HCM 2010 Program'!$F$3)),50) -> 2300 | E7: =CONCATENATE("Base Conditions Capacity (Total for ALL Lanes): ",'WZ Analysis (Worksheet)'!F22, " veh/h") -> Base Conditions Capacity (Total for ALL Lanes): 4600 veh/h
D8: =CONCATENATE("Added ",TEXT(G8,"#,###")," unserved vehicles from previous day.") -> Added unserved vehicles from previous day. | G8: ='WZ Analysis (Worksheet)'!K21 -> 0
C9: WORKZONE DETAILS | D9: =CONCATENATE(TEXT(G9,"#,###")," unserved vehicles at the end of this day.") -> unserved vehicles at the end of this day. | G9: 0
C10: Work Description: | D10: (Example: Pothole Patching - Close One Lane OR Joint Repair - Two Lanes Closed)
C11: Work Location: | D11: No Work Zone (Use for Calibrating Existing Conditions)
C12: Travel Lane Width (ft): | D12: > 11.5
C13: Number of Lanes Open: | D13: 1
C14: ESTIMATED Work Zone Capacity (veh/h): | D14: ='WZ Analysis (Worksheet)'!F29 -> 2300
C15: USER DEFINED Work Zone Capacity (veh/h):
C16: Start Time: | D16: 00:00:00
C17: End Time: | D17: 00:00:00
C18: Duration of Closure (hrs): | D18: =IF(D11='Reference Sheet'!$R$2,0,IF('WZ Analysis (Worksheet)'!G32='WZ Analysis (Worksheet)'!G31,24,IF('WZ Analysis (Worksheet)'!G32>'WZ Analysis (Worksheet)'!G31,'WZ Analysis (Worksheet)'!G32-'WZ Analysis (Worksheet)'!G31,24-('WZ Analysis (Worksheet)'!G31-'WZ Analysis (Worksheet)'!G32)))) -> 0
C20: RESULTS
C21: Measure of Effectiveness | D21: Base Conditions | E21: Work Zone | F21: Total
C22: Max Queue Length (mi): | D22: ='WZ Analysis (Worksheet)'!P46 -> 0 | E22: ='WZ Analysis (Worksheet)'!AA46 -> 0 | F22: ='WZ Analysis (Worksheet)'!W46 -> 0
C23: Max Delay (minutes): | D23: ='WZ Analysis (Worksheet)'!Q46 -> 0 | E23: ='WZ Analysis (Worksheet)'!AB46 -> 0 | F23: ='WZ Analysis (Worksheet)'!X46 -> 0
C24: Cost ($): | D24: ='WZ Analysis (Worksheet)'!R47 -> 0 | E24: ='WZ Analysis (Worksheet)'!AD47 -> 0 | F24: ='WZ Analysis (Worksheet)'!Y47 -> 0
A27: =CONCATENATE('Step 2 - Facility Data Inputs'!F22," (",TEXT('Step 2 - Facility Data Inputs'!F23,"m/d/yy"),")") -> Monday () | B27: ='Step 2 - Facility Data Inputs'!F25 -> 0
C28: BASE CONDITIONS
C29: Open Lane Capacity (veh/h/lane): | D29: =MROUND(2350/((1-'HCM 2010 Program'!$E$3)+('HCM 2010 Program'!$E$3*'HCM 2010 Program'!$F$3)),50) -> 2300 | E29: =CONCATENATE("Base Conditions Capacity (Total for ALL Lanes): ",'WZ Analysis (Worksheet)'!F51, " veh/h") -> Base Conditions Capacity (Total for ALL Lanes): 4600 veh/h
D30: =CONCATENATE("Added ",TEXT(G30,"#,###")," unserved vehicles from previous day.") -> Added unserved vehicles from previous day. | G30: ='WZ Analysis (Worksheet)'!K50 -> 0
C31: WORKZONE DETAILS | D31: =CONCATENATE(TEXT(G31,"#,###")," unserved vehicles at the end of this day.") -> unserved vehicles at the end of this day. | G31: 0
C32: Work Description: | D32: (Example: Pothole Patching - Close One Lane OR Joint Repair - Two Lanes Closed)
C33: Work Location: | D33: No Work Zone (Use for Calibrating Existing Conditions)
C34: Travel Lane Width (ft): | D34: > 11.5
C35: Number of Lanes Open: | D35: 1
C36: ESTIMATED Work Zone Capacity (veh/h): | D36: ='WZ Analysis (Worksheet)'!F58 -> 2300
C37: USER DEFINED Work Zone Capacity (veh/h):
C38: Start Time: | D38: 00:00:00
C39: End Time: | D39: 00:00:00
C40: Duration of Closure (hrs): | D40: =IF(D33='Reference Sheet'!$R$2,0,IF('WZ Analysis (Worksheet)'!G61='WZ Analysis (Worksheet)'!G60,24,IF('WZ Analysis (Worksheet)'!G61>'WZ Analysis (Worksheet)'!G60,'WZ Analysis (Worksheet)'!G61-'WZ Analysis (Worksheet)'!G60,24-('WZ Analysis (Worksheet)'!G60-'WZ Analysis (Worksheet)'!G61)))) -> 0
C42: RESULTS
C43: Measure of Effectiveness | D43: Base Conditions | E43: Work Zone | F43: Total
C44: Max Queue Length (mi): | D44: ='WZ Analysis (Worksheet)'!P75 -> 0 | E44: ='WZ Analysis (Worksheet)'!AA75 -> 0 | F44: ='WZ Analysis (Worksheet)'!W75 -> 0
C45: Max Delay (minutes): | D45: ='WZ Analysis (Worksheet)'!Q75 -> 0 | E45: ='WZ Analysis (Worksheet)'!AB75 -> 0 | F45: ='WZ Analysis (Worksheet)'!X75 -> 0
C46: Cost ($): | D46: ='WZ Analysis (Worksheet)'!R76 -> 0 | E46: ='WZ Analysis (Worksheet)'!AD76 -> 0 | F46: ='WZ Analysis (Worksheet)'!Y76 -> 0
A49: =CONCATENATE('Step 2 - Facility Data Inputs'!G22," (",TEXT('Step 2 - Facility Data Inputs'!G23,"m/d/yy"),")") -> Tuesday () | B49: ='Step 2 - Facility Data Inputs'!G25 -> 0
C50: BASE CONDITIONS
C51: Open Lane Capacity (veh/h/lane): | D51: =MROUND(2350/((1-'HCM 2010 Program'!$E$3)+('HCM 2010 Program'!$E$3*'HCM 2010 Program'!$F$3)),50) -> 2300 | E51: =CONCATENATE("Base Conditions Capacity (Total for ALL Lanes): ",'WZ Analysis (Worksheet)'!F80, " veh/h") -> Base Conditions Capacity (Total for ALL Lanes): 4600 veh/h
D52: =CONCATENATE("Added ",TEXT(G52,"#,###")," unserved vehicles from previous day.") -> Added unserved vehicles from previous day. | G52: ='WZ Analysis (Worksheet)'!K79 -> 0
C53: WORKZONE DETAILS | D53: =CONCATENATE(TEXT(G53,"#,###")," unserved vehicles at the end of this day.") -> unserved vehicles at the end of this day. | G53: 0
C54: Work Description: | D54: (Example: Pothole Patching - Close One Lane OR Joint Repair - Two Lanes Closed)
C55: Work Location: | D55: No Work Zone (Use for Calibrating Existing Conditions)
C56: Travel Lane Width (ft): | D56: > 11.5
C57: Number of Lanes Open: | D57: 1
C58: ESTIMATED Work Zone Capacity (veh/h): | D58: ='WZ Analysis (Worksheet)'!F87 -> 2300
C59: USER DEFINED Work Zone Capacity (veh/h):
C60: Start Time: | D60: 00:00:00
C61: End Time: | D61: 00:00:00
C62: Duration of Closure (hrs): | D62: =IF(D55='Reference Sheet'!$R$2,0,IF('WZ Analysis (Worksheet)'!G89='WZ Analysis (Worksheet)'!G90,24,IF('WZ Analysis (Worksheet)'!G90>'WZ Analysis (Worksheet)'!G89,'WZ Analysis (Worksheet)'!G90-'WZ Analysis (Worksheet)'!G89,24-('WZ Analysis (Worksheet)'!G89-'WZ Analysis (Worksheet)'!G90)))) -> 0
C64: RESULTS
C65: Measure of Effectiveness | D65: Base Conditions | E65: Work Zone | F65: Total
C66: Max Queue Length (mi): | D66: ='WZ Analysis (Worksheet)'!D95 -> 0 | E66: ='WZ Analysis (Worksheet)'!E95 -> 0 | F66: ='WZ Analysis (Worksheet)'!F95 -> 0
C67: Max Delay (minutes): | D67: ='WZ Analysis (Worksheet)'!D96 -> 0 | E67: ='WZ Analysis (Worksheet)'!E96 -> 0 | F67: ='WZ Analysis (Worksheet)'!F96 -> 0
C68: Cost ($): | D68: ='WZ Analysis (Worksheet)'!D97 -> 0 | E68: ='WZ Analysis (Worksheet)'!E97 -> 0 | F68: ='WZ Analysis (Worksheet)'!F97 -> 0
A71: =CONCATENATE('Step 2 - Facility Data Inputs'!H22," (",TEXT('Step 2 - Facility Data Inputs'!H23,"m/d/yy"),")") -> Wednesday () | B71: ='Step 2 - Facility Data Inputs'!H25 -> 0
C72: BASE CONDITIONS
C73: Open Lane Capacity (veh/h/lane): | D73: =MROUND(2350/((1-'HCM 2010 Program'!$E$3)+('HCM 2010 Program'!$E$3*'HCM 2010 Program'!$F$3)),50) -> 2300 | E73: =CONCATENATE("Base Conditions Capacity (Total for ALL Lanes): ",'WZ Analysis (Worksheet)'!F109, " veh/h") -> Base Conditions Capacity (Total for ALL Lanes): 4600 veh/h
D74: =CONCATENATE("Added ",TEXT(G74,"#,###")," unserved vehicles from previous day.") -> Added unserved vehicles from previous day. | G74: ='WZ Analysis (Worksheet)'!K108 -> 0
C75: WORKZONE DETAILS | D75: =CONCATENATE(TEXT(G75,"#,###")," unserved vehicles at the end of this day.") -> unserved vehicles at the end of this day. | G75: 0
C76: Work Description: | D76: (Example: Pothole Patching - Close One Lane OR Joint Repair - Two Lanes Closed)
C77: Work Location: | D77: No Work Zone (Use for Calibrating Existing Conditions)
C78: Travel Lane Width (ft): | D78: > 11.5
C79: Number of Lanes Open: | D79: 1
C80: ESTIMATED Work Zone Capacity (veh/h): | D80: ='WZ Analysis (Worksheet)'!F116 -> 2300
C81: USER DEFINED Work Zone Capacity (veh/h):
C82: Start Time: | D82: 00:00:00
C83: End Time: | D83: 00:00:00
C84: Duration of Closure (hrs): | D84: =IF(D77='Reference Sheet'!$R$2,0,IF('WZ Analysis (Worksheet)'!G118='WZ Analysis (Worksheet)'!G119,24,IF('WZ Analysis (Worksheet)'!G119>'WZ Analysis (Worksheet)'!G118,'WZ Analysis (Worksheet)'!G119-'WZ Analysis (Worksheet)'!G118,24-('WZ Analysis (Worksheet)'!G118-'WZ Analysis (Worksheet)'!G119)))) -> 0
C86: RESULTS
C87: Measure of Effectiveness | D87: Base Conditions | E87: Work Zone | F87: Total
C88: Max Queue Length (mi): | D88: ='WZ Analysis (Worksheet)'!P133 -> 0 | E88: ='WZ Analysis (Worksheet)'!AA133 -> 0 | F88: ='WZ Analysis (Worksheet)'!W133 -> 0
C89: Max Delay (minutes): | D89: ='WZ Analysis (Worksheet)'!Q133 -> 0 | E89: ='WZ Analysis (Worksheet)'!AB133 -> 0 | F89: ='WZ Analysis (Worksheet)'!X133 -> 0
C90: Cost ($): | D90: ='WZ Analysis (Worksheet)'!R134 -> 0 | E90: ='WZ Analysis (Worksheet)'!AD134 -> 0 | F90: ='WZ Analysis (Worksheet)'!Y134 -> 0
A93: =CONCATENATE('Step 2 - Facility Data Inputs'!I22," (",TEXT('Step 2 - Facility Data Inputs'!I23,"m/d/yy"),")") -> Thursday () | B93: ='Step 2 - Facility Data Inputs'!I25 -> 0
C94: BASE CONDITIONS
C95: Open Lane Capacity (veh/h/lane): | D95: =MROUND(2350/((1-'HCM 2010 Program'!$E$3)+('HCM 2010 Program'!$E$3*'HCM 2010 Program'!$F$3)),50) -> 2300 | E95: =CONCATENATE("Base Conditions Capacity (Total for ALL Lanes): ",'WZ Analysis (Worksheet)'!F138, " veh/h") -> Base Conditions Capacity (Total for ALL Lanes): 4600 veh/h
D96: =CONCATENATE("Added ",TEXT(G96,"#,###")," unserved vehicles from previous day.") -> Added unserved vehicles from previous day. | G96: ='WZ Analysis (Worksheet)'!K137 -> 0
C97: WORKZONE DETAILS | D97: =CONCATENATE(TEXT(G97,"#,###")," unserved vehicles at the end of this day.") -> unserved vehicles at the end of this day. | G97: 0
C98: Work Description: | D98: (Example: Pothole Patching - Close One Lane OR Joint Repair - Two Lanes Closed)
C99: Work Location: | D99: No Work Zone (Use for Calibrating Existing Conditions)
C100: Travel Lane Width (ft): | D100: > 11.5
C101: Number of Lanes Open: | D101: 1
C102: ESTIMATED Work Zone Capacity (veh/h): | D102: ='WZ Analysis (Worksheet)'!F145 -> 2300
C103: USER DEFINED Work Zone Capacity (veh/h):
C104: Start Time: | D104: 00:00:00
C105: End Time: | D105: 00:00:00
C106: Duration of Closure (hrs): | D106: =IF(D99='Reference Sheet'!$R$2,0,IF('WZ Analysis (Worksheet)'!G147='WZ Analysis (Worksheet)'!G148,24,IF('WZ Analysis (Worksheet)'!G148>'WZ Analysis (Worksheet)'!G147,'WZ Analysis (Worksheet)'!G148-'WZ Analysis (Worksheet)'!G147,24-('WZ Analysis (Worksheet)'!G147-'WZ Analysis (Worksheet)'!G148)))) -> 0
C108: RESULTS
C109: Measure of Effectiveness | D109: Base Conditions | E109: Work Zone | F109: Total
C110: Max Queue Length (mi): | D110: ='WZ Analysis (Worksheet)'!D153 -> 0 | E110: ='WZ Analysis (Worksheet)'!E153 -> 0 | F110: ='WZ Analysis (Worksheet)'!F153 -> 0
C111: Max Delay (minutes): | D111: ='WZ Analysis (Worksheet)'!D154 -> 0 | E111: ='WZ Analysis (Worksheet)'!E154 -> 0 | F111: ='WZ Analysis (Worksheet)'!F154 -> 0
C112: Cost ($): | D112: ='WZ Analysis (Worksheet)'!D155 -> 0 | E112: ='WZ Analysis (Worksheet)'!E155 -> 0 | F112: ='WZ Analysis (Worksheet)'!F155 -> 0
A115: =CONCATENATE('Step 2 - Facility Data Inputs'!J22," (",TEXT('Step 2 - Facility Data Inputs'!J23,"m/d/yy"),")") -> Friday () | B115: ='Step 2 - Facility Data Inputs'!J25 -> 0
C116: BASE CONDITIONS
C117: Open Lane Capacity (veh/h/lane): | D117: =MROUND(2350/((1-'HCM 2010 Program'!$E$3)+('HCM 2010 Program'!$E$3*'HCM 2010 Program'!$F$3)),50) -> 2300 | E117: =CONCATENATE("Base Conditions Capacity (Total for ALL Lanes): ",'WZ Analysis (Worksheet)'!F167, " veh/h") -> Base Conditions Capacity (Total for ALL Lanes): 4600 veh/h
D118: =CONCATENATE("Added ",TEXT(G118,"#,###")," unserved vehicles from previous day.") -> Added unserved vehicles from previous day. | G118: ='WZ Analysis (Worksheet)'!K166 -> 0
C119: WORKZONE DETAILS | D119: =CONCATENATE(TEXT(G119,"#,###")," unserved vehicles at the end of this day.") -> unserved vehicles at the end of this day. | G119: 0
C120: Work Description: | D120: (Example: Pothole Patching - Close One Lane OR Joint Repair - Two Lanes Closed)
C121: Work Location: | D121: No Work Zone (Use for Calibrating Existing Conditions)
C122: Travel Lane Width (ft): | D122: > 11.5
C123: Number of Lanes Open: | D123: 1
C124: ESTIMATED Work Zone Capacity (veh/h): | D124: ='WZ Analysis (Worksheet)'!F174 -> 2300
C125: USER DEFINED Work Zone Capacity (veh/h):
C126: Start Time: | D126: 00:00:00
C127: End Time: | D127: 00:00:00
C128: Duration of Closure (hrs): | D128: =IF(D121='Reference Sheet'!$R$2,0,IF('WZ Analysis (Worksheet)'!G176='WZ Analysis (Worksheet)'!G177,24,IF('WZ Analysis (Worksheet)'!G177>'WZ Analysis (Worksheet)'!G176,'WZ Analysis (Worksheet)'!G177-'WZ Analysis (Worksheet)'!G176,24-('WZ Analysis (Worksheet)'!G176-'WZ Analysis (Worksheet)'!G177)))) -> 0
C130: RESULTS
C131: Measure of Effectiveness | D131: Base Conditions | E131: Work Zone | F131: Total
C132: Max Queue Length (mi): | D132: ='WZ Analysis (Worksheet)'!D182 -> 0 | E132: ='WZ Analysis (Worksheet)'!E182 -> 0 | F132: ='WZ Analysis (Worksheet)'!F182 -> 0
C133: Max Delay (minutes): | D133: ='WZ Analysis (Worksheet)'!D183 -> 0 | E133: ='WZ Analysis (Worksheet)'!E183 -> 0 | F133: ='WZ Analysis (Worksheet)'!F183 -> 0
C134: Cost ($): | D134: ='WZ Analysis (Worksheet)'!D184 -> 0 | E134: ='WZ Analysis (Worksheet)'!E184 -> 0 | F134: ='WZ Analysis (Worksheet)'!F184 -> 0
A137: =CONCATENATE('Step 2 - Facility Data Inputs'!K22," (",TEXT('Step 2 - Facility Data Inputs'!K23,"m/d/yy"),")") -> Saturday () | B137: ='Step 2 - Facility Data Inputs'!K25 -> 0
C138: BASE CONDITIONS
C139: Open Lane Capacity (veh/h/lane): | D139: =MROUND(2350/((1-'HCM 2010 Program'!$E$3)+('HCM 2010 Program'!$E$3*'HCM 2010 Program'!$F$3)),50) -> 2300 | E139: =CONCATENATE("Base Conditions Capacity (Total for ALL Lanes): ",'WZ Analysis (Worksheet)'!F196, " veh/h") -> Base Conditions Capacity (Total for ALL Lanes): 4600 veh/h
D140: =CONCATENATE("Added ",TEXT(G140,"#,###")," unserved vehicles from previous day.") -> Added unserved vehicles from previous day. | G140: ='WZ Analysis (Worksheet)'!K195 -> 0
C141: WORKZONE DETAILS | D141: =CONCATENATE(TEXT(G141,"#,###")," unserved vehicles at the end of this day.") -> unserved vehicles at the end of this day. | G141: 0
C142: Work Description: | D142: (Example: Pothole Patching - Close One Lane OR Joint Repair - Two Lanes Closed)
C143: Work Location: | D143: No Work Zone (Use for Calibrating Existing Conditions)
C144: Travel Lane Width (ft): | D144: > 11.5
C145: Number of Lanes Open: | D145: 1
C146: ESTIMATED Work Zone Capacity (veh/h): | D146: ='WZ Analysis (Worksheet)'!F203 -> 2300
C147: USER DEFINED Work Zone Capacity (veh/h):
C148: Start Time: | D148: 00:00:00
C149: End Time: | D149: 00:00:00
C150: Duration of Closure (hrs): | D150: =IF(D143='Reference Sheet'!$R$2,0,IF('WZ Analysis (Worksheet)'!G205='WZ Analysis (Worksheet)'!G206,24,IF('WZ Analysis (Worksheet)'!G206>'WZ Analysis (Worksheet)'!G205,'WZ Analysis (Worksheet)'!G206-'WZ Analysis (Worksheet)'!G205,24-('WZ Analysis (Worksheet)'!G205-'WZ Analysis (Worksheet)'!G206)))) -> 0
C152: RESULTS
C153: Measure of Effectiveness | D153: Base Conditions | E153: Work Zone | F153: Total
C154: Max Queue Length (mi): | D154: ='WZ Analysis (Worksheet)'!D211 -> 0 | E154: ='WZ Analysis (Worksheet)'!E211 -> 0 | F154: ='WZ Analysis (Worksheet)'!F211 -> 0
C155: Max Delay (minutes): | D155: ='WZ Analysis (Worksheet)'!D212 -> 0 | E155: ='WZ Analysis (Worksheet)'!E212 -> 0 | F155: ='WZ Analysis (Worksheet)'!F212 -> 0
C156: Cost ($): | D156: ='WZ Analysis (Worksheet)'!D213 -> 0 | E156: ='WZ Analysis (Worksheet)'!E213 -> 0 | F156: ='WZ Analysis (Worksheet)'!F213 -> 0

Sheet Step 3a - ADV WZ Analysis (hidden)
A1: WORK ZONE IMPACT ANALYSIS SPREADSHEET
A3: =CONCATENATE("District: ",'Step 2 - Facility Data Inputs'!A9," Route: ",'Step 2 - Facility Data Inputs'!E9," (",'Step 2 - Facility Data Inputs'!H9,")"," Job No.: ",'Step 2 - Facility Data Inputs'!J4) -> District: Route: () Job No.:
A6: Additional Questions for Advanced Work Zone Strategy Recommendation
A8: Additional Existing Facility Information
A10: Facility Speed Limit (mph)
A12: Are traffic patterns inconsistent from day to day? (e.g. unpredictible with substantial variability or impacts from random local traffic genertors)
A14: Is the work zone on a route with an existing ITS Travel Time System?
A16: Are one or more alternative routes with capacity available?
A18: If yes, what is the approximate length of the existing alternative routes (mi)?
A20: If yes, do the alternatative routes have existing ITS Travel Time capability?
A24: Additional Work Zone and Project Inputs
A26: Work Zone Speed Limit (mph)
A28: Total approximate work zone length (mi)
A30: Total approximate taper length leading up to work zone (mi)
A32: Number of days the work zone will be in place
A34: Will proposed lane closures persist (e.g. not be set up and taken down frequently)?
A36: Number of access points where low speed construction vehicles will enter the work zone without an adequate dedicated acceleration lane
A38: Will sight distance be limited on the approach to the work zone?
A40: Are queue lengths anticipated to extend past an upstream intersection or interchange?
A42: Are there external merging conflicts or hazards on the approach to or within the work zone?
A44: Will the work zone have navigating contrstraints that inhibit emergency responder access?
A46: Total estimate project cost without smart workzone strategies ($)

Sheet Step 3b - Acceleration Analysis (hidden)
A1: WORK ZONE IMPACT ANALYSIS SPREADSHEET
A3: =CONCATENATE("District: ",'Step 2 - Facility Data Inputs'!A9," Route: ",'Step 2 - Facility Data Inputs'!E9," (",'Step 2 - Facility Data Inputs'!H9,")"," Job No.: ",'Step 2 - Facility Data Inputs'!J4) -> District: Route: () Job No.:
A6: Contract Time Acceleration Considerations
A9: The following questions can apply to the project as a whole, or to specific features or phases*
A11: Is the project considered "routine?"
A13: What is the anticipated number of construction seasons?
A15: Is there is a critical completion date (e.g. to enable future work, or other reasons)?
A17: Does the work zone for the project or one of its features cause unusually high impacts to travelers?
A19: Does the project include numerous or long detours?
A21: Are there unusually high safety concerns for the public or workers?
A23: Will the project cause significant impacts to the local community or business economies?
A25: Is the project is substantially free of third party conflicts (e.g. right of way, utilities)?
A27: Are more than two bidders anticipated?
A31: * Questions adapted from EPG Section 237.8

Sheet Step 4 - Synopsis Sheet (hidden)
A1: WORK ZONE IMPACT ANALYSIS SPREADSHEET
A2: =CONCATENATE("District: ",'Step 2 - Facility Data Inputs'!A9," Route: ",'Step 2 - Facility Data Inputs'!E9," (",'Step 2 - Facility Data Inputs'!H9,")"," Job No.: ",'Step 2 - Facility Data Inputs'!J4) -> District: Route: () Job No.:
A3: =CONCATENATE('Step 2 - Facility Data Inputs'!E22," (",TEXT('Step 2 - Facility Data Inputs'!E23,"m/d/yy"),") ",B4) -> Sunday () No Work Zone
A4: =CONCATENATE('Step 2 - Facility Data Inputs'!E22," (",TEXT('Step 2 - Facility Data Inputs'!E23,"m/d/yy"),")") -> Sunday () | B4: =IF('Step 3 - WZ Analysis'!D10="(Example: Pothole Patching - Close One Lane OR Joint Repair - Two Lanes Closed)",IF('Step 3 - WZ Analysis'!D11='Reference Sheet'!$R$2,"No Work Zone",'Step 3 - WZ Analysis'!D11),'Step 3 - WZ Analysis'!D10) -> No Work Zone
B5: ='Step 3 - WZ Analysis'!C22 -> Max Queue Length (mi): | C5: ='Step 3 - WZ Analysis'!F22 -> 0
B6: ='Step 3 - WZ Analysis'!C23 -> Max Delay (minutes): | C6: ='Step 3 - WZ Analysis'!F23 -> 0
B7: Total User Costs - Work Zone ($) | C7: ='Step 3 - WZ Analysis'!E24 -> 0
B8: ='Step 3 - WZ Analysis'!C16 -> Start Time: | C8: =IF(C9=0,"N/A",'Step 3 - WZ Analysis'!D16) -> N/A
B9: ='Step 3 - WZ Analysis'!C18 -> Duration of Closure (hrs): | C9: ='Step 3 - WZ Analysis'!D18 -> 0
A10: =CONCATENATE('Step 2 - Facility Data Inputs'!F22," (",TEXT('Step 2 - Facility Data Inputs'!F23,"m/d/yy"),") ",B11) -> Monday () No Work Zone
A11: =CONCATENATE('Step 2 - Facility Data Inputs'!F22," (",TEXT('Step 2 - Facility Data Inputs'!F23,"m/d/yy"),")") -> Monday () | B11: =IF('Step 3 - WZ Analysis'!D32="(Example: Pothole Patching - Close One Lane OR Joint Repair - Two Lanes Closed)",IF('Step 3 - WZ Analysis'!D33='Reference Sheet'!$R$2,"No Work Zone",'Step 3 - WZ Analysis'!D33),'Step 3 - WZ Analysis'!D32) -> No Work Zone
B12: ='Step 3 - WZ Analysis'!C44 -> Max Queue Length (mi): | C12: ='Step 3 - WZ Analysis'!F44 -> 0
B13: ='Step 3 - WZ Analysis'!C45 -> Max Delay (minutes): | C13: ='Step 3 - WZ Analysis'!F45 -> 0
B14: Total User Costs - Work Zone ($) | C14: ='Step 3 - WZ Analysis'!E46 -> 0
B15: ='Step 3 - WZ Analysis'!C38 -> Start Time: | C15: =IF(C16=0,"N/A",'Step 3 - WZ Analysis'!D38) -> N/A
B16: ='Step 3 - WZ Analysis'!C40 -> Duration of Closure (hrs): | C16: ='Step 3 - WZ Analysis'!D40 -> 0
A17: =CONCATENATE('Step 2 - Facility Data Inputs'!G$22," (",TEXT('Step 2 - Facility Data Inputs'!G$23,"m/d/yy"),") ",B18) -> Tuesday () No Work Zone
A18: =CONCATENATE('Step 2 - Facility Data Inputs'!G22," (",TEXT('Step 2 - Facility Data Inputs'!G23,"m/d/yy"),")") -> Tuesday () | B18: =IF('Step 3 - WZ Analysis'!D54="(Example: Pothole Patching - Close One Lane OR Joint Repair - Two Lanes Closed)",IF('Step 3 - WZ Analysis'!D55='Reference Sheet'!$R$2,"No Work Zone",'Step 3 - WZ Analysis'!D55),'Step 3 - WZ Analysis'!D54) -> No Work Zone
B19: Max Queue Length (mi): | C19: ='Step 3 - WZ Analysis'!F66 -> 0
B20: Max Delay (minutes): | C20: ='Step 3 - WZ Analysis'!F67 -> 0
B21: Total User Costs - Work Zone ($) | C21: ='Step 3 - WZ Analysis'!E68 -> 0
B22: Start Time: | C22: =IF(C23=0,"N/A",'Step 3 - WZ Analysis'!D60) -> N/A
B23: Duration of Closure (hrs): | C23: ='Step 3 - WZ Analysis'!D62 -> 0
A24: =CONCATENATE('Step 2 - Facility Data Inputs'!H$22," (",TEXT('Step 2 - Facility Data Inputs'!H$23,"m/d/yy"),") ",B25) -> Wednesday () No Work Zone
A25: =CONCATENATE('Step 2 - Facility Data Inputs'!H22," (",TEXT('Step 2 - Facility Data Inputs'!H23,"m/d/yy"),")") -> Wednesday () | B25: =IF('Step 3 - WZ Analysis'!D76="(Example: Pothole Patching - Close One Lane OR Joint Repair - Two Lanes Closed)",IF('Step 3 - WZ Analysis'!D77='Reference Sheet'!$R$2,"No Work Zone",'Step 3 - WZ Analysis'!D77),'Step 3 - WZ Analysis'!D76) -> No Work Zone
B26: Max Queue Length (mi): | C26: ='Step 3 - WZ Analysis'!F88 -> 0
B27: Max Delay (minutes): | C27: ='Step 3 - WZ Analysis'!F89 -> 0
B28: Total User Costs - Work Zone ($) | C28: ='Step 3 - WZ Analysis'!E90 -> 0
B29: Start Time: | C29: =IF(C30=0,"N/A",'Step 3 - WZ Analysis'!D82) -> N/A
B30: Duration of Closure (hrs): | C30: ='Step 3 - WZ Analysis'!D84 -> 0
A31: =CONCATENATE('Step 2 - Facility Data Inputs'!I$22," (",TEXT('Step 2 - Facility Data Inputs'!I$23,"m/d/yy"),") ",B32) -> Thursday () No Work Zone
A32: =CONCATENATE('Step 2 - Facility Data Inputs'!I22," (",TEXT('Step 2 - Facility Data Inputs'!I23,"m/d/yy"),")") -> Thursday () | B32: =IF('Step 3 - WZ Analysis'!D98="(Example: Pothole Patching - Close One Lane OR Joint Repair - Two Lanes Closed)",IF('Step 3 - WZ Analysis'!D99='Reference Sheet'!$R$2,"No Work Zone",'Step 3 - WZ Analysis'!D99),'Step 3 - WZ Analysis'!D98) -> No Work Zone
B33: Max Queue Length (mi): | C33: ='Step 3 - WZ Analysis'!F110 -> 0
B34: Max Delay (minutes): | C34: ='Step 3 - WZ Analysis'!F111 -> 0
B35: Total User Costs - Work Zone ($) | C35: ='Step 3 - WZ Analysis'!E112 -> 0
B36: Start Time: | C36: =IF(C37=0,"N/A",'Step 3 - WZ Analysis'!D104) -> N/A
B37: Duration of Closure (hrs): | C37: ='Step 3 - WZ Analysis'!D106 -> 0
A38: =CONCATENATE('Step 2 - Facility Data Inputs'!J$22," (",TEXT('Step 2 - Facility Data Inputs'!J$23,"m/d/yy"),") ",B39) -> Friday () No Work Zone
A39: =CONCATENATE('Step 2 - Facility Data Inputs'!J22," (",TEXT('Step 2 - Facility Data Inputs'!J23,"m/d/yy"),")") -> Friday () | B39: =IF('Step 3 - WZ Analysis'!D120="(Example: Pothole Patching - Close One Lane OR Joint Repair - Two Lanes Closed)",IF('Step 3 - WZ Analysis'!D121='Reference Sheet'!$R$2,"No Work Zone",'Step 3 - WZ Analysis'!D121),'Step 3 - WZ Analysis'!D120) -> No Work Zone
B40: Max Queue Length (mi): | C40: ='Step 3 - WZ Analysis'!F132 -> 0
B41: Max Delay (minutes): | C41: ='Step 3 - WZ Analysis'!F133 -> 0
B42: Total User Costs - Work Zone ($) | C42: ='Step 3 - WZ Analysis'!E134 -> 0
B43: Start Time: | C43: =IF(C44=0,"N/A",'Step 3 - WZ Analysis'!D126) -> N/A
B44: Duration of Closure (hrs): | C44: ='Step 3 - WZ Analysis'!D128 -> 0
A45: =CONCATENATE('Step 2 - Facility Data Inputs'!K$22," (",TEXT('Step 2 - Facility Data Inputs'!K$23,"m/d/yy"),") ",B46) -> Saturday () No Work Zone
A46: =CONCATENATE('Step 2 - Facility Data Inputs'!K22," (",TEXT('Step 2 - Facility Data Inputs'!K23,"m/d/yy"),")") -> Saturday () | B46: =IF('Step 3 - WZ Analysis'!D142="(Example: Pothole Patching - Close One Lane OR Joint Repair - Two Lanes Closed)",IF('Step 3 - WZ Analysis'!D143='Reference Sheet'!$R$2,"No Work Zone",'Step 3 - WZ Analysis'!D143),'Step 3 - WZ Analysis'!D142) -> No Work Zone
B47: Max Queue Length (mi): | C47: ='Step 3 - WZ Analysis'!F154 -> 0
B48: Max Delay (minutes): | C48: ='Step 3 - WZ Analysis'!F155 -> 0
B49: Total User Costs - Work Zone ($) | C49: ='Step 3 - WZ Analysis'!E156 -> 0
B50: Start Time: | C50: =IF(C51=0,"N/A",'Step 3 - WZ Analysis'!D148) -> N/A
B51: Duration of Closure (hrs): | C51: ='Step 3 - WZ Analysis'!D150 -> 0

Sheet Step 4a - ADV WZ Synopsis (hidden)
A1: WORK ZONE IMPACT ANALYSIS SPREADSHEET
A2: =CONCATENATE("District: ",'Step 2 - Facility Data Inputs'!A9," Route: ",'Step 2 - Facility Data Inputs'!E9," (",'Step 2 - Facility Data Inputs'!H9,")"," Job No.: ",'Step 2 - Facility Data Inputs'!J4) -> District: Route: () Job No.:
A4: Advanced Work Zone Strategy Analysis
B5: From SWZ Calc Sheet
A6: Advanced Work Zone Strategy | B6: Applicable | C6: Base Points | D6: Manual Adjustment | E6: Cost | F6: Score* | G6: Rank | H6: Recommendation | I6: Budgetary Estimate
A7: ='ADV WZ Calcs'!M36 -> 1. Construction Vehicle Warning System | B7: ='ADV WZ Calcs'!N35 -> FALSE | C7: ='ADV WZ Calcs'!K31 -> 15 | D7: ='ADV WZ Calcs'!K32 -> 0 | E7: ='ADV WZ Calcs'!N37 -> 0 | F7: =IF(B7,IF(SUM(C7:D7)>99,100,SUM(C7:D7)),0) -> 0 | G7: =IF(B7,RANK(F7,$F$7:$F$15,0),"-") -> - | H7: =VLOOKUP(F7,$F$22:$H$25,3) -> Not Applicable | I7: =IF(B7,E7,0) -> 0
A8: ='ADV WZ Calcs'!Y36 -> 2. Dynamic Late Merge (Zipper Merge) System | B8: ='ADV WZ Calcs'!Z35 -> FALSE | C8: ='ADV WZ Calcs'!W31 -> 23 | D8: ='ADV WZ Calcs'!W32 -> 0 | E8: ='ADV WZ Calcs'!Z37 -> 0 | F8: =IF(B8,IF(SUM(C8:D8)>99,100,SUM(C8:D8)),0) -> 0 | G8: - | H8: Not Applicable | I8: =IF(B8,E8,0) -> 0
A9: ='ADV WZ Calcs'!BI36 -> 3. Queue Warning System | B9: ='ADV WZ Calcs'!BJ35 -> FALSE | C9: ='ADV WZ Calcs'!BG31 -> 22 | D9: ='ADV WZ Calcs'!BG32 -> 0 | E9: ='ADV WZ Calcs'!BJ37 -> 0 | F9: 0 | G9: - | H9: Not Applicable | I9: 0
A10: ='ADV WZ Calcs'!BU36 -> 4. Road Closure | B10: ='ADV WZ Calcs'!BV35 -> FALSE | C10: ='ADV WZ Calcs'!BS31 -> 26 | D10: ='ADV WZ Calcs'!BS32 -> 0 | E10: ='ADV WZ Calcs'!BV37 -> 0 | F10: =IF(B10,IF(SUM(C10:D10)>99,100,SUM(C10:D10)),0) -> 0 | G10: - | H10: =VLOOKUP(F10,$F$22:$H$25,3) -> Not Applicable | I10: =IF(B10,E10,0) -> 0
A11: ='ADV WZ Calcs'!CG36 -> 5. Speed Warning System | B11: ='ADV WZ Calcs'!CH35 -> FALSE | C11: ='ADV WZ Calcs'!CE31 -> 38 | D11: ='ADV WZ Calcs'!CE32 -> 0 | E11: ='ADV WZ Calcs'!CH37 -> 0 | F11: 0 | G11: - | H11: =VLOOKUP(F11,$F$22:$H$25,3) -> Not Applicable | I11: =IF(B11,E11,0) -> 0 | J11: **
A12: ='ADV WZ Calcs'!CW1 -> 6. Temporary Rumble Strips | B12: ='ADV WZ Calcs'!DF35 -> FALSE | C12: ='ADV WZ Calcs'!DC31 -> 40 | D12: ='ADV WZ Calcs'!DC32 -> 10 | E12: ='ADV WZ Calcs'!DF37 -> 2000 | F12: 0 | G12: - | H12: =VLOOKUP(F12,$F$22:$H$25,3) -> Not Applicable | I12: =IF(B12,E12,0) -> 0
A13: ='ADV WZ Calcs'!CS36 -> 7. Temporary Traffic Incident Management and ITS System | B13: ='ADV WZ Calcs'!CT35 -> FALSE | C13: ='ADV WZ Calcs'!CQ31 -> 9 | D13: ='ADV WZ Calcs'!CQ32 -> 0 | E13: ='ADV WZ Calcs'!CT37 -> 0 | F13: 0 | G13: - | H13: =VLOOKUP(F13,$F$22:$H$25,3) -> Not Applicable | I13: =IF(B13,E13,0) -> 0
A14: ='ADV WZ Calcs'!AK36 -> 8. Travel Time Advisory System | B14: ='ADV WZ Calcs'!AL35 -> FALSE | C14: ='ADV WZ Calcs'!AI31 -> 22 | D14: ='ADV WZ Calcs'!AI32 -> 0 | E14: ='ADV WZ Calcs'!AL37 -> 0 | F14: 0 | G14: - | H14: =VLOOKUP(F14,$F$22:$H$25,3) -> Not Applicable | I14: =IF(B14,E14,0) -> 0
A15: ='ADV WZ Calcs'!AW36 -> 9. Travel Time Advisory System with Alternative Route | B15: ='ADV WZ Calcs'!AX35 -> FALSE | C15: ='ADV WZ Calcs'!AU31 -> 20 | D15: ='ADV WZ Calcs'!AU32 -> 0 | E15: ='ADV WZ Calcs'!AX37 -> 0 | F15: 0 | G15: - | H15: =VLOOKUP(F15,$F$22:$H$25,3) -> Not Applicable | I15: =IF(B15,E15,0) -> 0
F20: Scoring Criteria
F21: From | G21: <= To | H21: Recommendation
F22: 0 | G22: 1 | H22: Not Applicable
F23: 1 | G23: 30 | H23: Not Recommended
F24: 30 | G24: 70 | H24: Should be Considered
F25: 70 | G25: 100 | H25: Strongly Recommended
A31: * Scores in blue include a manual score adjustment to reflect current initiatives or to de-emphaisize specific initiatives.
A32: ** Speed trailer cost assumes contractor-provided trailers

Sheet Step 4b - Acceleration Synopsis (hidden)
A1: WORK ZONE IMPACT ANALYSIS SPREADSHEET
A2: =CONCATENATE("District: ",'Step 2 - Facility Data Inputs'!A9," Route: ",'Step 2 - Facility Data Inputs'!E9," (",'Step 2 - Facility Data Inputs'!H9,")"," Job No.: ",'Step 2 - Facility Data Inputs'!J4) -> District: Route: () Job No.:
A4: Contract Time Acceleration Synopsis*
B5: From Acceleration Calcs
A6: Contract Time Acceleration Strategy | B6: Base Points | C6: Manual Adjustment | D6: Score** | E6: Rank | F6: Recommendation
A7: ='Acceleration Calcs'!J18 -> A+B Bidding | B7: ='Acceleration Calcs'!L18 -> 0 | C7: ='Acceleration Calcs'!L19 -> 0 | D7: =MIN(SUM(B7:C7),100) -> 0 | E7: =RANK(D7,$D$7:$D$10,0) -> 1 | F7: =VLOOKUP(D7,$D$17:$F$20,3) -> Not Applicable
A8: ='Acceleration Calcs'!T18 -> Liquidated Damages Specified | B8: ='Acceleration Calcs'!V18 -> 0 | C8: ='Acceleration Calcs'!V19 -> 0 | D8: =MIN(SUM(B8:C8),100) -> 0 | E8: =RANK(D8,$D$7:$D$10,0) -> 1 | F8: =VLOOKUP(D8,$D$17:$F$20,3) -> Not Applicable
A9: ='Acceleration Calcs'!AD18 -> Liquidated Savings Specified | B9: ='Acceleration Calcs'!AF18 -> 0 | C9: ='Acceleration Calcs'!AF19 -> 0 | D9: 0 | E9: 1 | F9: =VLOOKUP(D9,$D$17:$F$20,3) -> Not Applicable
A10: ='Acceleration Calcs'!AN18 -> Liquidated Savings / Liquidated Damages Specified | B10: ='Acceleration Calcs'!AP18 -> 0 | C10: ='Acceleration Calcs'!AP19 -> 0 | D10: 0 | E10: 1 | F10: =VLOOKUP(D10,$D$17:$F$20,3) -> Not Applicable
D15: Scoring Criteria
D16: From | E16: <= To | F16: Recommendation
D17: 0 | E17: 1 | F17: Not Applicable
D18: 1 | E18: 30 | F18: Not Recommended
D19: 30 | E19: 70 | F19: Should be Considered
D20: 70 | E20: 100 | F20: Strongly Recommended
A25: * See EPG Section 237.8 for more detail.
A26: ** Scores in blue include a manual score adjustment to reflect current initiatives or to de-emphaisize specific initiatives.
